{"text_format":"1","workbook":"xlsx","n_sheets":1,"sheets":["MAIN CONTR BOQ"],"not_rendered":{"charts":0,"images":0,"macros":1,"external_links":0,"defined_names":23,"comments":0,"pivot_tables":0},"unopened":[],"bounds":{"document_bytes":16777216,"sheet_cells":100000,"rows_first":2000,"rows_last":500,"rows_between":2000,"halvings":0,"cell_chars":16384,"cell_head_chars":4096},"cells_cut":0,"cells_raw":0,"read":"whole","date_system":"1900"}

{"sheet":"MAIN CONTR BOQ","index":0,"n_rows":2646,"n_cols":20,"rows_kept":2646,"cut":false,"hidden":false,"merged":[[1993,0,1993,2],[1798,0,1798,2],[1917,0,1917,2],[1745,0,1745,2],[1782,0,1782,2],[1137,0,1137,2],[1211,0,1211,2],[1381,0,1381,2],[1535,0,1535,2],[1713,0,1713,2],[1609,0,1609,2],[1639,0,1639,2],[0,0,73,6],[74,0,74,4],[74,5,74,6],[1466,0,1466,1],[1061,0,1061,2],[781,0,781,2],[921,0,921,2],[237,0,237,2],[156,0,156,2],[1220,0,1220,2],[630,0,630,2],[563,0,563,2],[490,0,490,2],[408,0,408,2],[327,0,327,2],[985,0,985,2]]}
["\n\nBILL OF QUANTITIES\n\n\n\n\n\n\nSECTION 1:\n\nPRELIMINARY & GENERAL \n\n"]
[]
[]
[]
[]
[]
[]
[]
[]
[]
[]
[]
[]
[]
[]
[]
[]
[]
[]
[]
[]
[]
[]
[]
[]
[]
[]
[]
[]
[]
[]
[]
[]
[]
[]
[]
[]
[]
[]
[]
[]
[]
[]
[]
[]
[]
[]
[]
[]
[]
[]
[]
[]
[]
[]
[]
[]
[]
[]
[]
[]
[]
[]
[]
[]
[]
[]
[]
[]
[]
[]
[]
[]
[]
["Contract JW14090R\nReplacement of 600 mm Diameter Bulk Steel Water Pipeline from Linbro Reservoir to Alexandra Township"]
["ITEM NO","PAYMENT CLAUSE","DESCRIPTION","UNIT","QUANTITY","RATE","AMOUNT"]
[null,null,"SECTION 1"]
[]
[1,"SANS 1200A","GENERAL "]
[]
[1.1000000000000001,8.3000000000000007,"SCHEDULED FIXED-CHARGE AND VALUE-RELATED CHARGES"]
[]
["1.1.1","8.3.1","Contractual Requirements","Sum",1]
[null,null,null,null,null,null,{"$f":"IF(E84<>\"\",E84*F84,\"\")","v":""}]
["1.1.2","8.3.2","Establishment of facilities on the site",null,null,null,""]
[null,null,null,null,null,null,""]
["1.1.2.1","PSA 8.3.2.1","Facilities for Employer`s Agent",null,null,null,""]
[null,null,null,null,null,null,""]
["1.1.2.1.1",null,"a.1) Furnished office (3 No.)","Sum",1,null,null,null,null,null,null,null,null,null,null,null,{"$f":"IF(K89=\"No comment\",0,1)","v":1},1,1,{"$f":"SUM(N89:S89)","v":3}]
[null,null,null,null,null,null,null,null,null,null,null,null,null,null,null,null,{"$f":"IF(K90=\"No comment\",0,1)","v":1},{"$f":"IF(L90=\"No comment\",0,1)","v":1},{"$f":"IF(M90=\"No comment\",0,1)","v":1},{"$f":"SUM(N90:S90)","v":3}]
["1.1.2.1.2",null,"a.2) Furnished office for Johannesburg Water Engineering Team ","Sum",1,null,null,null,null,null,null,null,null,null,null,null,1,1,1,3]
[null,null,null,null,null,null,null,null,null,null,null,null,null,null,null,null,1,1,1,3]
["1.1.2.1.3",null,"b) Nameboards (2 No.)","Sum",1,null,null,null,null,null,null,null,null,null,null,null,1,1,1,3]
[null,null,null,null,null,null,"",null,null,null,null,null,null,null,null,null,1,1,1,3]
["1.1.2.1.4",null,"c) Communication","Prov Sum",1,100000,100000,null,null,null,null,null,null,null,null,null,1,1,1,3]
[null,null,null,null,null,null,"",null,null,null,null,null,null,null,null,null,1,1,1,3]
["1.1.2.1.5",null,"d) Overheads, charges and profit on item c) above","%",null,{"$f":"F95","v":100000},"",null,null,null,null,null,null,null,null,null,1,1,1,3]
[null,null,null,null,null,null,"",null,null,null,null,null,null,null,null,null,1,1,1,3]
["1.1.2.1.6",null,"e) Boardroom","Sum",1,null,null,null,null,null,null,null,null,null,null,null,1,1,1,3]
[null,null,null,null,null,null,null,null,null,null,null,null,null,null,null,null,1,1,1,3]
["1.1.2.1.7",null,"f) Computer facilities complete with printer and wifi router with internet connection","Prov Sum",1,200000,{"$f":"F101*E101","v":200000},null,null,null,null,null,null,null,null,null,1,1,1,3]
[null,null,null,null,null,null,null,null,null,null,null,null,null,null,null,null,1,1,1,3]
["1.1.2.1.8",null,"g)\tSurvey equipment, assistants and material” ","Prov Sum",1,200000,{"$f":"F103*E103","v":200000},null,null,null,null,null,null,null,null,null,1,1,1,3]
[null,null,null,null,null,null,null,null,null,null,null,null,null,null,null,null,1,1,1,3]
["1.1.2.1.9",null,"h)\tParking (8 No.) ","Sum",1,null,null,null,null,null,null,null,null,null,null,null,1,1,1,3]
[null,null,null,null,null,null,null,null,null,null,null,null,null,null,null,null,1,1,1,3]
["1.1.2.1.10",null,"i) CLO's Office ","Sum",1,null,null,null,null,null,null,null,null,null,null,null,1,1,1,3]
[null,null,null,null,null,null,null,null,null,null,null,null,null,null,null,null,1,1,1,3]
["1.1.2.2","8.3.2.2","Facilities for Contractor",null,null,null,null,null,null,null,null,null,null,null,null,null,1,1,1,3]
[null,null,null,null,null,null,null,null,null,null,null,null,null,null,null,null,1,1,1,3]
["1.1.2.2.1",null,"(a)   Offices and storage sheds","Sum",1,null,null,null,null,null,null,null,null,null,null,null,1,1,1,3]
[null,null,null,null,null,null,null,null,null,null,null,null,null,null,null,null,1,1,1,3]
["1.1.2.2.2",null,"(b)   Workshops","Sum",1,null,null,null,null,null,null,null,null,null,null,null,1,1,1,3]
[null,null,null,null,null,null,null,null,null,null,null,null,null,null,null,null,1,1,1,3]
["1.1.2.2.3",null,"(e)   Ablution and latrine facilities","Sum",1,null,null,null,null,null,null,null,null,null,null,null,1,1,1,3]
[null,null,null,null,null,null,null,null,null,null,null,null,null,null,null,null,1,1,1,3]
["1.1.2.2.4",null,"(f)   Tools and equipment","Sum",1,null,null,null,null,null,null,null,null,null,null,null,1,1,1,3]
[null,null,null,null,null,null,null,null,null,null,null,null,null,null,null,null,1,1,1,3]
["1.1.2.2.5",null,"(g)  Water supplies, electric power and communications","Sum",1,null,null,null,null,null,null,null,null,null,null,null,1,1,1,3]
[null,null,null,null,null,null,null,null,null,null,null,null,null,null,null,null,1,1,1,3]
["1.1.2.2.6",null,"(h)   Dealing with water","Sum",1,null,null,null,null,null,null,null,null,null,null,null,1,1,1,3]
[null,null,null,null,null,null,null,null,null,null,null,null,null,null,null,null,1,1,1,3]
["1.1.2.2.7",null,"(i)  Access","Sum",1,null,null,null,null,null,null,null,null,null,null,null,1,1,1,3]
[null,null,null,null,null,null,null,null,null,null,null,null,null,null,null,null,1,1,1,3]
["1.1.2.2.8",null,"(j)   Plant ","Sum",1,null,null,null,null,null,null,null,null,null,null,null,1,1,1,3]
[null,null,null,null,null,null,null,null,null,null,null,null,null,null,null,null,1,1,1,3]
["1.1.3","8.3.3","Other fixed-charge obligations","Sum",1,null,null,null,null,null,null,null,null,null,null,null,1,1,1,3]
[null,null,null,null,null,null,null,null,null,null,null,null,null,null,null,null,1,1,1,3]
["1.1.4","8.3.4","Removal of site establishment","Sum",1,null,null,null,null,null,null,null,null,null,null,null,1,1,1,3]
[null,null,null,null,null,null,null,null,null,null,null,null,null,null,null,null,1,1,1,3]
["1.1.5","PSA 8.3.5","Additional Contractual Obligations",null,null,null,null,null,null,null,null,null,null,null,null,null,1,1,1,3]
[null,null,null,null,null,null,null,null,null,null,null,null,null,null,null,null,1,1,1,3]
["1.1.5.1","PSA 8.3.5.1","Issuing of notices to consumers.","Sum",1,null,null,null,null,null,null,null,null,null,null,null,1,1,1,3]
[null,null,null,null,null,null,null,null,null,null,null,null,null,null,null,null,1,1,1,3]
["1.1.5.2","PSA 8.3.5.2 ","OHS Act Obligations ","Sum",1,null,null,null,null,null,null,null,null,null,null,null,1,1,1,3]
[null,null,null,null,null,null,null,null,null,null,null,null,null,null,null,null,1,1,1,3]
["1.1.5.3","PSA 8.3.5.3","EMP Obligations ","Sum",1,null,null,null,null,null,null,null,null,null,null,null,1,1,1,3]
[null,null,null,null,null,null,null,null,null,null,null,null,null,null,null,null,1,1,1,3]
[1.2,8.4,"SCHEDULED TIME-RELATED ITEMS ",null,null,null,null,null,null,null,null,null,null,null,null,null,1,1,1,3]
[null,null,null,null,null,null,null,null,null,null,null,null,null,null,null,null,1,1,1,3]
["1.2.1","8.4.1","Contractual Requirements","Sum",1,null,null,null,null,null,null,null,null,null,null,null,1,1,1,3]
[null,null,null,null,null,null,"",null,null,null,null,null,null,null,null,null,1,1,1,3]
["1.2.2","8.4.2","Operation and maintenance of facilities on site, for duration of construction, except where otherwise stated",null,null,null,"",null,null,null,null,null,null,null,null,null,1,1,1,3]
[null,null,null,null,null,null,"",null,null,null,null,null,null,null,null,null,1,1,1,3]
["1.2.2.1","PSA 8.4.2.1                    ","Facilities for Employer`s Agent",null,null,null,"",null,null,null,null,null,null,null,null,null,1,1,1,3]
[null,null,null,null,null,null,"",null,null,null,null,null,null,null,null,null,1,1,1,3]
["1.2.2.1.1",null,"a.1) Furnished office (3 No.)","Month",12,null,null,null,null,null,null,null,null,null,null,null,1,1,1,3]
[null,null,null,null,null,null,null,null,null,null,null,null,null,null,null,null,1,1,1,3]
["1.2.2.1.2",null,"a.2) Furnished office  for Johannesburg Water Engineering Team ","Month",12,null,null,null,null,null,null,null,null,null,null,null,1,1,1,3]
[null,null,null,null,null,null,null,null,null,null,null,null,null,null,null,null,1,1,1,3]
["1.2.2.1.3",null,"b) Nameboards (2 No.)","Month",12,null,null,null,null,null,null,null,null,null,null,null,1,1,1,3]
[null,null,null,null,null,null,{"$f":"IF(E152<>\"\",E152*F152,\"\")","v":""},null,null,null,null,null,null,null,null,null,1,1,1,3]
["1.2.2.1.4",null,"(c)   Communication","Prov. Sum",1,200000,200000,null,null,null,null,null,null,null,null,null,1,1,1,3]
[null,null,null,null,null,null,"",null,null,null,null,null,null,null,null,null,{"$f":"IF(K154=\"No comment\",0,1)","v":1},{"$f":"IF(L154=\"No comment\",0,1)","v":1},{"$f":"IF(M154=\"No comment\",0,1)","v":1},{"$f":"SUM(N154:S154)","v":3}]
["1.2.2.1.5",null,"d) Overhead, charges and  profit on item (c) above ","%",null,{"$f":"F153","v":200000},"",null,null,null,null,null,null,null,null,null,1,1,1,3]
[null,null,null,null,null,null,null,null,null,null,null,null,null,null,null,null,1,1,1,3]
["TOTAL CARRIED FORWARD TO NEXT PAGE",null,null,null,null,null,null,null,null,null,null,null,null,null,null,null,1,1,1,3]
["ITEM NO","PAYMENT CLAUSE","DESCRIPTION","UNIT","QUANTITY","RATE","AMOUNT",null,null,null,null,null,null,null,null,null,1,1,1,3]
[null,null,"TOTAL CARRIED FROM PREVIOUS PAGE",null,null,null,null,null,null,null,null,null,null,null,null,null,1,1,1,3]
[]
["1.2.2.1.6",null,"e) Boardroom","Month",12,null,null,null,null,null,null,null,null,null,null,null,1,1,1,3]
[null,null,null,null,null,null,null,null,null,null,null,null,null,null,null,null,1,1,1,3]
["1.2.2.1.7",null,"f) Computer facilities complete with printer and wifi router with internet connection","Month",12,null,null,null,null,null,null,null,null,null,null,null,1,1,1,3]
[null,null,null,null,null,null,null,null,null,null,null,null,null,null,null,null,1,1,1,3]
["1.2.2.1.8",null,"g)\tSurvey equipment, assistants and material” ","Prov Sum",1,200000,200000,null,null,null,null,null,null,null,null,null,1,1,1,3]
[null,null,null,null,null,null,null,null,null,null,null,null,null,null,null,null,1,1,1,3]
["1.2.2.1.9",null,"h)\tParking (4 No.) ","Month",12,null,null,null,null,null,null,null,null,null,null,null,1,1,1,3]
[null,null,null,null,null,null,null,null,null,null,null,null,null,null,null,null,1,1,1,3]
["1.2.2.1.10",null,"i) CLO's Office ","Month",12,null,null,null,null,null,null,null,null,null,null,null,1,1,1,3]
[null,null,null,null,null,null,null,null,null,null,null,null,null,null,null,null,1,1,1,3]
["1.2.2.2","PSA 8.4.2.2","Facilities for Contractor",null,null,null,null,null,null,null,null,null,null,null,null,null,1,1,1,3]
[null,null,null,null,null,null,null,null,null,null,null,null,null,null,null,null,1,1,1,3]
["1.2.2.2.1",null,"(a)   Offices and storage sheds","Month",12,null,null,null,null,null,null,null,null,null,null,null,1,1,1,3]
[null,null,null,null,null,null,null,null,null,null,null,null,null,null,null,null,1,1,1,3]
["1.2.2.2.2",null,"(b)   Workshops","Month",12,null,null,null,null,null,null,null,null,null,null,null,1,1,1,3]
[null,null,null,null,null,null,null,null,null,null,null,null,null,null,null,null,1,1,1,3]
["1.2.2.2.5",null,"(e)   Ablution and latrine facilities","Month",12,null,null,null,null,null,null,null,null,null,null,null,1,1,1,3]
[null,null,null,null,null,null,null,null,null,null,null,null,null,null,null,null,1,1,1,3]
["1.2.2.2.6",null,"(f)   Tools and equipment","Month",12,null,null,null,null,null,null,null,null,null,null,null,1,1,1,3]
[null,null,null,null,null,null,null,null,null,null,null,null,null,null,null,null,1,1,1,3]
["1.2.2.2.7",null,"(g)   Water supplies, electric power and communications","Month",12,null,null,null,null,null,null,null,null,null,null,null,1,1,1,3]
[null,null,null,null,null,null,null,null,null,null,null,null,null,null,null,null,1,1,1,3]
["1.2.2.2.8",null,"(h)   Dealing with water","Month",12,null,null,null,null,null,null,null,null,null,null,null,1,1,1,3]
[null,null,null,null,null,null,null,null,null,null,null,null,null,null,null,null,1,1,1,3]
["1.2.2.2.9",null,"(i)   Access","Month",12,null,null,null,null,null,null,null,null,null,null,null,1,1,1,3]
[null,null,null,null,null,null,null,null,null,null,null,null,null,null,null,null,1,1,1,3]
["1.2.2.2.10",null,"(j)   Plant ","Month",12,null,null,null,null,null,null,null,null,null,null,null,1,1,1,3]
[null,null,null,null,null,null,null,null,null,null,null,null,null,null,null,null,1,1,1,3]
["1.2.3","8.4.3  ","Supervision for duration of construction","Month",12,null,null,null,null,null,null,null,null,null,null,null,1,1,1,3]
[null,null,null,null,null,null,null,null,null,null,null,null,null,null,null,null,1,1,1,3]
["1.2.4","8.4.4","Company and head office overhead costs for the duration of the contract","Month",12,null,null,null,null,null,null,null,null,null,null,null,1,1,1,3]
[null,null,null,null,null,null,{"$f":"IF(E192<>\"\",E192*F192,\"\")","v":""},null,null,null,null,null,null,null,null,null,1,1,1,3]
["1.2.5","PSA 8.4.5 ","Other Time-related obligations","Month",12,null,null,null,null,null,null,null,null,null,null,null,1,1,1,3]
[null,null,null,null,null,null,null,null,null,null,null,null,null,null,null,null,1,1,1,3]
["1.2.6","PSA8.3.5.4 ","Provide protective safety clothing ","Sum",1,null,null,null,null,null,null,null,null,null,null,null,1,1,1,3]
[null,null,null,null,null,null,null,null,null,null,null,null,null,null,null,null,1,1,1,3]
["1.2.7","PSA 8.3.5","Additional Contractual Obligations",null,null,null,"",null,null,null,null,null,null,null,null,null,1,1,1,3]
[null,null,null,null,null,null,"",null,null,null,null,null,null,null,null,null,1,1,1,3]
["1.2.7.1","PSA 8.3.5.2 ","OHS Act Obligation","Month",12,null,null,null,null,null,null,null,null,null,null,null,1,1,1,3]
[null,null,null,null,null,null,null,null,null,null,null,null,null,null,null,null,1,1,1,3]
["1.2.7.2","PSA 8.3.5.3","EMP Obligations ","Month",12,null,null,null,null,null,null,null,null,null,null,null,1,1,1,3]
[null,null,null,null,null,null,null,null,null,null,null,null,null,null,null,null,1,1,1,3]
["1.2.7.3","PSA 8.4.7 ","On-site security ","Month",12,null,null,null,null,null,null,null,null,null,null,null,1,1,1,3]
[null,null,null,null,null,null,null,null,null,null,null,null,null,null,null,null,1,1,1,3]
["1.2.7.4","PSA 8.4.6.4","Risk Assessments every month","Month",12,null,null,null,null,null,null,null,null,null,null,null,1,1,1,3]
[null,null,null,null,null,null,"",null,null,null,null,null,null,null,null,null,1,1,1,3]
["1.2.8","PSA 8.5","SUMS STATED PROVISIONALLY BY EMPLOYER’S AGENT",null,null,null,"",null,null,null,null,null,null,null,null,null,1,1,1,3]
[null,null,null,null,null,null,null,null,null,null,null,null,null,null,null,null,1,1,1,3]
["1.2.8.1",null,"a) Reinstatement of asphalt by JRA","Prov. Sum",1,1000000,{"$f":"F209","v":1000000},null,null,null,null,null,null,null,null,null,1,1,1,3]
[null,null,null,null,null,null,null,null,null,null,null,null,null,null,null,null,1,1,1,3]
["1.2.8.2",null,"b) Temporary protection of services","Prov. Sum",1,500000,{"$f":"F211","v":500000},null,null,null,null,null,null,null,null,null,1,1,1,3]
[null,null,null,null,null,null,null,null,null,null,null,null,null,null,null,null,1,1,1,3]
["1.2.8.3",null,"c) Community Liaison Officer & CSO","Prov. Sum",1,300000,{"$f":"F213*E213","v":300000},null,null,null,null,null,null,null,null,null,1,1,1,3]
[null,null,null,null,null,null,null,null,null,null,null,null,null,null,null,null,1,1,1,3]
["1.2.8.4","PSA 8.4.6.5","d) Training of local labour and SMMEs","Prov. Sum",1,{"$f":"500000+840000","v":1340000},{"$f":"F215","v":1340000},null,null,null,null,null,null,null,null,null,1,1,1,3]
[null,null,null,null,null,null,null,null,null,null,null,null,null,null,null,null,1,1,1,3]
["1.2.8.5",null,"e) Alterations and connection to Municipal services and repair to damaged services where approved by Employer’s Agent","Prov. Sum",1,500000,{"$f":"F217","v":500000},null,null,null,null,null,null,null,null,null,1,1,1,3]
[null,null,null,null,null,null,null,null,null,null,null,null,null,null,null,null,1,1,1,3]
["1.2.8.6",null,"f) Employer’s Agent’s Equipment and Independent testing","Prov. Sum",1,500000,{"$f":"F219","v":500000},null,null,null,null,null,null,null,null,null,{"$f":"IF(K219=\"No comment\",0,1)","v":1},{"$f":"IF(L219=\"No comment\",0,1)","v":1},{"$f":"IF(M219=\"No comment\",0,1)","v":1},{"$f":"SUM(N219:S219)","v":3}]
[null,null,null,null,null,null,null,null,null,null,null,null,null,null,null,null,1,1,1,3]
["1.2.8.7",null,"g) Relocation of existing services","Prov. Sum",1,500000,{"$f":"F221","v":500000},null,null,null,null,null,null,null,null,null,1,1,1,3]
[null,null,null,null,null,null,null,null,null,null,null,null,null,null,null,null,1,1,1,3]
["1.2.8.8",null,"h) Topographical Survey as per the Employer’s Agent's instruction ","Prov.Sum",1,200000,{"$f":"F223*E223","v":200000},null,null,null,null,null,null,null,null,null,1,1,1,3]
[null,null,null,null,null,null,null,null,null,null,null,null,null,null,null,null,1,1,1,3]
["1.2.8.9",null,"i) Provision of photographic records ","Prov. Sum",1,200000,{"$f":"F225","v":200000},null,null,null,null,null,null,null,null,null,1,1,1,3]
[null,null,null,null,null,null,null,null,null,null,null,null,null,null,null,null,1,1,1,3]
["1.2.8.10",null,"j) Pressure logging, leak detection and conduct water conservation tests on selected pipelines","Prov. Sum",1,1000000,1000000,null,null,null,null,null,null,null,null,null,1,1,1,3]
[null,null,null,null,null,null,null,null,null,null,null,null,null,null,null,null,1,1,1,3]
[null,null,null,null,null,null,null,null,null,null,null,null,null,null,null,null,1,1,1,3]
["1.2.8.12",null,"l) SANRAL Wayleave Permit","Prov Sum",1,700000,{"$f":"F230","v":700000},null,null,null,null,null,null,null,null,null,1,1,1,3]
[null,null,null,null,null,null,null,null,null,null,null,null,null,null,null,null,1,1,1,3]
["1.2.8.13",null,"m) Provision of as-built information","Prov Sum",1,350000,{"$f":"F232","v":350000},null,null,null,null,null,null,null,null,null,1,1,1,3]
[null,null,null,null,null,null,null,null,null,null,null,null,null,null,null,null,1,1,1,3]
["1.2.8.14",null,"n) Construction Work Permit","Prov. Sum",1,300000,{"$f":"F234","v":300000},null,null,null,null,null,null,null,null,null,1,1,1,3]
[null,null,null,null,null,null,null,null,null,null,null,null,null,null,null,null,1,1,1,3]
["1.2.8.15",null,"o) Pipeline servitude registration","Prov. Sum",1,400000,{"$f":"F236","v":400000},null,null,null,null,null,null,null,null,null,1,1,1,3]
[null,null,null,null,null,null,null,null,null,null,null,null,null,null,null,null,1,1,1,3]
["TOTAL CARRIED FORWARD TO NEXT PAGE",null,null,null,null,null,null,null,null,null,null,null,null,null,null,null,1,1,1,3]
["ITEM NO","PAYMENT CLAUSE","DESCRIPTION","UNIT","QUANTITY","RATE","AMOUNT",null,null,null,null,null,null,null,null,null,1,1,1,3]
[null,null,"TOTAL CARRIED FROM PREVIOUS PAGE",null,null,null,null,null,null,null,null,null,null,null,null,null,1,1,1,3]
[]
["1.2.8.14",null,"p) JW ISD","Stated month",12,2000,{"$f":"F242*E242","v":24000},null,null,null,null,null,null,null,null,null,1,1,1,3]
[null,null,null,null,null,null,null,null,null,null,null,null,null,null,null,null,1,1,1,3]
["1.2.8.15",null,"q)\tCommunity awareness material ","Stated Sum",1,50000,{"$f":"F244*E244","v":50000},null,null,null,null,null,null,null,null,null,1,1,1,3]
[null,null,null,null,null,null,null,null,null,null,null,null,null,null,null,null,1,1,1,3]
["1.2.8.16",null,"r) Overheads, charges and profit on items (a) to (q) above ","%",null,{"$f":"SUM(G209:G244)","v":7864000},null,null,null,null,null,null,null,null,null,null,1,1,1,3]
[null,null,null,null,null,null,null,null,null,null,null,null,null,null,null,null,1,1,1,3]
[1.3,"PSA 8.7","DAYWORK",null,null,null,null,null,null,null,null,null,null,null,null,null,1,1,1,3]
[null,null,null,null,null,null,null,null,null,null,null,null,null,null,null,null,1,1,1,3]
["1.3.1","PSA8.7.1.3 ","a) Labour",null,null,null,null,null,null,null,null,null,null,null,null,null,1,1,1,3]
[null,null,null,null,null,null,null,null,null,null,null,null,null,null,null,null,1,1,1,3]
["1.3.1.1",null,"1) Foreman/Surveyor","hr",300,null,null,null,null,null,null,null,null,null,null,null,1,1,1,3]
[null,null,null,null,null,null,null,null,null,null,null,null,null,null,null,null,1,1,1,3]
["1.3.1.2",null,"2) Artisan","hr",300,null,null,null,null,null,null,null,null,null,null,null,1,1,1,3]
[null,null,null,null,null,null,null,null,null,null,null,null,null,null,null,null,1,1,1,3]
["1.3.1.3",null,"3) Semi-skilled labourer","hr",300,null,null,null,null,null,null,null,null,null,null,null,1,1,1,3]
[null,null,null,null,null,null,null,null,null,null,null,null,null,null,null,null,1,1,1,3]
["1.3.1.4",null,"4) Unskilled Labourer","hr",300,null,null,null,null,null,null,null,null,null,null,null,1,1,1,3]
[null,null,null,null,null,null,null,null,null,null,null,null,null,null,null,null,1,1,1,3]
["1.3.1.5",null,"5) Extra over for night- or non-working times","%",null,null,null,null,null,null,null,null,null,null,null,null,1,1,1,3]
[null,null,null,null,null,null,{"$f":"IF(E261<>\"\",E261*F261,\"\")","v":""},null,null,null,null,null,null,null,null,null,1,1,1,3]
["1.3.2",null,"b) Materials",null,null,null,"",null,null,null,null,null,null,null,null,null,1,1,1,3]
[null,null,null,null,null,null,"",null,null,null,null,null,null,null,null,null,1,1,1,3]
["1.3.2.1",null,"1) Provisional sum for purchase of materials","PC Sum",1,250000,250000,null,null,null,null,null,null,null,null,null,1,1,1,3]
[null,null,null,null,null,null,"",null,null,null,null,null,null,null,null,null,1,1,1,3]
["1.3.2.2",null,"2) Mark up on 1) above","%",null,{"$f":"F264","v":250000},"",null,null,null,null,null,null,null,null,null,1,1,1,3]
[null,null,null,null,null,null,"",null,null,null,null,null,null,null,null,null,1,1,1,3]
["1.3.3",null,"c) Plant and Equipment",null,null,null,"",null,null,null,null,null,null,null,null,null,1,1,1,3]
[null,null,null,null,null,null,"",null,null,null,null,null,null,null,null,null,1,1,1,3]
["1.3.3.1",null,"1)    Crane 65 - 80 t Capacity   ","hr",40,null,null,null,null,null,null,null,null,null,null,null,1,1,1,3]
[null,null,null,null,null,null,null,null,null,null,null,null,null,null,null,null,1,1,1,3]
["1.3.3.2",null,"2)    Wheel loader 140 - 150 Kw  ","hr",40,null,null,null,null,null,null,null,null,null,null,null,1,1,1,3]
[null,null,null,null,null,null,null,null,null,null,null,null,null,null,null,null,1,1,1,3]
["1.3.3.3",null,"3)    Plate compactor and tampers   ","hr",40,null,null,null,null,null,null,null,null,null,null,null,1,1,1,3]
[null,null,null,null,null,null,null,null,null,null,null,null,null,null,null,null,1,1,1,3]
["1.3.3.4",null,"4)    Motor grader 150 - 160 Kw  ","hr",40,null,null,null,null,null,null,null,null,null,null,null,1,1,1,3]
[null,null,null,null,null,null,null,null,null,null,null,null,null,null,null,null,1,1,1,3]
["1.3.3.5",null,"5)    Vibrating roller (500 - 630kg)   ","hr",40,null,null,null,null,null,null,null,null,null,null,null,1,1,1,3]
[null,null,null,null,null,null,null,null,null,null,null,null,null,null,null,null,1,1,1,3]
["1.3.3.6",null,"6)    Concrete mixer   ","hr",40,null,null,null,null,null,null,null,null,null,null,null,1,1,1,3]
[null,null,null,null,null,null,null,null,null,null,null,null,null,null,null,null,1,1,1,3]
["1.3.3.7",null,"7)    Concrete saw (self propelled)    ","hr",40,null,null,null,null,null,null,null,null,null,null,null,1,1,1,3]
[null,null,null,null,null,null,null,null,null,null,null,null,null,null,null,null,{"$f":"IF(K283=\"No comment\",0,1)","v":1},{"$f":"IF(L283=\"No comment\",0,1)","v":1},{"$f":"IF(M283=\"No comment\",0,1)","v":1},{"$f":"SUM(N283:S283)","v":3}]
["1.3.3.8",null,"8)    TLB","hr",40,null,null,null,null,null,null,null,null,null,null,null,1,1,1,3]
[null,null,null,null,null,null,null,null,null,null,null,null,null,null,null,null,1,1,1,3]
["1.3.3.9",null,"9)    Side Boom","hr",40,null,null,null,null,null,null,null,null,null,null,null,1,1,1,3]
[null,null,null,null,null,null,null,null,null,null,null,null,null,null,null,null,1,1,1,3]
["1.3.3.10",null,"10)  LDV's - Capacity 1 ton","hr",40,null,null,null,null,null,null,null,null,null,null,null,1,1,1,3]
[null,null,null,null,null,null,null,null,null,null,null,null,null,null,null,null,1,1,1,3]
["1.3.3.11",null,"11)  Compressor ",null,null,null,null,null,null,null,null,null,null,null,null,null,1,1,1,3]
[null,null,null,null,null,null,null,null,null,null,null,null,null,null,null,null,1,1,1,3]
["1.3.3.11.1",null,"   i. Small up to 200 cfm ","hr",40,null,null,null,null,null,null,null,null,null,null,null,1,1,1,3]
[null,null,null,null,null,null,null,null,null,null,null,null,null,null,null,null,1,1,1,3]
["1.3.3.11.2",null,"  ii. Large greater than 200 cfm","hr",40,null,null,null,null,null,null,null,null,null,null,null,1,1,1,3]
[null,null,null,null,null,null,null,null,null,null,null,null,null,null,null,null,1,1,1,3]
["1.3.3.12",null,"12)  Generator (Diesel driven)",null,null,null,null,null,null,null,null,null,null,null,null,null,1,1,1,3]
[null,null,null,null,null,null,null,null,null,null,null,null,null,null,null,null,1,1,1,3]
["1.3.3.12.1",null,"   i. Small - 5 kVA (Diesel driven)","hr",40,null,null,null,null,null,null,null,null,null,null,null,1,1,1,3]
[null,null,null,null,null,null,null,null,null,null,null,null,null,null,null,null,1,1,1,3]
["1.3.3.12.2",null,"  ii. Medium – greater than 5kVA and up to 10 kVA","hr",40,null,null,null,null,null,null,null,null,null,null,null,1,1,1,3]
[null,null,null,null,null,null,null,null,null,null,null,null,null,null,null,null,1,1,1,3]
["1.3.3.12.3",null,"  iii. Large - greater than 10 kVA","hr",40,null,null,null,null,null,null,null,null,null,null,null,1,1,1,3]
[null,null,null,null,null,null,null,null,null,null,null,null,null,null,null,null,1,1,1,3]
["1.3.3.13",null,"13)  Tipper truck",null,null,null,null,null,null,null,null,null,null,null,null,null,1,1,1,3]
[null,null,null,null,null,null,null,null,null,null,null,null,null,null,null,null,1,1,1,3]
["1.3.3.13.1",null,"   i. Capacity 6m³ (small)","hr",40,null,null,null,null,null,null,null,null,null,null,null,1,1,1,3]
[null,null,null,null,null,null,null,null,null,null,null,null,null,null,null,null,1,1,1,3]
["1.3.3.13.2",null,"  ii. Capacity 10m³ (medium)","hr",40,null,null,null,null,null,null,null,null,null,null,null,1,1,1,3]
[null,null,null,null,null,null,null,null,null,null,null,null,null,null,null,null,1,1,1,3]
["1.3.3.13.3",null,"  iii. Capacity 12m³ (large)","hr",40,null,null,null,null,null,null,null,null,null,null,null,1,1,1,3]
[null,null,null,null,null,null,null,null,null,null,null,null,null,null,null,null,1,1,1,3]
["1.3.3.14",null,"14)  Crane truck",null,null,null,null,null,null,null,null,null,null,null,null,null,1,1,1,3]
[null,null,null,null,null,null,null,null,null,null,null,null,null,null,null,null,1,1,1,3]
["1.3.3.14.1",null,"   i. Capacity 2 - 4 ton (small)","hr",40,null,null,null,null,null,null,null,null,null,null,null,1,1,1,3]
[null,null,null,null,null,null,null,null,null,null,null,null,null,null,null,null,1,1,1,3]
["1.3.3.14.2",null,"  ii. Capacity greater than 4 ton up to 6 tons (medium)","hr",40,null,null,null,null,null,null,null,null,null,null,null,1,1,1,3]
[null,null,null,null,null,null,null,null,null,null,null,null,null,null,null,null,1,1,1,3]
["1.3.3.14.3",null,"  iii. Capacity more than 6 tons up to 8 tons (large)","hr",40,null,null,null,null,null,null,null,null,null,null,null,1,1,1,3]
[null,null,null,null,null,null,null,null,null,null,null,null,null,null,null,null,1,1,1,3]
[{"$f":"CONCATENATE($A$268,\".\",LEFT(C320,2))","v":"1.3.3.15"},null,"15)  Flatbed trucks",null,null,null,null,null,null,null,null,null,null,null,null,null,1,1,1,3]
[null,null,null,null,null,null,null,null,null,null,null,null,null,null,null,null,1,1,1,3]
[{"$f":"IF(C322<>\"\",CONCATENATE($A$320,\".\",COUNTA($C$322:C322)),\"\")","v":"1.3.3.15.1"},null,"   i. Capacity 3 ton (small)","hr",40,null,null,null,null,null,null,null,null,null,null,null,1,1,1,3]
[null,null,null,null,null,null,null,null,null,null,null,null,null,null,null,null,1,1,1,3]
[{"$f":"IF(C324<>\"\",CONCATENATE($A$320,\".\",COUNTA($C$322:C324)),\"\")","v":"1.3.3.15.2"},null,"  ii. Capacity 5 ton (medium)","hr",40,null,null,null,null,null,null,null,null,null,null,null,1,1,1,3]
[null,null,null,null,null,null,null,null,null,null,null,null,null,null,null,null,1,1,1,3]
[{"$f":"IF(C326<>\"\",CONCATENATE($A$320,\".\",COUNTA($C$322:C326)),\"\")","v":"1.3.3.15.3"},null,"  iii. Capacity 10 ton (large)","hr",40,null,null,null,null,null,null,null,null,null,null,null,1,1,1,3]
[null,null,null,null,null,null,null,null,null,null,null,null,null,null,null,null,1,1,1,3]
["TOTAL CARRIED FORWARD TO NEXT PAGE",null,null,null,null,null,null,null,null,null,null,null,null,null,null,null,1,1,1,3]
["ITEM NO","PAYMENT CLAUSE","DESCRIPTION","UNIT","QUANTITY","RATE","AMOUNT",null,null,null,null,null,null,null,null,null,1,1,1,3]
[null,null,"TOTAL CARRIED FROM PREVIOUS PAGE",null,null,null,null,null,null,null,null,null,null,null,null,null,1,1,1,3]
[]
[{"$f":"CONCATENATE($A$268,\".\",LEFT(C332,2))","v":"1.3.3.16"},null,"16)  Conservancy/ Water  tankers",null,null,null,null,null,null,null,null,null,null,null,null,null,1,1,1,3]
[null,null,null,null,null,null,null,null,null,null,null,null,null,null,null,null,1,1,1,3]
[{"$f":"IF(C334<>\"\",CONCATENATE($A$332,\".\",COUNTA($C$334:C334)),\"\")","v":"1.3.3.16.1"},null,"   i. Capacity 6,000 litres (small)","hr",40,null,null,null,null,null,null,null,null,null,null,null,1,1,1,3]
[{"$f":"IF(C335<>\"\",CONCATENATE($A$332,\".\",COUNTA($C$334:C335)),\"\")","v":""},null,null,null,null,null,null,null,null,null,null,null,null,null,null,null,1,1,1,3]
[{"$f":"IF(C336<>\"\",CONCATENATE($A$332,\".\",COUNTA($C$334:C336)),\"\")","v":"1.3.3.16.2"},null,"  ii. Capacity 9,000 litres (medium)","hr",40,null,null,null,null,null,null,null,null,null,null,null,1,1,1,3]
[{"$f":"IF(C337<>\"\",CONCATENATE($A$332,\".\",COUNTA($C$334:C337)),\"\")","v":""},null,null,null,null,null,null,null,null,null,null,null,null,null,null,null,1,1,1,3]
[{"$f":"IF(C338<>\"\",CONCATENATE($A$332,\".\",COUNTA($C$334:C338)),\"\")","v":"1.3.3.16.3"},null,"  iii. Capacity 15,000 litres (large)","hr",40,null,null,null,null,null,null,null,null,null,null,null,1,1,1,3]
[{"$f":"IF(C339<>\"\",CONCATENATE($A$332,\".\",COUNTA($C$334:C339)),\"\")","v":""},null,null,null,null,null,null,null,null,null,null,null,null,null,null,null,1,1,1,3]
[{"$f":"CONCATENATE($A$268,\".\",LEFT(C340,2))","v":"1.3.3.17"},null,"17)  Excavator (Crawler excavator)",null,null,null,null,null,null,null,null,null,null,null,null,null,1,1,1,3]
[null,null,null,null,null,null,null,null,null,null,null,null,null,null,null,null,1,1,1,3]
[{"$f":"IF(C342<>\"\",CONCATENATE($A$340,\".\",COUNTA($C$342:C342)),\"\")","v":"1.3.3.17.1"},null,"   i. 20 tonne ","hr",40,null,null,null,null,null,null,null,null,null,null,null,1,1,1,3]
[{"$f":"IF(C343<>\"\",CONCATENATE($A$340,\".\",COUNTA($C$342:C343)),\"\")","v":""},null,null,null,null,null,null,null,null,null,null,null,null,null,null,null,1,1,1,3]
[{"$f":"IF(C344<>\"\",CONCATENATE($A$340,\".\",COUNTA($C$342:C344)),\"\")","v":"1.3.3.17.2"},null,"  ii. 30 tonne","hr",40,null,null,null,null,null,null,null,null,null,null,null,1,1,1,3]
[{"$f":"IF(C345<>\"\",CONCATENATE($A$340,\".\",COUNTA($C$342:C345)),\"\")","v":""},null,null,null,null,null,null,null,null,null,null,null,null,null,null,null,1,1,1,3]
[{"$f":"CONCATENATE($A$268,\".\",LEFT(C346,2))","v":"1.3.3.18"},null,"18)  TLB's (Tractor loader backhoe)",null,null,null,null,null,null,null,null,null,null,null,null,null,1,1,1,3]
[null,null,null,null,null,null,null,null,null,null,null,null,null,null,null,null,1,1,1,3]
[{"$f":"IF(C348<>\"\",CONCATENATE($A$346,\".\",COUNTA($C$348:C348)),\"\")","v":"1.3.3.18.1"},null,"   i. 2x4","hr",40,null,null,null,null,null,null,null,null,null,null,null,{"$f":"IF(K348=\"No comment\",0,1)","v":1},{"$f":"IF(L348=\"No comment\",0,1)","v":1},{"$f":"IF(M348=\"No comment\",0,1)","v":1},{"$f":"SUM(N348:S348)","v":3}]
[{"$f":"IF(C349<>\"\",CONCATENATE($A$346,\".\",COUNTA($C$348:C349)),\"\")","v":""},null,null,null,null,null,null,null,null,null,null,null,null,null,null,null,1,1,1,3]
[{"$f":"IF(C350<>\"\",CONCATENATE($A$346,\".\",COUNTA($C$348:C350)),\"\")","v":"1.3.3.18.2"},null,"  ii. 4x4","hr",40,null,null,null,null,null,null,null,null,null,null,null,1,1,1,3]
[null,null,null,null,null,null,null,null,null,null,null,null,null,null,null,null,1,1,1,3]
[{"$f":"CONCATENATE($A$268,\".\",LEFT(C352,2))","v":"1.3.3.19"},null,"19)  Walk behind vibrating rollers",null,null,null,null,null,null,null,null,null,null,null,null,null,1,1,1,3]
[null,null,null,null,null,null,null,null,null,null,null,null,null,null,null,null,1,1,1,3]
[{"$f":"IF(C354<>\"\",CONCATENATE($A$352,\".\",COUNTA($C$354:C354)),\"\")","v":"1.3.3.19.1"},null,"   i. Model BW 61 (small)","hr",40,null,null,null,null,null,null,null,null,null,null,null,1,1,1,3]
[{"$f":"IF(C355<>\"\",CONCATENATE($A$352,\".\",COUNTA($C$354:C355)),\"\")","v":""},null,null,null,null,null,null,null,null,null,null,null,null,null,null,null,1,1,1,3]
[{"$f":"IF(C356<>\"\",CONCATENATE($A$352,\".\",COUNTA($C$354:C356)),\"\")","v":"1.3.3.19.2"},null,"  ii. Model BW 76 (medium)","hr",40,null,null,null,null,null,null,null,null,null,null,null,1,1,1,3]
[{"$f":"IF(C357<>\"\",CONCATENATE($A$352,\".\",COUNTA($C$354:C357)),\"\")","v":""},null,null,null,null,null,null,null,null,null,null,null,null,null,null,null,1,1,1,3]
[{"$f":"IF(C358<>\"\",CONCATENATE($A$352,\".\",COUNTA($C$354:C358)),\"\")","v":"1.3.3.19.3"},null,"  iii. Model BW 90 (large)","hr",40,null,null,null,null,null,null,null,null,null,null,null,1,1,1,3]
[null,null,null,null,null,null,null,null,null,null,null,null,null,null,null,null,1,1,1,3]
[{"$f":"CONCATENATE($A$268,\".\",LEFT(C360,2))","v":"1.3.3.20"},null,"20)  Compactors",null,null,null,null,null,null,null,null,null,null,null,null,null,1,1,1,3]
[null,null,null,null,null,null,null,null,null,null,null,null,null,null,null,null,1,1,1,3]
[{"$f":"IF(C362<>\"\",CONCATENATE($A$360,\".\",COUNTA($C$362:C362)),\"\")","v":"1.3.3.20.1"},null,"   i. Wacker","hr",40,null,null,null,null,null,null,null,null,null,null,null,1,1,1,3]
[{"$f":"IF(C363<>\"\",CONCATENATE($A$360,\".\",COUNTA($C$362:C363)),\"\")","v":""},null,null,null,null,null,null,null,null,null,null,null,null,null,null,null,1,1,1,3]
[{"$f":"IF(C364<>\"\",CONCATENATE($A$360,\".\",COUNTA($C$362:C364)),\"\")","v":"1.3.3.20.2"},null,"  ii. Plate compactor","hr",40,null,null,null,null,null,null,null,null,null,null,null,1,1,1,3]
[{"$f":"IF(C365<>\"\",CONCATENATE($A$360,\".\",COUNTA($C$362:C365)),\"\")","v":""},null,null,null,null,null,null,null,null,null,null,null,null,null,null,null,1,1,1,3]
[{"$f":"CONCATENATE($A$268,\".\",LEFT(C366,2))","v":"1.3.3.21"},null,"21)  Compressors (Potable Diesiel Compressor)",null,null,null,null,null,null,null,null,null,null,null,null,null,1,1,1,3]
[null,null,null,null,null,null,null,null,null,null,null,null,null,null,null,null,1,1,1,3]
[{"$f":"IF(C368<>\"\",CONCATENATE($A$366,\".\",COUNTA($C$368:C368)),\"\")","v":"1.3.3.21.1"},null,"   i. Small up to 200 cfm","hr",40,null,null,null,null,null,null,null,null,null,null,null,1,1,1,3]
[{"$f":"IF(C369<>\"\",CONCATENATE($A$366,\".\",COUNTA($C$368:C369)),\"\")","v":""},null,null,null,null,null,null,null,null,null,null,null,null,null,null,null,1,1,1,3]
[{"$f":"IF(C370<>\"\",CONCATENATE($A$366,\".\",COUNTA($C$368:C370)),\"\")","v":"1.3.3.21.2"},null,"  ii. Large greater than 200 cfm","hr",40,null,null,null,null,null,null,null,null,null,null,null,1,1,1,3]
[null,null,null,null,null,null,null,null,null,null,null,null,null,null,null,null,1,1,1,3]
[{"$f":"CONCATENATE($A$268,\".\",LEFT(C372,2))","v":"1.3.3.22"},null,"22)  Portable water pumps",null,null,null,null,null,null,null,null,null,null,null,null,null,1,1,1,3]
[{"$f":"IF(C373<>\"\",CONCATENATE($A$372,\".\",COUNTA($C373:C$374)),\"\")","v":""},null,null,null,null,null,null,null,null,null,null,null,null,null,null,null,1,1,1,3]
[{"$f":"IF(C374<>\"\",CONCATENATE($A$372,\".\",COUNTA($C$374:C374)),\"\")","v":"1.3.3.22.1"},null,"  i. Small – up to 2” diameter","hr",40,null,null,null,null,null,null,null,null,null,null,null,1,1,1,3]
[{"$f":"IF(C375<>\"\",CONCATENATE($A$372,\".\",COUNTA($C$374:C375)),\"\")","v":""},null,null,null,null,null,null,null,null,null,null,null,null,null,null,null,1,1,1,3]
[{"$f":"IF(C376<>\"\",CONCATENATE($A$372,\".\",COUNTA($C$374:C376)),\"\")","v":"1.3.3.22.2"},null,"  ii. Medium – greater than 2” and up to 6” diameter","hr",40,null,null,null,null,null,null,null,null,null,null,null,1,1,1,3]
[null,null,null,null,null,null,null,null,null,null,null,null,null,null,null,null,1,1,1,3]
[{"$f":"IF(C378<>\"\",CONCATENATE($A$372,\".\",COUNTA($C$378:C378,C374,C376)),\"\")","v":"1.3.3.22.3"},null," iii. Large – greater than 6”","hr",40,null,null,null,null,null,null,null,null,null,null,null,1,1,1,3]
[{"$f":"IF(C379<>\"\",CONCATENATE($A$372,\".\",COUNTA($C$378:C379,C375,#REF!)),\"\")","v":""},null,null,null,null,null,{"$f":"IF(E379<>\"\",E379*F379,\"\")","v":""},null,null,null,null,null,null,null,null,null,1,1,1,3]
[1.4,8.8000000000000007,"TEMPORARY WORKS",null,null,null,"",null,null,null,null,null,null,null,null,null,1,1,1,3]
[null,null,null,null,null,null,"",null,null,null,null,null,null,null,null,null,1,1,1,3]
["1.4.1","PSA 8.8.2","Dealing with traffic or accommodation of traffic and access to properties ","Sum",1,null,null,null,null,null,null,null,null,null,null,null,1,1,1,3]
[null,null,null,null,null,null,null,null,null,null,null,null,null,null,null,null,1,1,1,3]
["1.4.2","8.8.3","Protection of the existing chambers, by-pass works and electrical substation until construction in vicinity is complete","Sum",1,null,null,null,null,null,null,null,null,null,null,null,1,1,1,3]
[null,null,null,null,null,null,null,null,null,null,null,null,null,null,null,null,1,1,1,3]
["1.4.3","PSA 8.8.4","Existing Services",null,null,null,null,null,null,null,null,null,null,null,null,null,1,1,1,3]
[null,null,null,null,null,null,null,null,null,null,null,null,null,null,null,null,1,1,1,3]
["1.4.3.1",null,"(a)   i)Supply or hire of specialist equipment ","Prov. Sum",1,300000,{"$f":"F388*E388","v":300000},null,null,null,null,null,null,null,null,null,1,1,1,3]
[null,null,null,null,null,null,null,null,null,null,null,null,null,null,null,null,1,1,1,3]
["1.4.3.1",null,"ii) Overhead, charges and profit fee for the Main Contractor to oversee sub-contracted works. ","%",0.1,300000,{"$f":"F390*E390","v":30000},null,null,null,null,null,null,null,null,null,1,1,1,3]
[null,null,null,null,null,null,null,null,null,null,null,null,null,null,null,null,1,1,1,3]
["1.4.3.2",null,"(b)   Excavation by hand in soft material to expose existing services","m3",20,null,null,null,null,null,null,null,null,null,null,null,1,1,1,3]
[null,null,null,null,null,null,null,null,null,null,null,null,null,null,null,null,1,1,1,3]
["1.4.4","PSA 8.8.6","Dealing with water","Sum",1,null,null,null,null,null,null,null,null,null,null,null,1,1,1,3]
[null,null,null,null,null,null,null,null,null,null,null,null,null,null,null,null,1,1,1,3]
["1.4.5","PSA 8.8.7","Dealing with other Service Authorities, obtaining of wayleaves, etc","Sum ",1,null,null,null,null,null,null,null,null,null,null,null,1,1,1,3]
[null,null,null,null,null,null,{"$f":"IF(E397<>\"\",E397*F397,\"\")","v":""},null,null,null,null,null,null,null,null,null,1,1,1,3]
["1.5","PSSC","Management of SMME",null,null,null,null,null,null,null,null,null,null,null,null,null,1,1,1,3]
[null,null,null,null,null,null,null,null,null,null,null,null,null,null,null,null,1,1,1,3]
[{"$f":"IF(C400<>\"\",CONCATENATE($A$398,\".\",COUNTA($C$400:C400)),\"\")","v":"1.5.1"},"PSSC 1 ","1 Value of Sub-Contracted Works  (R ___________________)",null,null,17786040.800000001,null,null,null,null,null,null,null,null,null,null,1,1,1,3]
[{"$f":"IF(C401<>\"\",CONCATENATE($A$398,\".\",COUNTA($C$400:C401)),\"\")","v":""},null,null,null,null,null,null,null,null,null,null,null,null,null,null,null,1,1,1,3]
[{"$f":"IF(C402<>\"\",CONCATENATE($A$398,\".\",LEFT($C$402)),\"\")","v":"1.5.2"},"PSSC 2","2 Overhead, charges and profit fee for the Main Contractor to oversee sub-contracted works. ","%",null,null,null,null,null,null,null,null,null,null,null,null,1,1,1,3]
[{"$f":"IF(C403<>\"\",CONCATENATE($A$398,\".\",COUNTA($C$400:C403)),\"\")","v":""},null,null,null,null,null,null,null,null,null,null,null,null,null,null,null,1,1,1,3]
[{"$f":"IF(C404<>\"\",CONCATENATE($A$398,\".\",LEFT($C$404)),\"\")","v":"1.5.3"},"PSSC 3","3 Training for SMMEs","Prov. Sum",null,1500000,1500000,null,null,null,null,null,null,null,null,null,1,1,1,3]
[{"$f":"IF(C405<>\"\",CONCATENATE($A$398,\".\",LEFT($C$404)),\"\")","v":""},null,null,null,null,null,null,null,null,null,null,null,null,null,null,null,1,1,1,3]
[{"$f":"IF(C406<>\"\",CONCATENATE($A$398,\".\",LEFT($C$406)),\"\")","v":"1.5.4"},"PSSC 4","4 Overhead, charges and profit for the Main Contractor to provide for training for SMMEs","%",null,1500000,null,null,null,null,null,null,null,null,null,null,1,1,1,3]
[null,null,null,null,null,null,null,null,null,null,null,null,null,null,null,null,1,1,1,3]
[null,null,null,null,null,null,null,null,null,null,null,null,null,null,null,null,1,1,1,3]
["TOTAL CARRIED TO SUMMARY PAGE",null,null,null,null,null,null,null,null,null,null,null,null,null,null,null,1,1,1,3]
["\nSECTION 2: \n\nSITE CLEARANCE",null,null,null,null,null,null,null,null,null,null,null,null,null,null,null,1,1,1,3]
[null,null,null,null,null,null,null,null,null,null,null,null,null,null,null,null,1,1,1,3]
[null,null,null,null,null,null,null,null,null,null,null,null,null,null,null,null,{"$f":"IF(K412=\"No comment\",0,1)","v":1},{"$f":"IF(L412=\"No comment\",0,1)","v":1},{"$f":"IF(M412=\"No comment\",0,1)","v":1},{"$f":"SUM(N412:S412)","v":3}]
[null,null,null,null,null,null,null,null,null,null,null,null,null,null,null,null,1,1,1,3]
[null,null,null,null,null,null,null,null,null,null,null,null,null,null,null,null,1,1,1,3]
[null,null,null,null,null,null,null,null,null,null,null,null,null,null,null,null,1,1,1,3]
[null,null,null,null,null,null,null,null,null,null,null,null,null,null,null,null,1,1,1,3]
[null,null,null,null,null,null,null,null,null,null,null,null,null,null,null,null,1,1,1,3]
[null,null,null,null,null,null,null,null,null,null,null,null,null,null,null,null,1,1,1,3]
[null,null,null,null,null,null,null,null,null,null,null,null,null,null,null,null,1,1,1,3]
[null,null,null,null,null,null,null,null,null,null,null,null,null,null,null,null,1,1,1,3]
[null,null,null,null,null,null,null,null,null,null,null,null,null,null,null,null,1,1,1,3]
[null,null,null,null,null,null,null,null,null,null,null,null,null,null,null,null,1,1,1,3]
[null,null,null,null,null,null,null,null,null,null,null,null,null,null,null,null,1,1,1,3]
[null,null,null,null,null,null,null,null,null,null,null,null,null,null,null,null,1,1,1,3]
[null,null,null,null,null,null,null,null,null,null,null,null,null,null,null,null,1,1,1,3]
[null,null,null,null,null,null,null,null,null,null,null,null,null,null,null,null,1,1,1,3]
[null,null,null,null,null,null,null,null,null,null,null,null,null,null,null,null,1,1,1,3]
[null,null,null,null,null,null,null,null,null,null,null,null,null,null,null,null,1,1,1,3]
[null,null,null,null,null,null,null,null,null,null,null,null,null,null,null,null,1,1,1,3]
[null,null,null,null,null,null,null,null,null,null,null,null,null,null,null,null,1,1,1,3]
[null,null,null,null,null,null,null,null,null,null,null,null,null,null,null,null,1,1,1,3]
[null,null,null,null,null,null,null,null,null,null,null,null,null,null,null,null,1,1,1,3]
[null,null,null,null,null,null,null,null,null,null,null,null,null,null,null,null,1,1,1,3]
[null,null,null,null,null,null,null,null,null,null,null,null,null,null,null,null,1,1,1,3]
[null,null,null,null,null,null,null,null,null,null,null,null,null,null,null,null,1,1,1,3]
[null,null,null,null,null,null,null,null,null,null,null,null,null,null,null,null,1,1,1,3]
[null,null,null,null,null,null,null,null,null,null,null,null,null,null,null,null,1,1,1,3]
[null,null,null,null,null,null,null,null,null,null,null,null,null,null,null,null,1,1,1,3]
[null,null,null,null,null,null,null,null,null,null,null,null,null,null,null,null,1,1,1,3]
[null,null,null,null,null,null,null,null,null,null,null,null,null,null,null,null,1,1,1,3]
[null,null,null,null,null,null,null,null,null,null,null,null,null,null,null,null,1,1,1,3]
[null,null,null,null,null,null,null,null,null,null,null,null,null,null,null,null,1,1,1,3]
[null,null,null,null,null,null,null,null,null,null,null,null,null,null,null,null,1,1,1,3]
[null,null,null,null,null,null,null,null,null,null,null,null,null,null,null,null,1,1,1,3]
[null,null,null,null,null,null,null,null,null,null,null,null,null,null,null,null,1,1,1,3]
[null,null,null,null,null,null,null,null,null,null,null,null,null,null,null,null,1,1,1,3]
[null,null,null,null,null,null,null,null,null,null,null,null,null,null,null,null,1,1,1,3]
[null,null,null,null,null,null,null,null,null,null,null,null,null,null,null,null,1,1,1,3]
[null,null,null,null,null,null,null,null,null,null,null,null,null,null,null,null,1,1,1,3]
[null,null,null,null,null,null,null,null,null,null,null,null,null,null,null,null,1,1,1,3]
[null,null,null,null,null,null,null,null,null,null,null,null,null,null,null,null,1,1,1,3]
[null,null,null,null,null,null,null,null,null,null,null,null,null,null,null,null,1,1,1,3]
[null,null,null,null,null,null,null,null,null,null,null,null,null,null,null,null,1,1,1,3]
[null,null,null,null,null,null,null,null,null,null,null,null,null,null,null,null,1,1,1,3]
[null,null,null,null,null,null,null,null,null,null,null,null,null,null,null,null,1,1,1,3]
[null,null,null,null,null,null,null,null,null,null,null,null,null,null,null,null,1,1,1,3]
[null,null,null,null,null,null,null,null,null,null,null,null,null,null,null,null,1,1,1,3]
[null,null,null,null,null,null,null,null,null,null,null,null,null,null,null,null,1,1,1,3]
[null,null,null,null,null,null,null,null,null,null,null,null,null,null,null,null,1,1,1,3]
[null,null,null,null,null,null,null,null,null,null,null,null,null,null,null,null,1,1,1,3]
[null,null,null,null,null,null,null,null,null,null,null,null,null,null,null,null,1,1,1,3]
[null,null,null,null,null,null,null,null,null,null,null,null,null,null,null,null,1,1,1,3]
[null,null,null,null,null,null,null,null,null,null,null,null,null,null,null,null,1,1,1,3]
[null,null,null,null,null,null,null,null,null,null,null,null,null,null,null,null,1,1,1,3]
[null,null,null,null,null,null,null,null,null,null,null,null,null,null,null,null,1,1,1,3]
[null,null,null,null,null,null,null,null,null,null,null,null,null,null,null,null,1,1,1,3]
[null,null,null,null,null,null,null,null,null,null,null,null,null,null,null,null,1,1,1,3]
[null,null,null,null,null,null,null,null,null,null,null,null,null,null,null,null,1,1,1,3]
[null,null,null,null,null,null,null,null,null,null,null,null,null,null,null,null,1,1,1,3]
[null,null,null,null,null,null,null,null,null,null,null,null,null,null,null,null,1,1,1,3]
[null,null,null,null,null,null,null,null,null,null,null,null,null,null,null,null,1,1,1,3]
[null,null,null,null,null,null,null,null,null,null,null,null,null,null,null,null,1,1,1,3]
[null,null,null,null,null,null,null,null,null,null,null,null,null,null,null,null,1,1,1,3]
[null,null,null,null,null,null,null,null,null,null,null,null,null,null,null,null,1,1,1,3]
[null,null,null,null,null,null,null,null,null,null,null,null,null,null,null,null,1,1,1,3]
[null,null,null,null,null,null,null,null,null,null,null,null,null,null,null,null,{"$f":"IF(K476=\"No comment\",0,1)","v":1},{"$f":"IF(L476=\"No comment\",0,1)","v":1},{"$f":"IF(M476=\"No comment\",0,1)","v":1},{"$f":"SUM(N476:S476)","v":3}]
[null,null,null,null,null,null,null,null,null,null,null,null,null,null,null,null,1,1,1,3]
[null,null,null,null,null,null,null,null,null,null,null,null,null,null,null,null,1,1,1,3]
[null,null,null,null,null,null,null,null,null,null,null,null,null,null,null,null,1,1,1,3]
[null,null,null,null,null,null,null,null,null,null,null,null,null,null,null,null,1,1,1,3]
[null,null,null,null,null,null,null,null,null,null,null,null,null,null,null,null,1,1,1,3]
[null,null,null,null,null,null,null,null,null,null,null,null,null,null,null,null,1,1,1,3]
[null,null,null,null,null,null,null,null,null,null,null,null,null,null,null,null,1,1,1,3]
[null,null,null,null,null,null,null,null,null,null,null,null,null,null,null,null,1,1,1,3]
[null,null,null,null,null,null,null,null,null,null,null,null,null,null,null,null,1,1,1,3]
[null,null,null,null,null,null,null,null,null,null,null,null,null,null,null,null,1,1,1,3]
[null,null,null,null,null,null,null,null,null,null,null,null,null,null,null,null,1,1,1,3]
[null,null,null,null,null,null,null,null,null,null,null,null,null,null,null,null,1,1,1,3]
[null,null,null,null,null,null,null,null,null,null,null,null,null,null,null,null,1,1,1,3]
[null,null,null,null,null,null,null,null,null,null,null,null,null,null,null,null,1,1,1,3]
["Contract JW14090R\nReplacement of 600 mm Diameter Bulk Steel Water Pipeline from Linbro Reservoir to Alexandra Township",null,null,null,null,"Bill of Quantities \nPart 2: Civil Works",null,null,null,null,null,null,null,null,null,null,1,1,1,3]
["ITEM NO","PAYMENT CLAUSE","DESCRIPTION","UNIT","QUANTITY","RATE","AMOUNT",null,null,null,null,null,null,null,null,null,1,1,1,3]
[null,null,null,null,null,null,null,null,null,null,null,null,null,null,null,null,1,1,1,3]
[null,null,"SECTION 2",null,null,null,null,null,null,null,null,null,null,null,null,null,1,1,1,3]
[null,null,null,null,null,null,null,null,null,null,null,null,null,null,null,null,1,1,1,3]
[2,"SANS 1200C","SITE CLEARANCE",null,null,null,null,null,null,null,null,null,null,null,null,null,1,1,1,3]
[2.1,"PSC 8.2.1","Clear and grub ","m",{"$f":"(1180+150)*1.1","v":1463.0000000000002},null,null,null,null,null,null,null,null,null,null,null,1,1,1,3]
[null,null,null,null,null,null,null,null,null,null,null,null,null,null,null,null,1,1,1,3]
[2.2000000000000002,"8.2.2","Remove and grub all large trees and tree stumps,  of girth: ",null,null,null,null,null,null,null,null,null,null,null,null,null,1,1,1,3]
[null,null,null,null,null,null,null,null,null,null,null,null,null,null,null,null,1,1,1,3]
["2.2.1",null,"(a) Exceeding 1 m but not 2m ","No.",25,null,null,null,null,null,null,null,null,null,null,null,1,1,1,3]
[null,null,null,null,null,null,null,null,null,null,null,null,null,null,null,null,1,1,1,3]
["2.2.2",null,"(b) Exceeding 2m but not 3m ","No.",1,null,null,null,null,null,null,null,null,null,null,null,1,1,1,3]
[null,null,null,null,null,null,null,null,null,null,null,null,null,null,null,null,1,1,1,3]
["2.2.3",null,"(c.)Exceeding 3m ","No.",1,null,null,null,null,null,null,null,null,null,null,null,1,1,1,3]
[null,null,null,null,null,null,null,null,null,null,null,null,null,null,null,null,1,1,1,3]
[2.2999999999999998,"PSC 8.2.11b","Removal of man-made surfaces",null,null,null,null,null,null,null,null,null,null,null,null,null,1,1,1,3]
[null,null,null,null,null,null,null,null,null,null,null,null,null,null,null,null,1,1,1,3]
["2.3.1",null,"Roadways, Asphalt and other layers                                                            ",null,null,null,null,null,null,null,null,null,null,null,null,null,1,1,1,3]
[null,null,null,null,null,null,null,null,null,null,null,null,null,null,null,null,1,1,1,3]
["2.3.1.1",null,"i)  Asphalt (≤ 50mm thick) and including base, sub-base and subgrades layers up to 800mm deep.","m²",15,null,null,null,null,null,null,null,null,null,null,null,1,1,1,3]
[null,null,null,null,null,null,null,null,null,null,null,null,null,null,null,null,1,1,1,3]
["2.3.1.2",null,"ii) Asphalt (> 50 ≤ 100mm thick) and including base, sub-base and subgrades layers up to 800mm deep.","m²",15,null,null,null,null,null,null,null,null,null,null,null,1,1,1,3]
[null,null,null,null,null,null,null,null,null,null,null,null,null,null,null,null,1,1,1,3]
["2.3.2",null,"a)Footways and driveways                                                                                 ",null,null,null,null,null,null,null,null,null,null,null,null,null,1,1,1,3]
[null,null,null,null,null,null,null,null,null,null,null,null,null,null,null,null,1,1,1,3]
["2.3.2.1",null,"Asphalt ≤ 50mm thickness ","m²",100,null,null,null,null,null,null,null,null,null,null,null,1,1,1,3]
[null,null,null,null,null,null,null,null,null,null,null,null,null,null,null,null,1,1,1,3]
["2.3.2.2",null,"Asphalt > 50 ≤ 100mm thickness                                                            ","m²",100,null,null,null,null,null,null,null,null,null,null,null,1,1,1,3]
[null,null,null,null,null,null,null,null,null,null,null,null,null,null,null,null,1,1,1,3]
["2.3.2.3",null,"Interlocking concrete segmental paving blocks (all colours)                                                         ","m²",100,null,null,null,null,null,null,null,null,null,null,null,1,1,1,3]
[null,null,null,null,null,null,null,null,null,null,null,null,null,null,null,null,1,1,1,3]
["2.3.2.4",null,"Concrete slabs (450 x 450mm)                                                 ","m²",100,null,null,null,null,null,null,null,null,null,null,null,1,1,1,3]
[null,null,null,null,null,null,null,null,null,null,null,null,null,null,null,null,1,1,1,3]
["2.3.2.5",null,"Brick paving                                                                                 ","m²",100,null,null,null,null,null,null,null,null,null,null,null,1,1,1,3]
[null,null,null,null,null,null,null,null,null,null,null,null,null,null,null,null,1,1,1,3]
["2.3.2.6",null,"Unreinforced concrete ≤75mm thick                                             ","m²",100,null,null,null,null,null,null,null,null,null,null,null,1,1,1,3]
[null,null,null,null,null,null,null,null,null,null,null,null,null,null,null,null,1,1,1,3]
["2.3.2.7",null,"Reinforced concrete ≤75mm thick                                                ","m²",100,null,null,null,null,null,null,null,null,null,null,null,1,1,1,3]
[null,null,null,null,null,null,null,null,null,null,null,null,null,null,null,null,1,1,1,3]
["2.3.2.8",null,"Grassing","m²",2000,null,null,null,null,null,null,null,null,null,null,null,1,1,1,3]
[null,null,null,null,null,null,null,null,null,null,null,null,null,null,null,null,1,1,1,3]
["2.3.2.9",null,"Kerbing (all types of kerbing)                                                                       ","m",500,null,null,null,null,null,null,null,null,null,null,null,1,1,1,3]
[null,null,null,null,null,null,null,null,null,null,null,null,null,null,null,null,1,1,1,3]
[2.5,"8.2.4","Reclear surfaces only on instructions from the Engineer ","m",1500,null,null,null,null,null,null,null,null,null,null,null,1,1,1,3]
[null,null,null,null,null,null,null,null,null,null,null,null,null,null,null,null,1,1,1,3]
[2.6,"PSDB 8.3.8","Form Firebreaks (On Employer’s Agent’s instruction)","m²",1200,null,null,null,null,null,null,null,null,null,null,null,1,1,1,3]
[null,null,null,null,null,null,null,null,null,null,null,null,null,null,null,null,1,1,1,3]
[2.7,"PSC 8.2.12","Backfilling and reinstatement of man-made surfaces","m²",250,null,null,null,null,null,null,null,null,null,null,null,1,1,1,3]
[null,null,null,null,null,null,null,null,null,null,null,null,null,null,null,null,{"$f":"IF(K540=\"No comment\",0,1)","v":1},{"$f":"IF(L540=\"No comment\",0,1)","v":1},{"$f":"IF(M540=\"No comment\",0,1)","v":1},{"$f":"SUM(N540:S540)","v":3}]
["2.7.1","PSC 8.2.12.1 ","Backfilling and reinstatement of roads ",null,null,null,null,null,null,null,null,null,null,null,null,null,1,1,1,3]
[null,null,null,null,null,null,null,null,null,null,null,null,null,null,null,null,1,1,1,3]
["2.7.1.1",null,"a)    Scenario A",null,null,null,null,null,null,null,null,null,null,null,null,null,1,1,1,3]
[null,null,null,null,null,null,null,null,null,null,null,null,null,null,null,null,1,1,1,3]
["2.7.1.1.1",null,"i)      150mm base – G2 Graded crushed stone to 102% Mod AASHTO density","m2",15,null,null,null,null,null,null,null,null,null,null,null,1,1,1,3]
[null,null,null,null,null,null,null,null,null,null,null,null,null,null,null,null,1,1,1,3]
["2.7.1.1.2",null,"ii)     150mm subbase – G5 Graded crushed stone to 97% Mod AASHTO density","m2",15,null,null,null,null,null,null,null,null,null,null,null,1,1,1,3]
[null,null,null,null,null,null,null,null,null,null,null,null,null,null,null,null,1,1,1,3]
["2.7.1.1.3",null,"iii)    150mm Fill – G7 material compacted to 95% Mod AASHTO density","m2",15,null,null,null,null,null,null,null,null,null,null,null,1,1,1,3]
[null,null,null,null,null,null,null,null,null,null,null,null,null,null,null,null,1,1,1,3]
["2.7.1.1.4",null,"iv)    150mm selected subgrade – Insitu material compacted to 90% Mod AASHTO","m2",15,null,null,null,null,null,null,null,null,null,null,null,1,1,1,3]
[null,null,null,null,null,null,null,null,null,null,null,null,null,null,null,null,1,1,1,3]
["2.7.1.2",null,"b)    Scenario B",null,null,null,null,null,null,null,null,null,null,null,null,null,1,1,1,3]
[null,null,null,null,null,null,null,null,null,null,null,null,null,null,null,null,1,1,1,3]
["2.7.1.2.1",null,"i)      150mm base – G2 material compacted to 97% Mod AASHTO density","m2",15,null,null,null,null,null,null,null,null,null,null,null,1,1,1,3]
[null,null,null,null,null,null,null,null,null,null,null,null,null,null,null,null,1,1,1,3]
["2.7.1.2.2",null,"ii)     150mm subbase – C4 Stabilised gravel material to 95% Mod AASHTO density*","m2",15,null,null,null,null,null,null,null,null,null,null,null,1,1,1,3]
[null,null,null,null,null,null,null,null,null,null,null,null,null,null,null,null,1,1,1,3]
["2.7.1.2.3",null,"iii)    150mm selected subgrade - Insitu material compacted to 93% Mod AASHTO","m2",15,null,null,null,null,null,null,null,null,null,null,null,1,1,1,3]
[null,null,null,null,null,null,null,null,null,null,null,null,null,null,null,null,1,1,1,3]
["2.7.1.3",null,"c)    Scenario C (Foot paths)",null,null,null,null,null,null,null,null,null,null,null,null,null,1,1,1,3]
["2.7.1.3.1",null,"i)      150mm base – Recovered material compacted to 93% Mod AASHTO","m2",15,null,null,null,null,null,null,null,null,null,null,null,1,1,1,3]
[null,null,null,null,null,null,null,null,null,null,null,null,null,null,null,null,1,1,1,3]
["TOTAL CARRIED FORWARD TO NEXT PAGE",null,null,null,null,null,null,null,null,null,null,null,null,null,null,null,1,1,1,3]
["ITEM NO","PAYMENT CLAUSE","DESCRIPTION","UNIT","QUANTITY","RATE","AMOUNT",null,null,null,null,null,null,null,null,null,1,1,1,3]
[null,null,"TOTAL CARRIED FROM PREVIOUS PAGE",null,null,null,null,null,null,null,null,null,null,null,null,null,1,1,1,3]
[null,null,null,null,null,null,null,null,null,null,null,null,null,null,null,null,1,1,1,3]
["2.7.1.3.2",null,"ii)     150mm selected subgrade – Insitu material compacted to 90% Mod AASHTO","m2",15,null,null,null,null,null,null,null,null,null,null,null,1,1,1,3]
[null,null,null,null,null,null,null,null,null,null,null,null,null,null,null,null,1,1,1,3]
["2.7.1.4",null,"d)    Surfacing",null,null,null,null,null,null,null,null,null,null,null,null,null,1,1,1,3]
["2.7.1.4.1",null,"i)      30mm Bitumen hot –mix: Fine","m2",15,null,null,null,null,null,null,null,null,null,null,null,1,1,1,3]
[null,null,null,null,null,null,null,null,null,null,null,null,null,null,null,null,1,1,1,3]
["2.7.1.4.2",null,"ii)     70mm Bitumen hot –mix: BTB","m2",15,null,null,null,null,null,null,null,null,null,null,null,1,1,1,3]
[null,null,null,null,null,null,null,null,null,null,null,null,null,null,null,null,1,1,1,3]
["2.7.2","PSC 8.2.12.2","Backfilling and reinstatement footways",null,null,null,null,null,null,null,null,null,null,null,null,null,1,1,1,3]
[null,null,null,"   ",null,null,null,null,null,null,null,null,null,null,null,null,1,1,1,3]
["2.7.2.1",null,"a)    Using removed materials:",null,null,null,null,null,null,null,null,null,null,null,null,null,1,1,1,3]
["2.7.2.1.1",null,"i)      Interlocking concrete segmental paving blocks (all colours)                                                         ","m2",100,null,null,null,null,null,null,null,null,null,null,null,1,1,1,3]
[null,null,null,null,null,null,null,null,null,null,null,null,null,null,null,null,1,1,1,3]
["2.7.2.1.2",null,"ii)     Concrete slabs (450 x 450mm)                                                 ","m2",100,null,null,null,null,null,null,null,null,null,null,null,1,1,1,3]
[null,null,null,null,null,null,null,null,null,null,null,null,null,null,null,null,1,1,1,3]
["2.7.2.1.3",null,"iii)    Brick paving                                                                                 ","m2",{"$f":"100","v":100},null,null,null,null,null,null,null,null,null,null,null,1,1,1,3]
[null,null,null,null,null,null,null,null,null,null,null,null,null,null,null,null,1,1,1,3]
["2.7.2.1.4",null,"iv)    Grassing","m2",500,null,null,null,null,null,null,null,null,null,null,null,1,1,1,3]
[null,null,null,null,null,null,null,null,null,null,null,null,null,null,null,null,1,1,1,3]
["2.7.2.1.5",null,"v)     Kerbing","m",500,null,null,null,null,null,null,null,null,null,null,null,1,1,1,3]
[null,null,null,null,null,null,null,null,null,null,null,null,null,null,null,null,1,1,1,3]
["2.7.2.2",null,"b)    Using new supplied materials:                                                                          ",null,null,null,null,null,null,null,null,null,null,null,null,null,1,1,1,3]
[null,null,null,null,null,null,null,null,null,null,null,null,null,null,null,null,1,1,1,3]
["2.7.2.2.1",null,"i)      30mm Bitumen hot –mix: Fine","m2",100,null,null,null,null,null,null,null,null,null,null,null,1,1,1,3]
[null,null,null,null,null,null,null,null,null,null,null,null,null,null,null,null,1,1,1,3]
["2.7.2.2.2",null,"ii)     Interlocking concrete segmental paving blocks, including a 20mm river sand bedding layer, jointing sand (plaster sand) and mortar infill between edge restraint and blocks  ",null,null,null,null,null,null,null,null,null,null,null,null,null,1,1,1,3]
[null,null,null,null,null,null,null,null,null,null,null,null,null,null,null,null,1,1,1,3]
["2.7.2.2.2.1",null,"1)         Grey blocks   ","m2",100,null,null,null,null,null,null,null,null,null,null,null,1,1,1,3]
[null,null,null,null,null,null,null,null,null,null,null,null,null,null,null,null,1,1,1,3]
["2.7.2.2.2.2",null,"2)         Coloured blocks                                                     ","m2",50,null,null,null,null,null,null,null,null,null,null,null,1,1,1,3]
[null,null,null,null,null,null,null,null,null,null,null,null,null,null,null,null,1,1,1,3]
["2.7.2.2.3",null,"iii)    Concrete slabs (450 x 450mm) including a 20mm river sand bedding layer, jointing mortar.","m2",10,null,null,null,null,null,null,null,null,null,null,null,1,1,1,3]
[null,null,null,null,null,null,null,null,null,null,null,null,null,null,null,null,1,1,1,3]
["2.7.2.2.4",null,"iv)    Brick paving including a 20mm river sand bedding layer, jointing sand (plaster sand) and mortar infill between edge restraint and bricks.                                                                               ","m2",100,null,null,null,null,null,null,null,null,null,null,null,1,1,1,3]
[null,null,null,null,null,null,null,null,null,null,null,null,null,null,null,null,1,1,1,3]
["2.7.2.2.5",null,"v)     Unreinforced concrete ≤ 75mm thick (15MPa)                                           ","m2",100,null,null,null,null,null,null,null,null,null,null,null,1,1,1,3]
[null,null,null,null,null,null,null,null,null,null,null,null,null,null,null,null,1,1,1,3]
["2.7.2.2.6",null,"vi)    Reinforced (395 mesh) concrete ≤ 75mm thick (15MPa)                                               ","m2",100,null,null,null,null,null,null,null,null,null,null,null,{"$f":"IF(K604=\"No comment\",0,1)","v":1},{"$f":"IF(L604=\"No comment\",0,1)","v":1},{"$f":"IF(M604=\"No comment\",0,1)","v":1},{"$f":"SUM(N604:S604)","v":3}]
[null,null,null,null,null,null,null,null,null,null,null,null,null,null,null,null,1,1,1,3]
["2.7.2.2.7",null,"vii)   Grassing","m2",2000,null,null,null,null,null,null,null,null,null,null,null,1,1,1,3]
[null,null,null,null,null,null,null,null,null,null,null,null,null,null,null,null,1,1,1,3]
["2.7.2.2.8",null,"viii)  Concrete channeling, including formwork, leveling and compacting 300 x 125mm cast in situ concrete of 15MPa.            ","m2",50,null,null,null,null,null,null,null,null,null,null,null,1,1,1,3]
[null,null,null,null,null,null,null,null,null,null,null,null,null,null,null,null,1,1,1,3]
["2.7.2.2.7",null,"ix)     Kerbing, including a 50mm bedding (cement and river sand), jointing mortar and 15MPa concrete haunching at all joints.                                           ","m",20,null,null,null,null,null,null,null,null,null,null,null,1,1,1,3]
[null,null,null,null,null,null,null,null,null,null,null,null,null,null,null,null,1,1,1,3]
["2.10","PSC 8.2.13 ","Reinstatement of existing masonry walls and steel palisade fences                                            ",null,null,null,null,null,null,null,null,null,null,null,null,null,1,1,1,3]
["2.10.1",null,"a)    Face brick",null,null,null,null,null,null,null,null,null,null,null,null,null,1,1,1,3]
["2.10.1.1",null,"i)              110mm wall","m2",100,null,null,null,null,null,null,null,null,null,null,null,1,1,1,3]
[null,null,null,null,null,null,null,null,null,null,null,null,null,null,null,null,1,1,1,3]
["2.10.1.2",null,"ii)             220mm wall","m2",100,null,null,null,null,null,null,null,null,null,null,null,1,1,1,3]
[null,null,null,null,null,null,null,null,null,null,null,null,null,null,null,null,1,1,1,3]
["2.10.1.3",null,"iii)            330mm wall","m2",100,null,null,null,null,null,null,null,null,null,null,null,1,1,1,3]
[null,null,null,null,null,null,null,null,null,null,null,null,null,null,null,null,1,1,1,3]
["2.10.2",null,"b)    Plastered",null,null,null,null,null,null,null,null,null,null,null,null,null,1,1,1,3]
["2.10.2.1",null,"  i) 110mm wall","m2",100,null,null,null,null,null,null,null,null,null,null,null,1,1,1,3]
[null,null,null,null,null,null,null,null,null,null,null,null,null,null,null,null,1,1,1,3]
["2.10.2.2",null," ii) 220mm wall","m2",100,null,null,null,null,null,null,null,null,null,null,null,1,1,1,3]
[null,null,null,null,null,null,null,null,null,null,null,null,null,null,null,null,1,1,1,3]
["2.10.2.3",null," iii) 330mm wall","m2",100,null,null,null,null,null,null,null,null,null,null,null,1,1,1,3]
[null,null,null,null,null,null,null,null,null,null,null,null,null,null,null,null,1,1,1,3]
["2.10.3",null,"c) Steel palisade fences (height = 2.1m)","m2",100,null,null,null,null,null,null,null,null,null,null,null,1,1,1,3]
[null,null,null,null,null,null,null,null,null,null,null,null,null,null,null,null,1,1,1,3]
[null,null,null,null,null,null,null,null,null,null,null,null,null,null,null,null,1,1,1,3]
[null,null,null,null,null,null,null,null,null,null,null,null,null,null,null,null,1,1,1,3]
["TOTAL CARRIED FORWARD TO SUMMARY",null,null,null,null,null,null,null,null,null,null,null,null,null,null,null,1,1,1,3]
["\n\n\n\n\n\n\n\n\nSECTION 3:\n\nEARTHWORKS\n\n",null,null,null,null,null,null,null,null,null,null,null,null,null,null,null,1,1,1,3]
[null,null,null,null,null,null,null,null,null,null,null,null,null,null,null,null,1,1,1,3]
[null,null,null,null,null,null,null,null,null,null,null,null,null,null,null,null,1,1,1,3]
[null,null,null,null,null,null,null,null,null,null,null,null,null,null,null,null,1,1,1,3]
[null,null,null,null,null,null,null,null,null,null,null,null,null,null,null,null,1,1,1,3]
[null,null,null,null,null,null,null,null,null,null,null,null,null,null,null,null,1,1,1,3]
[null,null,null,null,null,null,null,null,null,null,null,null,null,null,null,null,1,1,1,3]
[null,null,null,null,null,null,null,null,null,null,null,null,null,null,null,null,1,1,1,3]
[null,null,null,null,null,null,null,null,null,null,null,null,null,null,null,null,1,1,1,3]
[null,null,null,null,null,null,null,null,null,null,null,null,null,null,null,null,1,1,1,3]
[null,null,null,null,null,null,null,null,null,null,null,null,null,null,null,null,1,1,1,3]
[null,null,null,null,null,null,null,null,null,null,null,null,null,null,null,null,1,1,1,3]
[null,null,null,null,null,null,null,null,null,null,null,null,null,null,null,null,1,1,1,3]
[null,null,null,null,null,null,null,null,null,null,null,null,null,null,null,null,1,1,1,3]
[null,null,null,null,null,null,null,null,null,null,null,null,null,null,null,null,1,1,1,3]
[null,null,null,null,null,null,null,null,null,null,null,null,null,null,null,null,1,1,1,3]
[null,null,null,null,null,null,null,null,null,null,null,null,null,null,null,null,1,1,1,3]
[null,null,null,null,null,null,null,null,null,null,null,null,null,null,null,null,1,1,1,3]
[null,null,null,null,null,null,null,null,null,null,null,null,null,null,null,null,1,1,1,3]
[null,null,null,null,null,null,null,null,null,null,null,null,null,null,null,null,1,1,1,3]
[null,null,null,null,null,null,null,null,null,null,null,null,null,null,null,null,1,1,1,3]
[null,null,null,null,null,null,null,null,null,null,null,null,null,null,null,null,1,1,1,3]
[null,null,null,null,null,null,null,null,null,null,null,null,null,null,null,null,1,1,1,3]
[null,null,null,null,null,null,null,null,null,null,null,null,null,null,null,null,1,1,1,3]
[null,null,null,null,null,null,null,null,null,null,null,null,null,null,null,null,1,1,1,3]
[null,null,null,null,null,null,null,null,null,null,null,null,null,null,null,null,1,1,1,3]
[null,null,null,null,null,null,null,null,null,null,null,null,null,null,null,null,1,1,1,3]
[null,null,null,null,null,null,null,null,null,null,null,null,null,null,null,null,1,1,1,3]
[null,null,null,null,null,null,null,null,null,null,null,null,null,null,null,null,1,1,1,3]
[null,null,null,null,null,null,null,null,null,null,null,null,null,null,null,null,1,1,1,3]
[null,null,null,null,null,null,null,null,null,null,null,null,null,null,null,null,1,1,1,3]
[null,null,null,null,null,null,null,null,null,null,null,null,null,null,null,null,1,1,1,3]
[null,null,null,null,null,null,null,null,null,null,null,null,null,null,null,null,1,1,1,3]
[null,null,null,null,null,null,null,null,null,null,null,null,null,null,null,null,1,1,1,3]
[null,null,null,null,null,null,null,null,null,null,null,null,null,null,null,null,1,1,1,3]
[null,null,null,null,null,null,null,null,null,null,null,null,null,null,null,null,1,1,1,3]
[null,null,null,null,null,null,null,null,null,null,null,null,null,null,null,null,{"$f":"IF(K668=\"No comment\",0,1)","v":1},{"$f":"IF(L668=\"No comment\",0,1)","v":1},{"$f":"IF(M668=\"No comment\",0,1)","v":1},{"$f":"SUM(N668:S668)","v":3}]
[null,null,null,null,null,null,null,null,null,null,null,null,null,null,null,null,1,1,1,3]
[null,null,null,null,null,null,null,null,null,null,null,null,null,null,null,null,1,1,1,3]
[null,null,null,null,null,null,null,null,null,null,null,null,null,null,null,null,1,1,1,3]
[null,null,null,null,null,null,null,null,null,null,null,null,null,null,null,null,1,1,1,3]
[null,null,null,null,null,null,null,null,null,null,null,null,null,null,null,null,1,1,1,3]
[null,null,null,null,null,null,null,null,null,null,null,null,null,null,null,null,1,1,1,3]
[null,null,null,null,null,null,null,null,null,null,null,null,null,null,null,null,1,1,1,3]
[null,null,null,null,null,null,null,null,null,null,null,null,null,null,null,null,1,1,1,3]
[null,null,null,null,null,null,null,null,null,null,null,null,null,null,null,null,1,1,1,3]
[null,null,null,null,null,null,null,null,null,null,null,null,null,null,null,null,1,1,1,3]
[null,null,null,null,null,null,null,null,null,null,null,null,null,null,null,null,1,1,1,3]
[null,null,null,null,null,null,null,null,null,null,null,null,null,null,null,null,1,1,1,3]
[null,null,null,null,null,null,null,null,null,null,null,null,null,null,null,null,1,1,1,3]
[null,null,null,null,null,null,null,null,null,null,null,null,null,null,null,null,1,1,1,3]
[null,null,null,null,null,null,null,null,null,null,null,null,null,null,null,null,1,1,1,3]
[null,null,null,null,null,null,null,null,null,null,null,null,null,null,null,null,1,1,1,3]
[null,null,null,null,null,null,null,null,null,null,null,null,null,null,null,null,1,1,1,3]
[null,null,null,null,null,null,null,null,null,null,null,null,null,null,null,null,1,1,1,3]
[null,null,null,null,null,null,null,null,null,null,null,null,null,null,null,null,1,1,1,3]
[null,null,null,null,null,null,null,null,null,null,null,null,null,null,null,null,1,1,1,3]
[null,null,null,null,null,null,null,null,null,null,null,null,null,null,null,null,1,1,1,3]
[null,null,null,null,null,null,null,null,null,null,null,null,null,null,null,null,1,1,1,3]
[null,null,null,null,null,null,null,null,null,null,null,null,null,null,null,null,1,1,1,3]
[null,null,null,null,null,null,null,null,null,null,null,null,null,null,null,null,1,1,1,3]
[null,null,null,null,null,null,null,null,null,null,null,null,null,null,null,null,1,1,1,3]
[null,null,null,null,null,null,null,null,null,null,null,null,null,null,null,null,1,1,1,3]
[null,null,null,null,null,null,null,null,null,null,null,null,null,null,null,null,1,1,1,3]
[null,null,null,null,null,null,null,null,null,null,null,null,null,null,null,null,1,1,1,3]
[null,null,null,null,null,null,null,null,null,null,null,null,null,null,null,null,1,1,1,3]
[null,null,null,null,null,null,null,null,null,null,null,null,null,null,null,null,1,1,1,3]
[null,null,null,null,null,null,null,null,null,null,null,null,null,null,null,null,1,1,1,3]
[null,null,null,null,null,null,null,null,null,null,null,null,null,null,null,null,1,1,1,3]
[null,null,null,null,null,null,null,null,null,null,null,null,null,null,null,null,1,1,1,3]
[null,null,null,null,null,null,null,null,null,null,null,null,null,null,null,null,1,1,1,3]
[null,null,null,null,null,null,null,null,null,null,null,null,null,null,null,null,1,1,1,3]
[null,null,null,null,null,null,null,null,null,null,null,null,null,null,null,null,1,1,1,3]
[null,null,null,null,null,null,null,null,null,null,null,null,null,null,null,null,1,1,1,3]
["ITEM NO","PAYMENT CLAUSE","DESCRIPTION","UNIT","QUANTITY","RATE","AMOUNT",null,null,null,null,null,null,null,null,null,1,1,1,3]
[null,null,null,null,null,null,null,null,null,null,null,null,null,null,null,null,1,1,1,3]
[null,null,"SECTION 3",null,null,null,null,null,null,null,null,null,null,null,null,null,1,1,1,3]
[null,null,null,null,null,null,null,null,null,null,null,null,null,null,null,null,1,1,1,3]
[3,"SANS 1200DB","EARTHWORKS (PIPE TRENCHES)",null,null,null,null,null,null,null,null,null,null,null,null,null,1,1,1,3]
[null,null,null,null,null,null,null,null,null,null,null,null,null,null,null,null,1,1,1,3]
[3.1,"PSDB 8.3.1","Site Clearance and (if specified) Removal of topsoil",null,null,null,null,null,null,null,null,null,null,null,null,null,1,1,1,3]
[null,null,null,null,null,null,null,null,null,null,null,null,null,null,null,null,1,1,1,3]
["3.1.1",null,"c) Removal, stockpiling and replacing of Topsoil (depth stated) ","m3",{"$f":"(1180+130)*1.1*12*0.15","v":2593.8000000000006},null,null,null,null,null,null,null,null,null,null,null,1,1,1,3]
[null,null,null,null,null,null,null,null,null,null,null,null,null,null,null,null,1,1,1,3]
["3.1.2","8.3.6","Topsoiling","m3",{"$f":"0.15*(1180+150)*12","v":2394},null,null,null,null,null,null,null,null,null,null,null,1,1,1,3]
[null,null,null,null,null,null,null,null,null,null,null,null,null,null,null,null,1,1,1,3]
["3.1.3","8.3.7","Grassing or other Vegetation Cover","m²",{"$f":"12*(1180+150)","v":15960},null,null,null,null,null,null,null,null,null,null,null,1,1,1,3]
[null,null,null,null,null,null,null,null,null,null,null,null,null,null,null,null,1,1,1,3]
["3.2","PSDB 8.3.2","Excavation ",null,null,null,null,null,null,null,null,null,null,null,null,null,1,1,1,3]
[null,null,null,null,null,null,null,null,null,null,null,null,null,null,null,null,1,1,1,3]
["3.2.1",null,"(a) Excavate in all materials, for trenches, backfill compact and dispose of surplus material",null,null,null,null,null,null,null,null,null,null,null,null,null,1,1,1,3]
[null,null,null,null,null,null,null,null,null,null,null,null,null,null,null,null,1,1,1,3]
[null,null,"Trenches 1216mm wide for 600mm ND pipes depths up to:",null,null,null,null,null,null,null,null,null,null,null,null,null,1,1,1,3]
[null,null,null,null,null,null,null,null,null,null,null,null,null,null,null,null,1,1,1,3]
["3.2.1.1",null,"(i)  0 up to 2.5m","m³",{"$f":"0.2*(SUM(E728:E732))","v":461},null,null,null,null,null,null,null,null,null,null,null,1,1,1,3]
[null,null,null,null,null,null,null,null,null,null,null,null,null,null,null,null,1,1,1,3]
["3.2.1.2",null,"(ii) 2,5m up to 3,5m","m³",795,null,null,null,null,null,null,null,null,null,null,null,1,1,1,3]
[null,null,null,null,null,null,null,null,null,null,null,null,null,null,null,null,1,1,1,3]
["3.2.1.3",null,"(iii) 3,5m up to 4,5m","m³",1050,null,null,null,null,null,null,null,null,null,null,null,1,1,1,3]
[null,null,null,null,null,null,null,null,null,null,null,null,null,null,null,null,1,1,1,3]
["3.2.1.4",null,"(iv 4,5m up to 5,0m","m³",460,null,null,null,null,null,null,null,null,null,null,null,{"$f":"IF(K732=\"No comment\",0,1)","v":1},{"$f":"IF(L732=\"No comment\",0,1)","v":1},{"$f":"IF(M732=\"No comment\",0,1)","v":1},{"$f":"SUM(N732:S732)","v":3}]
[null,null,null,null,null,null,null,null,null,null,null,null,null,null,null,null,1,1,1,3]
["3.2.1.5",null,"(v) Exceeding 5m","m³",{"$f":"320*1.216*6","v":2334.7200000000003},null,null,null,null,null,null,null,null,null,null,null,1,1,1,3]
[null,null,null,null,null,null,null,null,null,null,null,null,null,null,null,null,1,1,1,3]
["3.2.2",null,"Extra over item (a) above for:",null,null,null,null,null,null,null,null,null,null,null,null,null,1,1,1,3]
[null,null,null,null,null,null,null,null,null,null,null,null,null,null,null,null,1,1,1,3]
["3.2.2.1","8.3.2 (b) (2)","Hard rock excavation including blasting and disposal of Excavated Rock","m³",{"$f":"E726*0.15","v":69.149999999999991},null,null,null,null,null,null,null,null,null,null,null,1,1,1,3]
[null,null,null,null,null,null,null,null,null,null,null,null,null,null,null,null,1,1,1,3]
["3.2.2.2","PSDB 8.3.2(b)","(2) Non-explosive breaking as per instruction of the Engineer","m³",50,null,null,null,null,null,null,null,null,null,null,null,1,1,1,3]
[null,null,null,null,null,null,null,null,null,null,null,null,null,null,null,null,1,1,1,3]
["3.2.2.3",null,"(3) Hand excavation and backfill where ordered by the Employer’s Agent ","m³",50,null,null,null,null,null,null,null,null,null,null,null,1,1,1,3]
[null,null,null,null,null,null,null,null,null,null,null,null,null,null,null,null,1,1,1,3]
["3.3","8.3.3.1","Make up deficiency in backfill material:",null,null,null,null,null,null,null,null,null,null,null,null,null,1,1,1,3]
[null,null,null,null,null,null,null,null,null,null,null,null,null,null,null,null,1,1,1,3]
["3.3.1",null,"(a)  From other necessary excavations on site     ","m³",300,null,null,null,null,null,null,null,null,null,null,null,1,1,1,3]
[null,null,null,null,null,null,null,null,null,null,null,null,null,null,null,null,1,1,1,3]
["3.3.2",null,"(c)  By importation from commercial sources ","m³",300,null,null,null,null,null,null,null,null,null,null,null,1,1,1,3]
[null,null,null,null,null,null,null,null,null,null,null,null,null,null,null,null,1,1,1,3]
["3.4.3","PSDB 8.3.4 a)","Shore trench opposite structure or service for depths",null,null,null,null,null,null,null,null,null,null,null,null,null,1,1,1,3]
[null,null,null,null,null,null,null,null,null,null,null,null,null,null,null,null,1,1,1,3]
["3.4.3.1",null,"(a) 0m up to 2m","m",50,null,null,null,null,null,null,null,null,null,null,null,1,1,1,3]
[null,null,null,null,null,null,null,null,null,null,null,null,null,null,null,null,1,1,1,3]
["3.4.3.2",null,"(b) 2m up to 3m","m",50,null,null,null,null,null,null,null,null,null,null,null,1,1,1,3]
[null,null,null,null,null,null,null,null,null,null,null,null,null,null,null,null,1,1,1,3]
["3.4.3.3",null,"(c.) 3m up to 4m","m",50,null,null,null,null,null,null,null,null,null,null,null,1,1,1,3]
[null,null,null,null,null,null,null,null,null,null,null,null,null,null,null,null,1,1,1,3]
["3.4.3.4",null,"(d) 4m up to 5m","m",50,null,null,null,null,null,null,null,null,null,null,null,1,1,1,3]
[null,null,null,null,null,null,null,null,null,null,null,null,null,null,null,null,1,1,1,3]
["3.4.3.5",null,"(e.) > 5m","m",50,null,null,null,null,null,null,null,null,null,null,null,1,1,1,3]
[null,null,null,null,null,null,null,null,null,null,null,null,null,null,null,null,1,1,1,3]
[3.2,"PSDB 8.3.2 b)","Extra over item (a) above for",null,null,null,null,null,null,null,null,null,null,null,null,null,1,1,1,3]
[null,null,null,null,null,null,null,null,null,null,null,null,null,null,null,null,1,1,1,3]
["3.2.1",null,"(6) Soilcrete backfill where directed by the Employer’s Agent ","m3","62",null,null,null,null,null,null,null,null,null,null,null,1,1,1,3]
[null,null,null,null,null,null,null,null,null,null,null,null,null,null,null,null,1,1,1,3]
["3.2.2",null,"(8) Dump rock","m³",250,null,null,null,null,null,null,null,null,null,null,null,1,1,1,3]
[null,null,null,null,null,null,null,null,null,null,null,null,null,null,null,null,1,1,1,3]
["3.3","PSDB 8.3.3","Excavation ancillaries",null,null,null,null,null,null,null,null,null,null,null,null,null,1,1,1,3]
[null,null,null,null,null,null,null,null,null,null,null,null,null,null,null,null,1,1,1,3]
[3.4,"PSDB 8.3.3.3","Compaction in road reserves","m3",{"$f":"ROUND((1180/2460)*622,0)","v":298},null,null,null,null,null,null,null,null,null,null,null,1,1,1,3]
[null,null,null,null,null,null,null,null,null,null,null,null,null,null,null,null,1,1,1,3]
[null,null,null,null,null,null,null,null,null,null,null,null,null,null,null,null,1,1,1,3]
[null,null,null,null,null,null,null,null,null,null,null,null,null,null,null,null,1,1,1,3]
[null,null,null,null,null,null,null,null,null,null,null,null,null,null,null,null,1,1,1,3]
[null,null,null,null,null,null,null,null,null,null,null,null,null,null,null,null,1,1,1,3]
[null,null,null,null,null,null,null,null,null,null,null,null,null,null,null,null,1,1,1,3]
[null,null,null,null,null,null,null,null,null,null,null,null,null,null,null,null,1,1,1,3]
[null,null,null,null,null,null,null,null,null,null,null,null,null,null,null,null,1,1,1,3]
[null,null,null,null,null,null,null,null,null,null,null,null,null,null,null,null,1,1,1,3]
[null,null,null,null,null,null,null,null,null,null,null,null,null,null,null,null,1,1,1,3]
[null,null,null,null,null,null,{"$f":"IF(E781<>\"\",E781*F781,\"\")","v":""},null,null,null,null,null,null,null,null,null,1,1,1,3]
["TOTAL CARRIED FORWARD TO SUMMARY",null,null,null,null,null,null,null,null,null,null,null,null,null,null,null,1,1,1,3]
["\n\n\n\n\n\n\n\n\nSECTION 4:\n\nMEDIUM PRESSURE PIPELINES\n\n",null,null,null,null,null,null,null,null,null,null,null,null,null,null,null,1,1,1,3]
[null,null,null,null,null,null,null,null,null,null,null,null,null,null,null,null,1,1,1,3]
[null,null,null,null,null,null,null,null,null,null,null,null,null,null,null,null,1,1,1,3]
[null,null,null,null,null,null,null,null,null,null,null,null,null,null,null,null,1,1,1,3]
[null,null,null,null,null,null,null,null,null,null,null,null,null,null,null,null,1,1,1,3]
[null,null,null,null,null,null,null,null,null,null,null,null,null,null,null,null,1,1,1,3]
[null,null,null,null,null,null,null,null,null,null,null,null,null,null,null,null,1,1,1,3]
[null,null,null,null,null,null,null,null,null,null,null,null,null,null,null,null,1,1,1,3]
[null,null,null,null,null,null,null,null,null,null,null,null,null,null,null,null,1,1,1,3]
[null,null,null,null,null,null,null,null,null,null,null,null,null,null,null,null,1,1,1,3]
[null,null,null,null,null,null,null,null,null,null,null,null,null,null,null,null,1,1,1,3]
[null,null,null,null,null,null,null,null,null,null,null,null,null,null,null,null,1,1,1,3]
[null,null,null,null,null,null,null,null,null,null,null,null,null,null,null,null,1,1,1,3]
[null,null,null,null,null,null,null,null,null,null,null,null,null,null,null,null,{"$f":"IF(K796=\"No comment\",0,1)","v":1},{"$f":"IF(L796=\"No comment\",0,1)","v":1},{"$f":"IF(M796=\"No comment\",0,1)","v":1},{"$f":"SUM(N796:S796)","v":3}]
[null,null,null,null,null,null,null,null,null,null,null,null,null,null,null,null,1,1,1,3]
[null,null,null,null,null,null,null,null,null,null,null,null,null,null,null,null,1,1,1,3]
[null,null,null,null,null,null,null,null,null,null,null,null,null,null,null,null,1,1,1,3]
[null,null,null,null,null,null,null,null,null,null,null,null,null,null,null,null,1,1,1,3]
[null,null,null,null,null,null,null,null,null,null,null,null,null,null,null,null,1,1,1,3]
[null,null,null,null,null,null,null,null,null,null,null,null,null,null,null,null,1,1,1,3]
[null,null,null,null,null,null,null,null,null,null,null,null,null,null,null,null,1,1,1,3]
[null,null,null,null,null,null,null,null,null,null,null,null,null,null,null,null,1,1,1,3]
[null,null,null,null,null,null,null,null,null,null,null,null,null,null,null,null,1,1,1,3]
[null,null,null,null,null,null,null,null,null,null,null,null,null,null,null,null,1,1,1,3]
[null,null,null,null,null,null,null,null,null,null,null,null,null,null,null,null,1,1,1,3]
[null,null,null,null,null,null,null,null,null,null,null,null,null,null,null,null,1,1,1,3]
[null,null,null,null,null,null,null,null,null,null,null,null,null,null,null,null,1,1,1,3]
[null,null,null,null,null,null,null,null,null,null,null,null,null,null,null,null,1,1,1,3]
[null,null,null,null,null,null,null,null,null,null,null,null,null,null,null,null,1,1,1,3]
[null,null,null,null,null,null,null,null,null,null,null,null,null,null,null,null,1,1,1,3]
[null,null,null,null,null,null,null,null,null,null,null,null,null,null,null,null,1,1,1,3]
[null,null,null,null,null,null,null,null,null,null,null,null,null,null,null,null,1,1,1,3]
[null,null,null,null,null,null,null,null,null,null,null,null,null,null,null,null,1,1,1,3]
[null,null,null,null,null,null,null,null,null,null,null,null,null,null,null,null,1,1,1,3]
[null,null,null,null,null,null,null,null,null,null,null,null,null,null,null,null,1,1,1,3]
[null,null,null,null,null,null,null,null,null,null,null,null,null,null,null,null,1,1,1,3]
[null,null,null,null,null,null,null,null,null,null,null,null,null,null,null,null,1,1,1,3]
[null,null,null,null,null,null,null,null,null,null,null,null,null,null,null,null,1,1,1,3]
[null,null,null,null,null,null,null,null,null,null,null,null,null,null,null,null,1,1,1,3]
[null,null,null,null,null,null,null,null,null,null,null,null,null,null,null,null,1,1,1,3]
[null,null,null,null,null,null,null,null,null,null,null,null,null,null,null,null,1,1,1,3]
[null,null,null,null,null,null,null,null,null,null,null,null,null,null,null,null,1,1,1,3]
[null,null,null,null,null,null,null,null,null,null,null,null,null,null,null,null,1,1,1,3]
[null,null,null,null,null,null,null,null,null,null,null,null,null,null,null,null,1,1,1,3]
[null,null,null,null,null,null,null,null,null,null,null,null,null,null,null,null,1,1,1,3]
[null,null,null,null,null,null,null,null,null,null,null,null,null,null,null,null,1,1,1,3]
[null,null,null,null,null,null,null,null,null,null,null,null,null,null,null,null,1,1,1,3]
[null,null,null,null,null,null,null,null,null,null,null,null,null,null,null,null,1,1,1,3]
[null,null,null,null,null,null,null,null,null,null,null,null,null,null,null,null,1,1,1,3]
[null,null,null,null,null,null,null,null,null,null,null,null,null,null,null,null,1,1,1,3]
[null,null,null,null,null,null,null,null,null,null,null,null,null,null,null,null,1,1,1,3]
[null,null,null,null,null,null,null,null,null,null,null,null,null,null,null,null,1,1,1,3]
[null,null,null,null,null,null,null,null,null,null,null,null,null,null,null,null,1,1,1,3]
[null,null,null,null,null,null,null,null,null,null,null,null,null,null,null,null,1,1,1,3]
[null,null,null,null,null,null,null,null,null,null,null,null,null,null,null,null,1,1,1,3]
[null,null,null,null,null,null,null,null,null,null,null,null,null,null,null,null,1,1,1,3]
[null,null,null,null,null,null,null,null,null,null,null,null,null,null,null,null,1,1,1,3]
[null,null,null,null,null,null,null,null,null,null,null,null,null,null,null,null,1,1,1,3]
[null,null,null,null,null,null,null,null,null,null,null,null,null,null,null,null,1,1,1,3]
[null,null,null,null,null,null,null,null,null,null,null,null,null,null,null,null,1,1,1,3]
[null,null,null,null,null,null,null,null,null,null,null,null,null,null,null,null,1,1,1,3]
[null,null,null,null,null,null,null,null,null,null,null,null,null,null,null,null,1,1,1,3]
[null,null,null,null,null,null,null,null,null,null,null,null,null,null,null,null,1,1,1,3]
[null,null,null,null,null,null,null,null,null,null,null,null,null,null,null,null,1,1,1,3]
[null,null,null,null,null,null,null,null,null,null,null,null,null,null,null,null,1,1,1,3]
[null,null,null,null,null,null,null,null,null,null,null,null,null,null,null,null,1,1,1,3]
[null,null,null,null,null,null,null,null,null,null,null,null,null,null,null,null,1,1,1,3]
[null,null,null,null,null,null,null,null,null,null,null,null,null,null,null,null,1,1,1,3]
[null,null,null,null,null,null,null,null,null,null,null,null,null,null,null,null,1,1,1,3]
[null,null,null,null,null,null,null,null,null,null,null,null,null,null,null,null,1,1,1,3]
[null,null,null,null,null,null,null,null,null,null,null,null,null,null,null,null,1,1,1,3]
[null,null,null,null,null,null,null,null,null,null,null,null,null,null,null,null,1,1,1,3]
[null,null,null,null,null,null,null,null,null,null,null,null,null,null,null,null,1,1,1,3]
[null,null,null,null,null,null,null,null,null,null,null,null,null,null,null,null,1,1,1,3]
["ITEM NO","PAYMENT CLAUSE","DESCRIPTION","UNIT","QUANTITY","RATE","AMOUNT",null,null,null,null,null,null,null,null,null,1,1,1,3]
[null,null,null,null,null,null,null,null,null,null,null,null,null,null,null,null,1,1,1,3]
[null,null,"SECTION 4",null,null,null,null,null,null,null,null,null,null,null,null,null,1,1,1,3]
[null,null,null,null,null,null,null,null,null,null,null,null,null,null,null,null,{"$f":"IF(K860=\"No comment\",0,1)","v":1},{"$f":"IF(L860=\"No comment\",0,1)","v":1},{"$f":"IF(M860=\"No comment\",0,1)","v":1},{"$f":"SUM(N860:S860)","v":3}]
[null,"SANS 1200 L","MEDIUM-PRESSURE PIPELINES",null,null,null,null,null,null,null,null,null,null,null,null,null,1,1,1,3]
[null,null,null,null,null,null,null,null,null,null,null,null,null,null,null,null,1,1,1,3]
["4.1","PSL 8.2.8","Recover Old Pipeline",null,null,null,null,null,null,null,null,null,null,null,null,null,1,1,1,3]
[null,null,null,null,null,null,null,null,null,null,null,null,null,null,null,null,1,1,1,3]
["4.1.1",null,"a) up to 2 m to pipe invert ","m",200,null,null,null,null,null,null,null,null,null,null,null,1,1,1,3]
[null,null,null,null,null,null,null,null,null,null,null,null,null,null,null,null,1,1,1,3]
["4.1.2",null,"(b) up to 3 m pipe invert ","m",250,null,null,null,null,null,null,null,null,null,null,null,1,1,1,3]
[null,null,null,null,null,null,null,null,null,null,null,null,null,null,null,null,1,1,1,3]
["4.1.3",null,"(c) up to 4 m pipe invert ","m",250,null,null,null,null,null,null,null,null,null,null,null,1,1,1,3]
[null,null,null,null,null,null,null,null,null,null,null,null,null,null,null,null,1,1,1,3]
["4.1.4",null,"(d) over 4 m pipe invert ","m",{"$f":"1330-SUM(E865:E870)","v":630},null,null,null,null,null,null,null,null,null,null,null,1,1,1,3]
[null,null,null,null,null,null,null,null,null,null,null,null,null,null,null,null,1,1,1,3]
[4.0999999999999996,"8.2.1","Supply, Lay, and Bed Pipes",null,null,null,null,null,null,null,null,null,null,null,null,null,1,1,1,3]
[null,null,null,null,null,null,null,null,null,null,null,null,null,null,null,null,1,1,1,3]
["4.2.1",null,"(a) 600 mm ND, 8 mm thick in accordance with PSL 3.9.2","m",{"$f":"1380","v":1380},null,null,null,null,null,null,null,null,null,null,null,1,1,1,3]
[null,null,null,null,null,null,null,null,null,null,null,null,null,null,null,null,1,1,1,3]
[4.3,"8.2.2","Extra-over 4.2.1 for the Supplying, Laying, and Bedding of Specials Complete with Couplings",null,null,null,null,null,null,null,null,null,null,null,null,null,1,1,1,3]
[null,null,null,null,null,null,null,null,null,null,null,null,null,null,null,null,1,1,1,3]
["4.3.1",null,"a) 600 mm ND Grade X42 Steel steel pipe bends with bell ends, 8mm wall thickness, 12 mm Cement Mortar Lining, as per drawing",null,null,null,null,null,null,null,null,null,null,null,null,null,1,1,1,3]
[null,null,null,null,null,null,null,null,null,null,null,null,null,null,null,null,1,1,1,3]
["4.3.1.1",null,"(i) 15 degrees up to 30 degrees bell ends","No",22,null,null,null,null,null,null,null,null,null,null,null,1,1,1,3]
[null,null,null,null,null,null,null,null,null,null,null,null,null,null,null,null,1,1,1,3]
["4.3.1.2",null,"(ii) 30 degrees up to 45 degrees bell ends","No",11,null,null,null,null,null,null,null,null,null,null,null,1,1,1,3]
[null,null,null,null,null,null,null,null,null,null,null,null,null,null,null,null,1,1,1,3]
["4.3.1.3",null,"(iii) 45 degrees up to 60 degrees bell ends","No",{"$f":"(21*3250/15000)+4","v":8.5500000000000007},null,null,null,null,null,null,null,null,null,null,null,1,1,1,3]
[null,null,null,null,null,null,null,null,null,null,null,null,null,null,null,null,1,1,1,3]
["4.3.1.4",null,"(iv) 60 degrees up to 75 degrees bell ends","No",{"$f":"(11*3250/15000)+4","v":6.3833333333333329},null,null,null,null,null,null,null,null,null,null,null,1,1,1,3]
[null,null,null,null,null,null,null,null,null,null,null,null,null,null,null,null,1,1,1,3]
["4.3.1.5",null,"(v) 75 degrees up to 90 degrees bell ends","No",{"$f":"(12*3250/15000)+4","v":6.6},null,null,null,null,null,null,null,null,null,null,null,1,1,1,3]
[null,null,null,null,null,null,null,null,null,null,null,null,null,null,null,null,1,1,1,3]
[null,null,null,null,null,null,null,null,null,null,null,null,null,null,null,null,1,1,1,3]
[4.5,"8.2.11","Anchor/Thrust Blocks and Pedestals",null,null,null,null,null,null,null,null,null,null,null,null,null,1,1,1,3]
[null,null,null,null,null,null,null,null,null,null,null,null,null,null,null,null,1,1,1,3]
["4.5.1",null,"b) Where, at the tender stage, no detailed drawings or dimensions are given or where only typical drawings are given:",null,null,null,null,null,null,null,null,null,null,null,null,null,1,1,1,3]
[null,null,null,null,null,null,null,null,null,null,null,null,null,null,null,null,1,1,1,3]
["4.5.1.1",null,"Concrete","m3",40,null,null,null,null,null,null,null,null,null,null,null,1,1,1,3]
[null,null,null,null,null,null,null,null,null,null,null,null,null,null,null,null,1,1,1,3]
["4.5.1.2",null,"Formwork","m2",150,null,null,null,null,null,null,null,null,null,null,null,1,1,1,3]
[null,null,null,null,null,null,null,null,null,null,null,null,null,null,null,null,1,1,1,3]
["4.5.1.3",null,"Reinforcement","t",2,null,null,null,null,null,null,null,null,null,null,null,1,1,1,3]
[null,null,null,null,null,null,null,null,null,null,null,null,null,null,null,null,1,1,1,3]
[4.5,"PSL 8.2.13       ","Valve and Hydrant Chambers, etc",null,null,null,null,null,null,null,null,null,null,null,null,null,1,1,1,3]
[null,null,null,null,null,null,null,null,null,null,null,null,null,null,null,null,1,1,1,3]
["4.5.1",null,"Isolating valve chamber as per drawing no. \nJW14090R-AL-DET03-W with Class 35/19 reinforced concrete","No.",2,null,null,null,null,null,null,null,null,null,null,null,1,1,1,3]
[null,null,null,null,null,null,null,null,null,null,null,null,null,null,null,null,1,1,1,3]
["4.5.2",null,"Air valve chamber as per drawing no. \nJW14090R-AL-DET04-W with Class 35/19 reinforced concrete","No.",5,null,null,null,null,null,null,null,null,null,null,null,1,1,1,3]
[null,null,null,null,null,null,null,null,null,null,null,null,null,null,null,null,1,1,1,3]
["4.5.4",null,"Scour valve chamber as per drawing no. \nJW14090R-AL-DET05-W with Class 35/19 reinforced concrete","No.",3,null,null,null,null,null,null,null,null,null,null,null,1,1,1,3]
[null,null,null,null,null,null,null,null,null,null,null,null,null,null,null,null,1,1,1,3]
["4.5.4",null,"Water meter chamber as per drawing no. \nJW14090R-AL-DET06-W with Class 35/19 reinforced concrete","No.",2,null,null,null,null,null,null,null,null,null,null,null,1,1,1,3]
[null,null,null,null,null,null,null,null,null,null,null,null,null,null,null,null,1,1,1,3]
["4.5.5",null,"Pressure reducing valve chamber as per drawing no. \nJW100-DET10.2-W01 with Class 35/19 reinforced concrete","No.",3,null,null,null,null,null,null,null,null,null,null,null,1,1,1,3]
[null,null,null,null,null,null,null,null,null,null,null,null,null,null,null,null,1,1,1,3]
["4.5.6",null,"Pressure reducing valve chamber as per drawing no. \nJW14090R-AL-DET12-W with Class 35/19 reinforced concrete","No.",1,null,null,null,null,null,null,null,null,null,null,null,1,1,1,3]
[null,null,null,null,null,null,null,null,null,null,null,null,null,null,null,null,1,1,1,3]
["4.5.7",null,"Pressure reducing valve chamber as per drawing no. \nJW14090R-AL-DET10-W with Class 35/19 reinforced concrete","No.",1,null,null,null,null,null,null,null,null,null,null,null,1,1,1,3]
[null,null,null,null,null,null,null,null,null,null,null,null,null,null,null,null,1,1,1,3]
[4.5999999999999996,"PSL 8.2.17","Connect to Existing Mains",null,null,null,null,null,null,null,null,null,null,null,null,null,1,1,1,3]
[null,null,null,null,null,null,null,null,null,null,null,null,null,null,null,null,1,1,1,3]
["4.6.1",null,"b) Etc for the other items ",null,null,null,null,null,null,null,null,null,null,null,null,null,1,1,1,3]
[]
["TOTAL CARRIED FORWARD TO NEXT PAGE",null,null,null,null,null,null,null,null,null,null,null,null,null,null,null,1,1,1,3]
["ITEM NO","PAYMENT CLAUSE","DESCRIPTION","UNIT","QUANTITY","RATE","AMOUNT",null,null,null,null,null,null,null,null,null,1,1,1,3]
[null,null,"TOTAL CARRIED FROM PREVIOUS PAGE",null,null,null,null,null,null,null,null,null,null,null,null,null,1,1,1,3]
[]
["4.6.1.1",null,"i) Connection to the existing pipes at start point - Tie in 1 as shown on dwg JW14090R-AL-LAY02-W","No.",1,null,null,null,null,null,null,null,null,null,null,null,{"$f":"IF(K926=\"No comment\",0,1)","v":1},{"$f":"IF(L926=\"No comment\",0,1)","v":1},{"$f":"IF(M926=\"No comment\",0,1)","v":1},{"$f":"SUM(N926:S926)","v":3}]
[null,null,null,null,null,null,null,null,null,null,null,null,null,null,null,null,1,1,1,3]
["4.6.1.2",null,"ii) Connection to the existing pipes at Skeen PRV Station - Tie in 2 as shown on dwg  JW14090R-AL-DET 08-W","No.",1,null,null,null,null,null,null,null,null,null,null,null,1,1,1,3]
[null,null,null,null,null,null,null,null,null,null,null,null,null,null,null,null,1,1,1,3]
["4.6.1.3",null,"iii) Connection to the existing 600 mm  - Tie in 3 as shown on dwg JW14090R-AL-DET 09-W","No.",1,null,null,null,null,null,null,null,null,null,null,null,1,1,1,3]
[null,null,null,null,null,null,null,null,null,null,null,null,null,null,null,null,1,1,1,3]
["4.6.1.4",null,"iv) Connection to the existing pipes for chamber at 17th and Vincent Tshabalala St","No.",1,null,null,null,null,null,null,null,null,null,null,null,1,1,1,3]
[null,null,null,null,null,null,null,null,null,null,null,null,null,null,null,null,1,1,1,3]
["4.6.1.5",null,"v) Connection to the existing pipes for PRV chamber 14 in Far East Bank","No.",1,null,null,null,null,null,null,null,null,null,null,null,1,1,1,3]
[null,null,null,null,null,null,null,null,null,null,null,null,null,null,null,null,1,1,1,3]
[4.7,"PSL 8.2.19","Cathodic Protection",null,null,null,null,null,null,null,null,null,null,null,null,null,1,1,1,3]
[null,null,null,null,null,null,null,null,null,null,null,null,null,null,null,null,1,1,1,3]
["4.7.1",null,"i. Procurement of the services and a cathodic protection (CP) specialist for the temporary design of a CP system to be aligned with the existing JW system) ","Prov. Sum",1,200000,{"$f":"IF(E938<>\"\",E938*F938,\"\")","v":200000},null,null,null,null,null,null,null,null,null,1,1,1,3]
[null,null,null,null,null,null,"",null,null,null,null,null,null,null,null,null,1,1,1,3]
["4.7.2",null,"ii Implementation of the temporary cathodic protection system","Prov. Sum",1,800000,800000,null,null,null,null,null,null,null,null,null,1,1,1,3]
[null,null,null,null,null,null,"",null,null,null,null,null,null,null,null,null,1,1,1,3]
["4.7.3",null,"iii. Procurement of the services and a cathodic protection (CP) specialist for the permanent design of a CP system to be aligned with the existing JW system) ","Prov. Sum",1,500000,500000,null,null,null,null,null,null,null,null,null,1,1,1,3]
[null,null,null,null,null,null,"",null,null,null,null,null,null,null,null,null,1,1,1,3]
["4.7.4",null,"iv. Implementation of the permanent cathodic protection system","Prov. Sum",1,2500000,2500000,null,null,null,null,null,null,null,null,null,1,1,1,3]
[null,null,null,null,null,null,"",null,null,null,null,null,null,null,null,null,1,1,1,3]
["4.7.5",null,"v. Overheads, charges and profit on item i. to iv. above ","%",0.15,{"$f":"SUM(F938:F945)","v":4000000},600000,null,null,null,null,null,null,null,null,null,1,1,1,3]
[null,null,null,null,null,null,null,null,null,null,null,null,null,null,null,null,1,1,1,3]
[4.8,"PSL 8.2.20","Supply and install fittings assembly",null,null,null,null,null,null,null,null,null,null,null,null,null,1,1,1,3]
[null,null,null,null,null,null,null,null,null,null,null,null,null,null,null,null,1,1,1,3]
["4.8.1",null,"for isolating valve chamber in line with specifications as per drawing no. JW14090R-AL-DET03-W",null,null,null,null,null,null,null,null,null,null,null,null,null,1,1,1,3]
[null,null,null,null,null,null,null,null,null,null,null,null,null,null,null,null,1,1,1,3]
["4.8.1.1",null,"Item No.IV1","No.",2,null,null,null,null,null,null,null,null,null,null,null,1,1,1,3]
[null,null,null,null,"",null,null,null,null,null,null,null,null,null,null,null,1,1,1,3]
["4.8.1.2",null,"Item No.IV2","No.",2,null,null,null,null,null,null,null,null,null,null,null,1,1,1,3]
[null,null,null,null,"",null,null,null,null,null,null,null,null,null,null,null,1,1,1,3]
["4.8.1.3",null,"Item No.IV3","No.",1,null,null,null,null,null,null,null,null,null,null,null,1,1,1,3]
[null,null,null,null,"",null,null,null,null,null,null,null,null,null,null,null,1,1,1,3]
["4.8.1.4",null,"Item No.IV4","No.",2,null,null,null,null,null,null,null,null,null,null,null,1,1,1,3]
[null,null,null,null,"",null,null,null,null,null,null,null,null,null,null,null,1,1,1,3]
["4.8.1.5",null,"Item No.IV5","No.",4,null,null,null,null,null,null,null,null,null,null,null,1,1,1,3]
[null,null,null,null,"",null,null,null,null,null,null,null,null,null,null,null,1,1,1,3]
["4.8.1.6",null,"Item No.IV6","No.",1,null,null,null,null,null,null,null,null,null,null,null,1,1,1,3]
[null,null,null,null,"",null,null,null,null,null,null,null,null,null,null,null,1,1,1,3]
["4.8.1.7",null,"Item No.IV7","No.",1,null,null,null,null,null,null,null,null,null,null,null,1,1,1,3]
[null,null,null,null,"",null,null,null,null,null,null,null,null,null,null,null,1,1,1,3]
["4.8.1.8",null,"Item No.IV8","No.",2,null,null,null,null,null,null,null,null,null,null,null,1,1,1,3]
[null,null,null,null,"",null,null,null,null,null,null,null,null,null,null,null,1,1,1,3]
["4.8.1.9",null,"Item No.IV9","No.",1,null,null,null,null,null,null,null,null,null,null,null,1,1,1,3]
[null,null,null,null,"",null,null,null,null,null,null,null,null,null,null,null,1,1,1,3]
["4.8.1.10",null,"Item No.IV10","No.",1,null,null,null,null,null,null,null,null,null,null,null,1,1,1,3]
[null,null,null,null,null,null,null,null,null,null,null,null,null,null,null,null,1,1,1,3]
["4.8.2",null,"for air valve chamber in line with specifications as per drawing no. JW14090R-AL-DET04-W",null,null,null,null,null,null,null,null,null,null,null,null,null,1,1,1,3]
[null,null,null,null,null,null,null,null,null,null,null,null,null,null,null,null,1,1,1,3]
["4.8.2.1",null,"Item No.AV1","No.",5,null,null,null,null,null,null,null,null,null,null,null,1,1,1,3]
[null,null,null,null,null,null,null,null,null,null,null,null,null,null,null,null,1,1,1,3]
["4.8.2.2",null,"Item No.AV2","No.",5,null,null,null,null,null,null,null,null,null,null,null,1,1,1,3]
[null,null,null,null,null,null,null,null,null,null,null,null,null,null,null,null,1,1,1,3]
["4.8.2.3",null,"Item No.AV3","No.",5,null,null,null,null,null,null,null,null,null,null,null,1,1,1,3]
[null,null,null,null,null,null,null,null,null,null,null,null,null,null,null,null,1,1,1,3]
["4.8.2.4",null,"Item No.AV4","No.",5,null,null,null,null,null,null,null,null,null,null,null,1,1,1,3]
[null,null,null,null,null,null,null,null,null,null,null,null,null,null,null,null,1,1,1,3]
["4.8.3",null,"for scour valve chamber in line with specifications as per drawing no. JW14090R-AL-DET05-W",null,null,null,null,null,null,null,null,null,null,null,null,null,1,1,1,3]
[null,null,null,null,null,null,null,null,null,null,null,null,null,null,null,null,1,1,1,3]
["4.8.3.1",null,"Item No.SV1","No.",1,null,null,null,null,null,null,null,null,null,null,null,1,1,1,3]
[null,null,null,null,null,null,null,null,null,null,null,null,null,null,null,null,1,1,1,3]
["TOTAL CARRIED FORWARD TO NEXT PAGE",null,null,null,null,null,null,null,null,null,null,null,null,null,null,null,1,1,1,3]
["ITEM NO","PAYMENT CLAUSE","DESCRIPTION","UNIT","QUANTITY","RATE","AMOUNT",null,null,null,null,null,null,null,null,null,1,1,1,3]
[null,null,"TOTAL CARRIED FROM PREVIOUS PAGE",null,null,null,null,null,null,null,null,null,null,null,null,null,1,1,1,3]
[]
["4.8.3.2",null,"Item No.SV2","No.",1,null,null,null,null,null,null,null,null,null,null,null,1,1,1,3]
[null,null,null,null,null,null,null,null,null,null,null,null,null,null,null,null,{"$f":"IF(K991=\"No comment\",0,1)","v":1},{"$f":"IF(L991=\"No comment\",0,1)","v":1},{"$f":"IF(M991=\"No comment\",0,1)","v":1},{"$f":"SUM(N991:S991)","v":3}]
["4.8.3.3",null,"Item No.SV3","No.",1,null,null,null,null,null,null,null,null,null,null,null,1,1,1,3]
[null,null,null,null,null,null,null,null,null,null,null,null,null,null,null,null,1,1,1,3]
["4.8.3.4",null,"Item No.SV4","No.",1,null,null,null,null,null,null,null,null,null,null,null,1,1,1,3]
[null,null,null,null,null,null,null,null,null,null,null,null,null,null,null,null,1,1,1,3]
["4.8.3.5",null,"Item No.SV5","No.",1,null,null,null,null,null,null,null,null,null,null,null,1,1,1,3]
[null,null,null,null,null,null,null,null,null,null,null,null,null,null,null,null,1,1,1,3]
["4.8.3.6",null,"Item No.SV6","No.",1,null,null,null,null,null,null,null,null,null,null,null,1,1,1,3]
[null,null,null,null,null,null,null,null,null,null,null,null,null,null,null,null,1,1,1,3]
["4.8.4",null,"for water meter chamber in line with specifications as per drawing no. JW14090R-AL-DET06-W",null,null,null,null,null,null,null,null,null,null,null,null,null,1,1,1,3]
[null,null,null,null,null,null,null,null,null,null,null,null,null,null,null,null,1,1,1,3]
["4.8.4.1",null,"Item No.WM2","No.",2,null,null,null,null,null,null,null,null,null,null,null,1,1,1,3]
[null,null,null,null,null,null,null,null,null,null,null,null,null,null,null,null,1,1,1,3]
["4.8.4.2",null,"Item No.WM3","No.",2,null,null,null,null,null,null,null,null,null,null,null,1,1,1,3]
[null,null,null,null,null,null,null,null,null,null,null,null,null,null,null,null,1,1,1,3]
["4.8.4.3",null,"Item No.WM4","No.",2,null,null,null,null,null,null,null,null,null,null,null,1,1,1,3]
[null,null,null,null,null,null,null,null,null,null,null,null,null,null,null,null,1,1,1,3]
["4.8.4.4",null,"Item No.WM5","No.",1,null,null,null,null,null,null,null,null,null,null,null,1,1,1,3]
[null,null,null,null,null,null,null,null,null,null,null,null,null,null,null,null,1,1,1,3]
["4.8.4.5",null,"Item No.WM6","No.",1,null,null,null,null,null,null,null,null,null,null,null,1,1,1,3]
[null,null,null,null,null,null,null,null,null,null,null,null,null,null,null,null,1,1,1,3]
["4.8.4.6",null,"Item No.WM7","No.",1,null,null,null,null,null,null,null,null,null,null,null,1,1,1,3]
[null,null,null,null,null,null,null,null,null,null,null,null,null,null,null,null,1,1,1,3]
["4.8.4.7",null,"Item No.WM8","No.",1,null,null,null,null,null,null,null,null,null,null,null,1,1,1,3]
[null,null,null,null,null,null,null,null,null,null,null,null,null,null,null,null,1,1,1,3]
["4.8.4.8",null,"Item No.WM9","No.",1,null,null,null,null,null,null,null,null,null,null,null,1,1,1,3]
[null,null,null,null,null,null,null,null,null,null,null,null,null,null,null,null,1,1,1,3]
["4.8.5",null,"for tie-ins in line with specifications as per drawing no. JW14090R-AL-DET08-W and JW14090R-AL-DET09-W",null,null,null,null,null,null,null,null,null,null,null,null,null,1,1,1,3]
[null,null,null,null,null,null,null,null,null,null,null,null,null,null,null,null,1,1,1,3]
["4.8.5.1",null,"Item No.SK1","No.",1,null,null,null,null,null,null,null,null,null,null,null,1,1,1,3]
[null,null,null,null,null,null,null,null,null,null,null,null,null,null,null,null,1,1,1,3]
["4.8.5.2",null,"Item No.SK2","No.",1,null,null,null,null,null,null,null,null,null,null,null,1,1,1,3]
[null,null,null,null,null,null,null,null,null,null,null,null,null,null,null,null,1,1,1,3]
["4.8.5.3",null,"Item No.SK3","No.",2,null,null,null,null,null,null,null,null,null,null,null,1,1,1,3]
[null,null,null,null,null,null,null,null,null,null,null,null,null,null,null,null,1,1,1,3]
["4.8.5.4",null,"Item No.SK4","No.",1,null,null,null,null,null,null,null,null,null,null,null,1,1,1,3]
[null,null,null,null,null,null,null,null,null,null,null,null,null,null,null,null,1,1,1,3]
["4.8.5.5",null,"Item No.SK5","No.",1,null,null,null,null,null,null,null,null,null,null,null,1,1,1,3]
[null,null,null,null,null,null,null,null,null,null,null,null,null,null,null,null,1,1,1,3]
["4.8.5.6",null,"Item No.SK6","No.",1,null,null,null,null,null,null,null,null,null,null,null,1,1,1,3]
[null,null,null,null,null,null,null,null,null,null,null,null,null,null,null,null,1,1,1,3]
["4.8.4.8",null,"Item No.SK7","No.",2,null,null,null,null,null,null,null,null,null,null,null,1,1,1,3]
[null,null,null,null,null,null,null,null,null,null,null,null,null,null,null,null,1,1,1,3]
["4.8.5.8",null,"Item No.SK8","No.",1,null,null,null,null,null,null,null,null,null,null,null,1,1,1,3]
[null,null,null,null,null,null,null,null,null,null,null,null,null,null,null,null,1,1,1,3]
["4.8.5.9",null,"Item No.LD1","No.",1,null,null,null,null,null,null,null,null,null,null,null,1,1,1,3]
[null,null,null,null,null,null,null,null,null,null,null,null,null,null,null,null,1,1,1,3]
["4.8.5.10",null,"Item No.LD2","No.",1,null,null,null,null,null,null,null,null,null,null,null,1,1,1,3]
[null,null,null,null,null,null,null,null,null,null,null,null,null,null,null,null,1,1,1,3]
["4.8.5.11",null,"Item No.LD3","No.",1,null,null,null,null,null,null,null,null,null,null,null,1,1,1,3]
[null,null,null,null,null,null,null,null,null,null,null,null,null,null,null,null,1,1,1,3]
["4.8.5.12",null,"Item No.LD4","No.",1,null,null,null,null,null,null,null,null,null,null,null,1,1,1,3]
[null,null,null,null,null,null,null,null,null,null,null,null,null,null,null,null,1,1,1,3]
["4.8.5.13",null,"Item No.LD5","No.",1,null,null,null,null,null,null,null,null,null,null,null,1,1,1,3]
[null,null,null,null,null,null,null,null,null,null,null,null,null,null,null,null,1,1,1,3]
["4.8.5.14",null,"Item No.LD6","No.",1,null,null,null,null,null,null,null,null,null,null,null,1,1,1,3]
[null,null,null,null,null,null,null,null,null,null,null,null,null,null,null,null,1,1,1,3]
["4.8.5.15",null,"Item No.LD7","No.",1,null,null,null,null,null,null,null,null,null,null,null,1,1,1,3]
[null,null,null,null,null,null,null,null,null,null,null,null,null,null,null,null,1,1,1,3]
["4.8.6",null,"For pressure reducing valve chamber in line with specifications as per drawing no. JW14090R-AL-DET11-W",null,null,null,null,null,null,null,null,null,null,null,null,null,1,1,1,3]
[null,null,null,null,null,null,null,null,null,null,null,null,null,null,null,null,1,1,1,3]
["4.8.6.1",null,"Item No. 1","No.",2,null,null,null,null,null,null,null,null,null,null,null,1,1,1,3]
[null,null,null,null,null,null,null,null,null,null,null,null,null,null,null,null,1,1,1,3]
["4.8.6.2",null,"Item No. 2","No.",3,null,null,null,null,null,null,null,null,null,null,null,1,1,1,3]
[null,null,null,null,null,null,null,null,null,null,null,null,null,null,null,null,{"$f":"IF(K1055=\"No comment\",0,1)","v":1},{"$f":"IF(L1055=\"No comment\",0,1)","v":1},{"$f":"IF(M1055=\"No comment\",0,1)","v":1},{"$f":"SUM(N1055:S1055)","v":3}]
["4.8.6.3",null,"Item No. 3","No.",2,null,null,null,null,null,null,null,null,null,null,null,1,1,1,3]
[null,null,null,null,null,null,null,null,null,null,null,null,null,null,null,null,1,1,1,3]
["4.8.6.4",null,"Item No. 4","No.",1,null,null,null,null,null,null,null,null,null,null,null,1,1,1,3]
[null,null,null,null,null,null,null,null,null,null,null,null,null,null,null,null,1,1,1,3]
["4.8.6.5",null,"Item No. 5","No.",1,null,null,null,null,null,null,null,null,null,null,null,1,1,1,3]
[null,null,null,null,null,null,null,null,null,null,null,null,null,null,null,null,1,1,1,3]
["TOTAL CARRIED FORWARD TO NEXT PAGE",null,null,null,null,null,null,null,null,null,null,null,null,null,null,null,1,1,1,3]
["ITEM NO","PAYMENT CLAUSE","DESCRIPTION","UNIT","QUANTITY","RATE","AMOUNT",null,null,null,null,null,null,null,null,null,1,1,1,3]
[null,null,"TOTAL CARRIED FROM PREVIOUS PAGE",null,null,null,null,null,null,null,null,null,null,null,null,null,1,1,1,3]
[]
["4.8.6.6",null,"Item No. 6","No.",1,null,null,null,null,null,null,null,null,null,null,null,1,1,1,3]
[null,null,null,null,null,null,null,null,null,null,null,null,null,null,null,null,1,1,1,3]
["4.8.6.7",null,"Item No. 7","No.",1,null,null,null,null,null,null,null,null,null,null,null,1,1,1,3]
[null,null,null,null,null,null,null,null,null,null,null,null,null,null,null,null,1,1,1,3]
["4.8.6.8",null,"Item No. 8","No.",1,null,null,null,null,null,null,null,null,null,null,null,1,1,1,3]
[null,null,null,null,null,null,null,null,null,null,null,null,null,null,null,null,1,1,1,3]
["4.8.6.9",null,"Item No. 9","No.",1,null,null,null,null,null,null,null,null,null,null,null,1,1,1,3]
[null,null,null,null,null,null,null,null,null,null,null,null,null,null,null,null,1,1,1,3]
["4.8.6.10",null,"Item No. 10","No.",1,null,null,null,null,null,null,null,null,null,null,null,1,1,1,3]
[null,null,null,null,null,null,null,null,null,null,null,null,null,null,null,null,1,1,1,3]
["4.8.6.11",null,"Item No. 11","No.",1,null,null,null,null,null,null,null,null,null,null,null,1,1,1,3]
[null,null,null,null,null,null,null,null,null,null,null,null,null,null,null,null,1,1,1,3]
["4.8.6.12",null,"Item No. 12","No.",4,null,null,null,null,null,null,null,null,null,null,null,1,1,1,3]
[null,null,null,null,null,null,null,null,null,null,null,null,null,null,null,null,1,1,1,3]
["4.8.6.13",null,"Item No. 13","No.",2,null,null,null,null,null,null,null,null,null,null,null,1,1,1,3]
[null,null,null,null,null,null,null,null,null,null,null,null,null,null,null,null,1,1,1,3]
["4.8.6.14",null,"Item No. 14","No.",3,null,null,null,null,null,null,null,null,null,null,null,1,1,1,3]
[null,null,null,null,null,null,null,null,null,null,null,null,null,null,null,null,1,1,1,3]
["4.8.6.15",null,"Item No. 15","No.",1,null,null,null,null,null,null,null,null,null,null,null,1,1,1,3]
[null,null,null,null,null,null,null,null,null,null,null,null,null,null,null,null,1,1,1,3]
["4.8.6.16",null,"Item No. 16","No.",1,null,null,null,null,null,null,null,null,null,null,null,1,1,1,3]
[null,null,null,null,null,null,null,null,null,null,null,null,null,null,null,null,1,1,1,3]
["4.8.6.17",null,"Item No. 17","No.",1,null,null,null,null,null,null,null,null,null,null,null,1,1,1,3]
[null,null,null,null,null,null,null,null,null,null,null,null,null,null,null,null,1,1,1,3]
["4.8.6.18",null,"Item No. 18","No.",1,null,null,null,null,null,null,null,null,null,null,null,1,1,1,3]
[null,null,null,null,null,null,null,null,null,null,null,null,null,null,null,null,1,1,1,3]
["4.8.6.19",null,"Item No. 19","No.",1,null,null,null,null,null,null,null,null,null,null,null,1,1,1,3]
[null,null,null,null,null,null,null,null,null,null,null,null,null,null,null,null,1,1,1,3]
["4.8.6.20",null,"Item No. 20","No.",1,null,null,null,null,null,null,null,null,null,null,null,1,1,1,3]
[null,null,null,null,null,null,null,null,null,null,null,null,null,null,null,null,1,1,1,3]
["4.8.6.21",null,"Item No. 21","No.",1,null,null,null,null,null,null,null,null,null,null,null,1,1,1,3]
[null,null,null,null,null,null,null,null,null,null,null,null,null,null,null,null,1,1,1,3]
["4.8.6.22",null,"Item No. 22","No.",1,null,null,null,null,null,null,null,null,null,null,null,1,1,1,3]
[null,null,null,null,null,null,null,null,null,null,null,null,null,null,null,null,1,1,1,3]
["4.8.6.23",null,"Item No. 23","No.",1,null,null,null,null,null,null,null,null,null,null,null,1,1,1,3]
[null,null,null,null,null,null,null,null,null,null,null,null,null,null,null,null,1,1,1,3]
["4.8.6.24",null,"Item No. 24","No.",2,null,null,null,null,null,null,null,null,null,null,null,1,1,1,3]
[null,null,null,null,null,null,null,null,null,null,null,null,null,null,null,null,1,1,1,3]
["4.8.7",null,"for pressure reducing valve chamber in line with specifications as per drawing no. JW100-DET10.2-W01",null,null,null,null,null,null,null,null,null,null,null,null,null,1,1,1,3]
[null,null,null,null,null,null,null,null,null,null,null,null,null,null,null,null,1,1,1,3]
["4.8.7.1",null,"Item Nr 1","No.",2,null,null,null,null,null,null,null,null,null,null,null,1,1,1,3]
[null,null,null,null,null,null,null,null,null,null,null,null,null,null,null,null,1,1,1,3]
["4.8.7.2",null,"Item Nr 2","No.",2,null,null,null,null,null,null,null,null,null,null,null,1,1,1,3]
[null,null,null,null,null,null,null,null,null,null,null,null,null,null,null,null,1,1,1,3]
["4.8.7.3",null,"Item Nr 3","No.",2,null,null,null,null,null,null,null,null,null,null,null,1,1,1,3]
[null,null,null,null,null,null,null,null,null,null,null,null,null,null,null,null,1,1,1,3]
["4.8.7.4",null,"Item Nr 4","No.",2,null,null,null,null,null,null,null,null,null,null,null,1,1,1,3]
[null,null,null,null,null,null,null,null,null,null,null,null,null,null,null,null,1,1,1,3]
["4.8.7.5",null,"Item Nr 5","No.",2,null,null,null,null,null,null,null,null,null,null,null,1,1,1,3]
[null,null,null,null,null,null,null,null,null,null,null,null,null,null,null,null,1,1,1,3]
["4.8.7.6",null,"Item Nr 6","No.",1,null,null,null,null,null,null,null,null,null,null,null,1,1,1,3]
[null,null,null,null,null,null,null,null,null,null,null,null,null,null,null,null,1,1,1,3]
["4.8.7.7",null,"Item Nr 7","No.",1,null,null,null,null,null,null,null,null,null,null,null,1,1,1,3]
[null,null,null,null,null,null,null,null,null,null,null,null,null,null,null,null,1,1,1,3]
["4.8.7.8",null,"Item Nr 8","No.",1,null,null,null,null,null,null,null,null,null,null,null,{"$f":"IF(K1120=\"No comment\",0,1)","v":1},{"$f":"IF(L1120=\"No comment\",0,1)","v":1},{"$f":"IF(M1120=\"No comment\",0,1)","v":1},{"$f":"SUM(N1120:S1120)","v":3}]
[null,null,null,null,null,null,null,null,null,null,null,null,null,null,null,null,1,1,1,3]
["4.8.7.9",null,"Item Nr 9","No.",1,null,null,null,null,null,null,null,null,null,null,null,1,1,1,3]
[null,null,null,null,null,null,null,null,null,null,null,null,null,null,null,null,1,1,1,3]
["4.8.7.10",null,"Item Nr 10","No.",2,null,null,null,null,null,null,null,null,null,null,null,1,1,1,3]
[null,null,null,null,null,null,null,null,null,null,null,null,null,null,null,null,1,1,1,3]
["4.8.7.11",null,"Item Nr 11","No.",2,null,null,null,null,null,null,null,null,null,null,null,1,1,1,3]
[null,null,null,null,null,null,null,null,null,null,null,null,null,null,null,null,1,1,1,3]
["4.8.7.12",null,"Item Nr 12","No.",2,null,null,null,null,null,null,null,null,null,null,null,1,1,1,3]
[null,null,null,null,null,null,null,null,null,null,null,null,null,null,null,null,1,1,1,3]
["4.8.7.13",null,"Item Nr 13","No.",2,null,null,null,null,null,null,null,null,null,null,null,1,1,1,3]
[null,null,null,null,null,null,null,null,null,null,null,null,null,null,null,null,1,1,1,3]
["4.8.7.14",null,"Item Nr 14","No.",1,null,null,null,null,null,null,null,null,null,null,null,1,1,1,3]
[null,null,null,null,null,null,null,null,null,null,null,null,null,null,null,null,1,1,1,3]
["4.8.7.15",null,"Item Nr 15","No.",2,null,null,null,null,null,null,null,null,null,null,null,1,1,1,3]
[null,null,null,null,null,null,null,null,null,null,null,null,null,null,null,null,1,1,1,3]
["4.8.7.16",null,"Item Nr 16 - BATTERY POWERED MAGFLOW METER WITH AUTOMATIC METER READER","No.",1,null,null,null,null,null,null,null,null,null,null,null,1,1,1,3]
[]
["TOTAL CARRIED FORWARD TO NEXT PAGE",null,null,null,null,null,null,null,null,null,null,null,null,null,null,null,1,1,1,3]
["ITEM NO","PAYMENT CLAUSE","DESCRIPTION","UNIT","QUANTITY","RATE","AMOUNT",null,null,null,null,null,null,null,null,null,1,1,1,3]
[null,null,"TOTAL CARRIED FROM PREVIOUS PAGE",null,null,null,null,null,null,null,null,null,null,null,null,null,1,1,1,3]
[null,null,null,null,null,null,null,null,null,null,null,null,null,null,null,null,1,1,1,3]
["4.8.7.17",null,"Item Nr 17","No.",1,null,null,null,null,null,null,null,null,null,null,null,1,1,1,3]
[null,null,null,null,null,null,null,null,null,null,null,null,null,null,null,null,1,1,1,3]
["4.8.7.18",null,"Item Nr 18 - BATTERY POWERED MAGFLOW METER WITH AUTOMATIC METER READER","No.",1,null,null,null,null,null,null,null,null,null,null,null,1,1,1,3]
[null,null,null,null,null,null,null,null,null,null,null,null,null,null,null,null,1,1,1,3]
["4.8.7.19",null,"Item Nr 19","No.",1,null,null,null,null,null,null,null,null,null,null,null,1,1,1,3]
[null,null,null,null,null,null,null,null,null,null,null,null,null,null,null,null,1,1,1,3]
["4.8.7.20",null,"Item Nr 20","No.",1,null,null,null,null,null,null,null,null,null,null,null,1,1,1,3]
[null,null,null,null,null,null,null,null,null,null,null,null,null,null,null,null,1,1,1,3]
["4.8.7.21",null,"Item Nr 21","No.",2,null,null,null,null,null,null,null,null,null,null,null,1,1,1,3]
[null,null,null,null,null,null,null,null,null,null,null,null,null,null,null,null,1,1,1,3]
["4.8.7.22",null,"Item Nr 22","No.",1,null,null,null,null,null,null,null,null,null,null,null,1,1,1,3]
[null,null,null,null,null,null,null,null,null,null,null,null,null,null,null,null,1,1,1,3]
["4.8.7.23",null,"Item Nr 23","No.",2,null,null,null,null,null,null,null,null,null,null,null,1,1,1,3]
[null,null,null,null,null,null,null,null,null,null,null,null,null,null,null,null,1,1,1,3]
["4.8.8",null,"for pressure reducing valve chamber in line with specifications as per drawing nos. JWW14090R-AL-DET12-W and  JWW14090R-AL-DET13-W",null,null,null,null,null,null,null,null,null,null,null,null,null,1,1,1,3]
[null,null,null,null,null,null,null,null,null,null,null,null,null,null,null,null,1,1,1,3]
["4.8.8.1",null,"Item No.PV1A","No.",1,null,null,null,null,null,null,null,null,null,null,null,1,1,1,3]
[null,null,null,null,null,null,null,null,null,null,null,null,null,null,null,null,1,1,1,3]
["4.8.8.2",null,"Item No.PV1B","No.",1,null,null,null,null,null,null,null,null,null,null,null,1,1,1,3]
[null,null,null,null,null,null,null,null,null,null,null,null,null,null,null,null,1,1,1,3]
["4.8.8.3",null,"Item No.PV2B","No.",2,null,null,null,null,null,null,null,null,null,null,null,1,1,1,3]
[null,null,null,null,null,null,null,null,null,null,null,null,null,null,null,null,1,1,1,3]
["4.8.8.4",null,"Item No.PV2A","No.",1,null,null,null,null,null,null,null,null,null,null,null,1,1,1,3]
[null,null,null,null,null,null,null,null,null,null,null,null,null,null,null,null,1,1,1,3]
["4.8.8.5",null,"Item No.PV3","No.",2,null,null,null,null,null,null,null,null,null,null,null,1,1,1,3]
[null,null,null,null,null,null,null,null,null,null,null,null,null,null,null,null,1,1,1,3]
["4.8.8.6",null,"Item No.PV4","No.",3,null,null,null,null,null,null,null,null,null,null,null,1,1,1,3]
[null,null,null,null,null,null,null,null,null,null,null,null,null,null,null,null,1,1,1,3]
["4.8.8.7",null,"Item No.PV5","No.",1,null,null,null,null,null,null,null,null,null,null,null,1,1,1,3]
[null,null,null,null,null,null,null,null,null,null,null,null,null,null,null,null,1,1,1,3]
["4.8.8.8",null,"Item No.PV6A","No.",1,null,null,null,null,null,null,null,null,null,null,null,1,1,1,3]
[null,null,null,null,null,null,null,null,null,null,null,null,null,null,null,null,1,1,1,3]
["4.8.8.9",null,"Item No.PV6B","No.",1,null,null,null,null,null,null,null,null,null,null,null,1,1,1,3]
[null,null,null,null,null,null,null,null,null,null,null,null,null,null,null,null,1,1,1,3]
["4.8.8.10",null,"Item No.PV7","No.",1,null,null,null,null,null,null,null,null,null,null,null,1,1,1,3]
[null,null,null,null,null,null,null,null,null,null,null,null,null,null,null,null,1,1,1,3]
["4.8.8.11",null,"Item No.PV8","No.",2,null,null,null,null,null,null,null,null,null,null,null,1,1,1,3]
[null,null,null,null,null,null,null,null,null,null,null,null,null,null,null,null,1,1,1,3]
["4.8.8.12",null,"Item No.PV9A","No.",2,null,null,null,null,null,null,null,null,null,null,null,1,1,1,3]
[null,null,null,null,null,null,null,null,null,null,null,null,null,null,null,null,1,1,1,3]
["4.8.8.13",null,"Item No.PV9B","No.",2,null,null,null,null,null,null,null,null,null,null,null,1,1,1,3]
[null,null,null,null,null,null,null,null,null,null,null,null,null,null,null,null,1,1,1,3]
["4.8.8.14",null,"Item No.PV10","No.",3,null,null,null,null,null,null,null,null,null,null,null,1,1,1,3]
[null,null,null,null,null,null,null,null,null,null,null,null,null,null,null,null,{"$f":"IF(K1185=\"No comment\",0,1)","v":1},{"$f":"IF(L1185=\"No comment\",0,1)","v":1},{"$f":"IF(M1185=\"No comment\",0,1)","v":1},{"$f":"SUM(N1185:S1185)","v":3}]
["4.8.8.15",null,"Item No.PV11","No.",4,null,null,null,null,null,null,null,null,null,null,null,1,1,1,3]
[null,null,null,null,null,null,null,null,null,null,null,null,null,null,null,null,1,1,1,3]
["4.8.8.16",null,"Item No.PV12","No.",1,null,null,null,null,null,null,null,null,null,null,null,1,1,1,3]
[null,null,null,null,null,null,null,null,null,null,null,null,null,null,null,null,1,1,1,3]
["4.8.8.17",null,"Item No.PV13","No.",1,null,null,null,null,null,null,null,null,null,null,null,1,1,1,3]
[null,null,null,null,null,null,null,null,null,null,null,null,null,null,null,null,1,1,1,3]
["4.8.8.18",null,"Item No.PV14","No.",2,null,null,null,null,null,null,null,null,null,null,null,1,1,1,3]
[null,null,null,null,null,null,null,null,null,null,null,null,null,null,null,null,1,1,1,3]
["4.8.8.19",null,"Item No.PV15","No.",1,null,null,null,null,null,null,null,null,null,null,null,1,1,1,3]
[null,null,null,null,null,null,null,null,null,null,null,null,null,null,null,null,1,1,1,3]
["4.8.8.20",null,"Item No.PV16","No.",1,null,null,null,null,null,null,null,null,null,null,null,1,1,1,3]
[null,null,null,null,null,null,null,null,null,null,null,null,null,null,null,null,1,1,1,3]
["4.8.8.21",null,"Item No.PV17","No.",1,null,null,null,null,null,null,null,null,null,null,null,1,1,1,3]
[null,null,null,null,null,null,null,null,null,null,null,null,null,null,null,null,1,1,1,3]
["4.8.8.22",null,"Item No.PV18","No.",1,null,null,null,null,null,null,null,null,null,null,null,1,1,1,3]
[null,null,null,null,null,null,null,null,null,null,null,null,null,null,null,null,1,1,1,3]
["4.8.8.23",null,"Item No.PV19","No.",1,null,null,null,null,null,null,null,null,null,null,null,1,1,1,3]
[null,null,null,null,null,null,null,null,null,null,null,null,null,null,null,null,1,1,1,3]
["4.8.8.24",null,"Item No.PV20","No.",3,null,null,null,null,null,null,null,null,null,null,null,1,1,1,3]
[null,null,null,null,null,null,null,null,null,null,null,null,null,null,null,null,1,1,1,3]
[4.9000000000000004,"PSL 8.2.21","Rehabilitation of Valves ","Prov. Sum",1,500000,{"$f":"IF(E1206<>\"\",E1206*F1206,\"\")","v":500000},null,null,null,null,null,null,null,null,null,1,1,1,3]
[null,null,null,null,null,null,{"$f":"IF(E1207<>\"\",E1207*F1207,\"\")","v":""},null,null,null,null,null,null,null,null,null,1,1,1,3]
["4.10","PSL 8.2.22","Overheads, charges and Profit for the Rehabilitation of Valves, including removal, transport and re-installation ","%",null,{"$f":"F1206","v":500000},{"$f":"IF(E1208<>\"\",E1208*F1208,\"\")","v":""},null,null,null,null,null,null,null,null,null,1,1,1,3]
[null,null,null,null,null,null,{"$f":"IF(E1209<>\"\",E1209*F1209,\"\")","v":""},null,null,null,null,null,null,null,null,null,1,1,1,3]
[4.1100000000000003,"PSL 8.2.23","Breaking and repairing sections of existing chamber walls to remove existing pipeline and install new pipeline, and reinstating","No. ",3,null,null,null,null,null,null,null,null,null,null,null,1,1,1,3]
[null,null,null,null,null,null,{"$f":"IF(E1211<>\"\",E1211*F1211,\"\")","v":""},null,null,null,null,null,null,null,null,null,1,1,1,3]
["TOTAL CARRIED FORWARD TO NEXT PAGE",null,null,null,null,null,null,null,null,null,null,null,null,null,null,null,1,1,1,3]
["ITEM NO","PAYMENT CLAUSE","DESCRIPTION","UNIT","QUANTITY","RATE","AMOUNT",null,null,null,null,null,null,null,null,null,1,1,1,3]
[null,null,"TOTAL CARRIED FROM PREVIOUS PAGE",null,null,null,null,null,null,null,null,null,null,null,null,null,1,1,1,3]
[]
[4.12,"PSL 8.2.24","Supply and install pipeline markers ","No.",22,null,null,null,null,null,null,null,null,null,null,null,1,1,1,3]
[null,null,null,null,null,null,null,null,null,null,null,null,null,null,null,null,1,1,1,3]
[4.13,"PSL 8.2.25","Supply and install, test and make good 10 mm diameter ball valves","No.",12,null,null,null,null,null,null,null,null,null,null,null,1,1,1,3]
[null,null,null,null,null,null,null,null,null,null,null,null,null,null,null,null,1,1,1,3]
[null,null,null,null,null,null,null,null,null,null,null,null,null,null,null,null,1,1,1,3]
["TOTAL CARRIED FORWARD TO SUMMARY",null,null,null,null,null,null,null,null,null,null,null,null,null,null,null,1,1,1,3]
["\n\n\n\n\n\n\n\n\nSECTION 5:\n\nBEDDING\n\n",null,null,null,null,null,null,null,null,null,null,null,null,null,null,null,1,1,1,3]
[null,null,null,null,null,null,null,null,null,null,null,null,null,null,null,null,1,1,1,3]
[null,null,null,null,null,null,null,null,null,null,null,null,null,null,null,null,1,1,1,3]
[null,null,null,null,null,null,null,null,null,null,null,null,null,null,null,null,1,1,1,3]
[null,null,null,null,null,null,null,null,null,null,null,null,null,null,null,null,1,1,1,3]
[null,null,null,null,null,null,null,null,null,null,null,null,null,null,null,null,1,1,1,3]
[null,null,null,null,null,null,null,null,null,null,null,null,null,null,null,null,1,1,1,3]
[null,null,null,null,null,null,null,null,null,null,null,null,null,null,null,null,1,1,1,3]
[null,null,null,null,null,null,null,null,null,null,null,null,null,null,null,null,1,1,1,3]
[null,null,null,null,null,null,null,null,null,null,null,null,null,null,null,null,1,1,1,3]
[null,null,null,null,null,null,null,null,null,null,null,null,null,null,null,null,1,1,1,3]
[null,null,null,null,null,null,null,null,null,null,null,null,null,null,null,null,1,1,1,3]
[null,null,null,null,null,null,null,null,null,null,null,null,null,null,null,null,1,1,1,3]
[null,null,null,null,null,null,null,null,null,null,null,null,null,null,null,null,1,1,1,3]
[null,null,null,null,null,null,null,null,null,null,null,null,null,null,null,null,1,1,1,3]
[null,null,null,null,null,null,null,null,null,null,null,null,null,null,null,null,1,1,1,3]
[null,null,null,null,null,null,null,null,null,null,null,null,null,null,null,null,1,1,1,3]
[null,null,null,null,null,null,null,null,null,null,null,null,null,null,null,null,1,1,1,3]
[null,null,null,null,null,null,null,null,null,null,null,null,null,null,null,null,1,1,1,3]
[null,null,null,null,null,null,null,null,null,null,null,null,null,null,null,null,1,1,1,3]
[null,null,null,null,null,null,null,null,null,null,null,null,null,null,null,null,1,1,1,3]
[null,null,null,null,null,null,null,null,null,null,null,null,null,null,null,null,1,1,1,3]
[null,null,null,null,null,null,null,null,null,null,null,null,null,null,null,null,1,1,1,3]
[null,null,null,null,null,null,null,null,null,null,null,null,null,null,null,null,1,1,1,3]
[null,null,null,null,null,null,null,null,null,null,null,null,null,null,null,null,1,1,1,3]
[null,null,null,null,null,null,null,null,null,null,null,null,null,null,null,null,1,1,1,3]
[null,null,null,null,null,null,null,null,null,null,null,null,null,null,null,null,1,1,1,3]
[null,null,null,null,null,null,null,null,null,null,null,null,null,null,null,null,1,1,1,3]
[null,null,null,null,null,null,null,null,null,null,null,null,null,null,null,null,{"$f":"IF(K1250=\"No comment\",0,1)","v":1},{"$f":"IF(L1250=\"No comment\",0,1)","v":1},{"$f":"IF(M1250=\"No comment\",0,1)","v":1},{"$f":"SUM(N1250:S1250)","v":3}]
[null,null,null,null,null,null,null,null,null,null,null,null,null,null,null,null,1,1,1,3]
[null,null,null,null,null,null,null,null,null,null,null,null,null,null,null,null,1,1,1,3]
[null,null,null,null,null,null,null,null,null,null,null,null,null,null,null,null,1,1,1,3]
[null,null,null,null,null,null,null,null,null,null,null,null,null,null,null,null,1,1,1,3]
[null,null,null,null,null,null,null,null,null,null,null,null,null,null,null,null,1,1,1,3]
[null,null,null,null,null,null,null,null,null,null,null,null,null,null,null,null,1,1,1,3]
[null,null,null,null,null,null,null,null,null,null,null,null,null,null,null,null,1,1,1,3]
[null,null,null,null,null,null,null,null,null,null,null,null,null,null,null,null,1,1,1,3]
[null,null,null,null,null,null,null,null,null,null,null,null,null,null,null,null,1,1,1,3]
[null,null,null,null,null,null,null,null,null,null,null,null,null,null,null,null,1,1,1,3]
[null,null,null,null,null,null,null,null,null,null,null,null,null,null,null,null,1,1,1,3]
[null,null,null,null,null,null,null,null,null,null,null,null,null,null,null,null,1,1,1,3]
[null,null,null,null,null,null,null,null,null,null,null,null,null,null,null,null,1,1,1,3]
[null,null,null,null,null,null,null,null,null,null,null,null,null,null,null,null,1,1,1,3]
[null,null,null,null,null,null,null,null,null,null,null,null,null,null,null,null,1,1,1,3]
[null,null,null,null,null,null,null,null,null,null,null,null,null,null,null,null,1,1,1,3]
[null,null,null,null,null,null,null,null,null,null,null,null,null,null,null,null,1,1,1,3]
[null,null,null,null,null,null,null,null,null,null,null,null,null,null,null,null,1,1,1,3]
[null,null,null,null,null,null,null,null,null,null,null,null,null,null,null,null,1,1,1,3]
[null,null,null,null,null,null,null,null,null,null,null,null,null,null,null,null,1,1,1,3]
[null,null,null,null,null,null,null,null,null,null,null,null,null,null,null,null,1,1,1,3]
[null,null,null,null,null,null,null,null,null,null,null,null,null,null,null,null,1,1,1,3]
[null,null,null,null,null,null,null,null,null,null,null,null,null,null,null,null,1,1,1,3]
[null,null,null,null,null,null,null,null,null,null,null,null,null,null,null,null,1,1,1,3]
[null,null,null,null,null,null,null,null,null,null,null,null,null,null,null,null,1,1,1,3]
[null,null,null,null,null,null,null,null,null,null,null,null,null,null,null,null,1,1,1,3]
[null,null,null,null,null,null,null,null,null,null,null,null,null,null,null,null,1,1,1,3]
[null,null,null,null,null,null,null,null,null,null,null,null,null,null,null,null,1,1,1,3]
[null,null,null,null,null,null,null,null,null,null,null,null,null,null,null,null,1,1,1,3]
[null,null,null,null,null,null,null,null,null,null,null,null,null,null,null,null,1,1,1,3]
[null,null,null,null,null,null,null,null,null,null,null,null,null,null,null,null,1,1,1,3]
[null,null,null,null,null,null,null,null,null,null,null,null,null,null,null,null,1,1,1,3]
[null,null,null,null,null,null,null,null,null,null,null,null,null,null,null,null,1,1,1,3]
[null,null,null,null,null,null,null,null,null,null,null,null,null,null,null,null,1,1,1,3]
[null,null,null,null,null,null,null,null,null,null,null,null,null,null,null,null,1,1,1,3]
[null,null,null,null,null,null,null,null,null,null,null,null,null,null,null,null,1,1,1,3]
[null,null,null,null,null,null,null,null,null,null,null,null,null,null,null,null,1,1,1,3]
[null,null,null,null,null,null,null,null,null,null,null,null,null,null,null,null,1,1,1,3]
[null,null,null,null,null,null,null,null,null,null,null,null,null,null,null,null,1,1,1,3]
[null,null,null,null,null,null,null,null,null,null,null,null,null,null,null,null,1,1,1,3]
[null,null,null,null,null,null,null,null,null,null,null,null,null,null,null,null,1,1,1,3]
[null,null,null,null,null,null,null,null,null,null,null,null,null,null,null,null,1,1,1,3]
[null,null,null,null,null,null,null,null,null,null,null,null,null,null,null,null,1,1,1,3]
[null,null,null,null,null,null,null,null,null,null,null,null,null,null,null,null,1,1,1,3]
[null,null,null,null,null,null,null,null,null,null,null,null,null,null,null,null,1,1,1,3]
["ITEM NO","PAYMENT CLAUSE","DESCRIPTION","UNIT","QUANTITY","RATE","AMOUNT",null,null,null,null,null,null,null,null,null,1,1,1,3]
[null,null,null,null,null,null,null,null,null,null,null,null,null,null,null,null,1,1,1,3]
[null,null,"SECTION 5",null,null,null,null,null,null,null,null,null,null,null,null,null,1,1,1,3]
[null,null,null,null,null,null,null,null,null,null,null,null,null,null,null,null,1,1,1,3]
[null,"SANS 1200LB","BEDDING (PIPES)",null,null,null,null,null,null,null,null,null,null,null,null,null,1,1,1,3]
[null,null,null,null,null,null,null,null,null,null,null,null,null,null,null,null,1,1,1,3]
[null,null,null,null,null,null,null,null,null,null,null,null,null,null,null,null,1,1,1,3]
[5.0999999999999996,"PSLB 8.2.1","Provision of Bedding from Trench Excavations",null,null,null,null,null,null,null,null,null,null,null,null,null,1,1,1,3]
[null,null,null,null,null,null,null,null,null,null,null,null,null,null,null,null,1,1,1,3]
["5.1.1","PSLB 8.2.1.1","Without the need for screening or other treatments:",null,null,null,null,null,null,null,null,null,null,null,null,null,1,1,1,3]
[null,null,null,null,null,null,null,null,null,null,null,null,null,null,null,null,1,1,1,3]
["5.1.1.1",null,"(a) Selected granular material    ","m³",{"$f":"ROUNDUP(250*1.1*(0.9*1.2-(PI()*0.25*0.6*0.6)),0)","v":220},null,null,null,null,null,null,null,null,null,null,null,1,1,1,3]
[null,null,null,null,null,null,null,null,null,null,null,null,null,null,null,null,1,1,1,3]
["5.1.1.2",null,"(b) Selected fill material","m³",{"$f":"ROUNDUP(250*1.1*0.2*1.2,0)","v":66},null,null,null,null,null,null,null,null,null,null,null,1,1,1,3]
[null,null,null,null,null,null,null,null,null,null,null,null,null,null,null,null,1,1,1,3]
[5.2,"PSLB 8.2.1.3","Kaymat geotextile grade A6 or simillar approved. Surround to 19mm stone bedding ","m2",{"$f":"300*(1.2+1.2+0.15+0.15)","v":809.99999999999989},null,null,null,null,null,null,null,null,null,null,null,1,1,1,3]
[null,null,null,null,null,null,null,null,null,null,null,null,null,null,null,null,1,1,1,3]
[5.3,"8.2.2","Supply only of Bedding by Importation",null,null,null,null,null,null,null,null,null,null,null,null,null,1,1,1,3]
[null,null,null,null,null,null,null,null,null,null,null,null,null,null,null,null,{"$f":"IF(K1314=\"No comment\",0,1)","v":1},{"$f":"IF(L1314=\"No comment\",0,1)","v":1},{"$f":"IF(M1314=\"No comment\",0,1)","v":1},{"$f":"SUM(N1314:S1314)","v":3}]
["5.3.1","8.2.2.3","From commercial sources (Provisional)",null,null,null,null,null,null,null,null,null,null,null,null,null,1,1,1,3]
[null,null,null,null,null,null,null,null,null,null,null,null,null,null,null,null,1,1,1,3]
["5.3.1.1",null,"(a) Selected granular material   ","m³",{"$f":"ROUNDUP(0.5*(1150+180)*1.1*(0.9*1.2-(PI()*0.25*0.6*0.6)),0)","v":584},null,null,null,null,null,null,null,null,null,null,null,1,1,1,3]
[null,null,null,null,null,null,null,null,null,null,null,null,null,null,null,null,1,1,1,3]
["5.3.1.2",null,"(b) Selected fill material  ","m³",{"$f":"ROUNDUP((0.5*1380)*1.1*0.2*1.2,0)","v":183},null,null,null,null,null,null,null,null,null,null,null,1,1,1,3]
[null,null,null,null,null,null,null,null,null,null,null,null,null,null,null,null,1,1,1,3]
[5.4,"PSLB 8.2.4","Encasing of Pipes in Concrete",null,null,null,null,null,null,null,null,null,null,null,null,null,1,1,1,3]
[null,null,null,null,null,null,null,null,null,null,null,null,null,null,null,null,1,1,1,3]
["5.4.1",null,"a) Class 20Mpa/19mm concrete including reinforcement.","m³",{"$f":"2*50","v":100},null,null,null,null,null,null,null,null,null,null,null,1,1,1,3]
[null,null,null,null,null,null,null,null,null,null,null,null,null,null,null,null,1,1,1,3]
["5.4.2",null,"b) Soilcrete encasement to pipes as directed by Employer’s Agent","m³",{"$f":"ROUNDUP(200*1.1*(1.2*1.2-(PI()*0.25*0.6*0.6)),0)","v":255},null,null,null,null,null,null,null,null,null,null,null,1,1,1,3]
[null,null,null,null,null,null,null,null,null,null,null,null,null,null,null,null,1,1,1,3]
["5.4.3",null,"c) Cellular concrete as directed by the Employer’s Agent","m³",{"$f":"ROUNDUP(500*1.1*(1.2*1.2-(PI()*0.25*0.6*0.6)),0)","v":637},null,null,null,null,null,null,null,null,null,null,null,1,1,1,3]
[null,null,null,null,null,null,null,null,null,null,null,null,null,null,null,null,1,1,1,3]
[5.5,"PSLB 8.2.2.3","c) Special bedding materials",null,null,null,null,null,null,null,null,null,null,null,null,null,1,1,1,3]
[null,null,null,null,null,null,null,null,null,null,null,null,null,null,null,null,1,1,1,3]
["5.5.1",null,"i) Supply and install 19 mm crushed stone ","m³",175,null,null,null,null,null,null,null,null,null,null,null,1,1,1,3]
[null,null,null,null,null,null,null,null,null,null,null,null,null,null,null,null,1,1,1,3]
["5.5.2",null,"ii) Supply and install geotextile filter blanket (Grade A4) to wrap item (i) above and as instructed by the Employer`s Agent","m2",{"$f":"232*1.8*2","v":835.2},null,null,null,null,null,null,null,null,null,null,null,1,1,1,3]
[null,null,null,null,null,null,null,null,null,null,null,null,null,null,null,null,1,1,1,3]
[null,null,null,null,null,null,null,null,null,null,null,null,null,null,null,null,1,1,1,3]
[null,null,null,null,null,null,null,null,null,null,null,null,null,null,null,null,1,1,1,3]
[null,null,null,null,null,null,null,null,null,null,null,null,null,null,null,null,1,1,1,3]
[null,null,null,null,null,null,null,null,null,null,null,null,null,null,null,null,1,1,1,3]
[null,null,null,null,null,null,null,null,null,null,null,null,null,null,null,null,1,1,1,3]
[null,null,null,null,null,null,null,null,null,null,null,null,null,null,null,null,1,1,1,3]
[null,null,null,null,null,null,null,null,null,null,null,null,null,null,null,null,1,1,1,3]
[null,null,null,null,null,null,null,null,null,null,null,null,null,null,null,null,1,1,1,3]
[null,null,null,null,null,null,null,null,null,null,null,null,null,null,null,null,1,1,1,3]
[null,null,null,null,null,null,null,null,null,null,null,null,null,null,null,null,1,1,1,3]
[null,null,null,null,null,null,null,null,null,null,null,null,null,null,null,null,1,1,1,3]
[null,null,null,null,null,null,null,null,null,null,null,null,null,null,null,null,1,1,1,3]
[null,null,null,null,null,null,null,null,null,null,null,null,null,null,null,null,1,1,1,3]
[null,null,null,null,null,null,null,null,null,null,null,null,null,null,null,null,1,1,1,3]
[null,null,null,null,null,null,null,null,null,null,null,null,null,null,null,null,1,1,1,3]
[null,null,null,null,null,null,null,null,null,null,null,null,null,null,null,null,1,1,1,3]
[null,null,null,null,null,null,null,null,null,null,null,null,null,null,null,null,1,1,1,3]
[null,null,null,null,null,null,null,null,null,null,null,null,null,null,null,null,1,1,1,3]
[null,null,null,null,null,null,null,null,null,null,null,null,null,null,null,null,1,1,1,3]
[null,null,null,null,null,null,null,null,null,null,null,null,null,null,null,null,1,1,1,3]
[null,null,null,null,null,null,null,null,null,null,null,null,null,null,null,null,1,1,1,3]
[null,null,null,null,null,null,null,null,null,null,null,null,null,null,null,null,1,1,1,3]
[null,null,null,null,null,null,null,null,null,null,null,null,null,null,null,null,1,1,1,3]
[null,null,null,null,null,null,null,null,null,null,null,null,null,null,null,null,1,1,1,3]
[null,null,null,null,null,null,null,null,null,null,null,null,null,null,null,null,1,1,1,3]
[null,null,null,null,null,null,null,null,null,null,null,null,null,null,null,null,1,1,1,3]
[null,null,null,null,null,null,null,null,null,null,null,null,null,null,null,null,1,1,1,3]
[null,null,null,null,null,null,null,null,null,null,null,null,null,null,null,null,1,1,1,3]
[null,null,null,null,null,null,null,null,null,null,null,null,null,null,null,null,1,1,1,3]
[null,null,null,null,null,null,null,null,null,null,null,null,null,null,null,null,1,1,1,3]
[null,null,null,null,null,null,null,null,null,null,null,null,null,null,null,null,1,1,1,3]
[null,null,null,null,null,null,null,null,null,null,null,null,null,null,null,null,1,1,1,3]
[null,null,null,null,null,null,null,null,null,null,null,null,null,null,null,null,1,1,1,3]
[null,null,null,null,null,null,null,null,null,null,null,null,null,null,null,null,1,1,1,3]
[null,null,null,null,null,null,null,null,null,null,null,null,null,null,null,null,1,1,1,3]
[null,null,null,null,null,null,null,null,null,null,null,null,null,null,null,null,1,1,1,3]
[null,null,null,null,null,null,null,null,null,null,null,null,null,null,null,null,1,1,1,3]
[null,null,null,null,null,null,null,null,null,null,null,null,null,null,null,null,1,1,1,3]
[null,null,null,null,null,null,null,null,null,null,null,null,null,null,null,null,1,1,1,3]
[null,null,null,null,null,null,null,null,null,null,null,null,null,null,null,null,1,1,1,3]
[null,null,null,null,null,null,null,null,null,null,null,null,null,null,null,null,1,1,1,3]
[null,null,null,null,null,null,null,null,null,null,null,null,null,null,null,null,1,1,1,3]
[null,null,null,null,null,null,null,null,null,null,null,null,null,null,null,null,1,1,1,3]
[null,null,null,null,null,null,null,null,null,null,null,null,null,null,null,null,{"$f":"IF(K1378=\"No comment\",0,1)","v":1},{"$f":"IF(L1378=\"No comment\",0,1)","v":1},{"$f":"IF(M1378=\"No comment\",0,1)","v":1},{"$f":"SUM(N1378:S1378)","v":3}]
[null,null,null,null,null,null,null,null,null,null,null,null,null,null,null,null,1,1,1,3]
[null,null,null,null,null,null,null,null,null,null,null,null,null,null,null,null,1,1,1,3]
[null,null,null,null,null,null,null,null,null,null,null,null,null,null,null,null,1,1,1,3]
["TOTAL CARRIED TO SUMMARY PAGE",null,null,null,null,null,null,null,null,null,null,null,null,null,null,null,1,1,1,3]
["\n\n\n\n\n\n\n\n\nSECTION 6:\n\nCONCRETE\n\n",null,null,null,null,null,null,null,null,null,null,null,null,null,null,null,1,1,1,3]
["ITEM NO","PAYMENT CLAUSE","DESCRIPTION","UNIT","QUANTITY","RATE","AMOUNT",null,null,null,null,null,null,null,null,null,1,1,1,3]
[null,null,"SECTION 6",null,null,null,null,null,null,null,null,null,null,null,null,null,{"$f":"IF(K1385=\"No comment\",0,1)","v":1},{"$f":"IF(L1385=\"No comment\",0,1)","v":1},{"$f":"IF(M1385=\"No comment\",0,1)","v":1},{"$f":"SUM(N1385:S1385)","v":3}]
[null,null,null,null,null,null,null,null,null,null,null,null,null,null,null,null,1,1,1,3]
[null,"SANS 1200 G","CONCRETE (STRUCTURAL)",null,null,null,null,null,null,null,null,null,null,null,null,null,1,1,1,3]
[null,null,null,null,null,null,null,null,null,null,null,null,null,null,null,null,1,1,1,3]
[6.1,"8.3.1","Steel Bars",null,null,null,null,null,null,null,null,null,null,null,null,null,1,1,1,3]
[null,null,null,null,null,null,null,null,null,null,null,null,null,null,null,null,1,1,1,3]
["6.1.1",null,"Mild Steel","t",1,null,null,null,null,null,null,null,null,null,null,null,1,1,1,3]
[null,null,null,null,null,null,null,null,null,null,null,null,null,null,null,null,1,1,1,3]
["6.1.2",null,"High tensile steel ","t",1,null,null,null,null,null,null,null,null,null,null,null,1,1,1,3]
[null,null,null,null,null,null,null,null,null,null,null,null,null,null,null,null,1,1,1,3]
[6.2,8.4,"SCHEDULED CONCRETE ITEMS",null,null,null,null,null,null,null,null,null,null,null,null,null,1,1,1,3]
[null,null,null,null,null,null,null,null,null,null,null,null,null,null,null,null,1,1,1,3]
["6.2.1","8.4.2","Blinding Layer in 15/19 Concrete","m3",1,null,null,null,null,null,null,null,null,null,null,null,1,1,1,3]
[null,null,null,null,null,null,null,null,null,null,null,null,null,null,null,null,1,1,1,3]
["6.2.2","8.4.3","Strength Concrete, 35/19","m3",1,null,null,null,null,null,null,null,null,null,null,null,1,1,1,3]
[null,null,null,null,null,null,null,null,null,null,null,null,null,null,null,null,1,1,1,3]
[null,null,null,null,null,null,null,null,null,null,null,null,null,null,null,null,1,1,1,3]
[null,null,null,null,null,null,null,null,null,null,null,null,null,null,null,null,1,1,1,3]
[null,null,null,null,null,null,null,null,null,null,null,null,null,null,null,null,1,1,1,3]
[null,null,null,null,null,null,null,null,null,null,null,null,null,null,null,null,1,1,1,3]
[null,null,null,null,null,null,null,null,null,null,null,null,null,null,null,null,1,1,1,3]
[null,null,null,null,null,null,null,null,null,null,null,null,null,null,null,null,1,1,1,3]
[null,null,null,null,null,null,null,null,null,null,null,null,null,null,null,null,1,1,1,3]
[null,null,null,null,null,null,null,null,null,null,null,null,null,null,null,null,1,1,1,3]
[null,null,null,null,null,null,null,null,null,null,null,null,null,null,null,null,1,1,1,3]
[null,null,null,null,null,null,null,null,null,null,null,null,null,null,null,null,1,1,1,3]
[null,null,null,null,null,null,null,null,null,null,null,null,null,null,null,null,1,1,1,3]
[null,null,null,null,null,null,null,null,null,null,null,null,null,null,null,null,1,1,1,3]
[null,null,null,null,null,null,null,null,null,null,null,null,null,null,null,null,1,1,1,3]
[null,null,null,null,null,null,null,null,null,null,null,null,null,null,null,null,1,1,1,3]
[null,null,null,null,null,null,null,null,null,null,null,null,null,null,null,null,1,1,1,3]
[null,null,null,null,null,null,null,null,null,null,null,null,null,null,null,null,1,1,1,3]
[null,null,null,null,null,null,null,null,null,null,null,null,null,null,null,null,1,1,1,3]
[null,null,null,null,null,null,null,null,null,null,null,null,null,null,null,null,1,1,1,3]
[null,null,null,null,null,null,null,null,null,null,null,null,null,null,null,null,1,1,1,3]
[null,null,null,null,null,null,null,null,null,null,null,null,null,null,null,null,1,1,1,3]
[null,null,null,null,null,null,null,null,null,null,null,null,null,null,null,null,1,1,1,3]
[null,null,null,null,null,null,null,null,null,null,null,null,null,null,null,null,1,1,1,3]
[null,null,null,null,null,null,null,null,null,null,null,null,null,null,null,null,1,1,1,3]
[null,null,null,null,null,null,null,null,null,null,null,null,null,null,null,null,1,1,1,3]
[null,null,null,null,null,null,null,null,null,null,null,null,null,null,null,null,1,1,1,3]
[null,null,null,null,null,null,null,null,null,null,null,null,null,null,null,null,1,1,1,3]
[null,null,null,null,null,null,null,null,null,null,null,null,null,null,null,null,1,1,1,3]
[null,null,null,null,null,null,null,null,null,null,null,null,null,null,null,null,1,1,1,3]
[null,null,null,null,null,null,null,null,null,null,null,null,null,null,null,null,1,1,1,3]
[null,null,null,null,null,null,null,null,null,null,null,null,null,null,null,null,1,1,1,3]
[null,null,null,null,null,null,null,null,null,null,null,null,null,null,null,null,1,1,1,3]
[null,null,null,null,null,null,null,null,null,null,null,null,null,null,null,null,1,1,1,3]
[null,null,null,null,null,null,null,null,null,null,null,null,null,null,null,null,{"$f":"IF(K1433=\"No comment\",0,1)","v":1},{"$f":"IF(L1433=\"No comment\",0,1)","v":1},{"$f":"IF(M1433=\"No comment\",0,1)","v":1},{"$f":"SUM(N1433:S1433)","v":3}]
[null,null,null,null,null,null,null,null,null,null,null,null,null,null,null,null,1,1,1,3]
[null,null,null,null,null,null,null,null,null,null,null,null,null,null,null,null,1,1,1,3]
[null,null,null,null,null,null,null,null,null,null,null,null,null,null,null,null,1,1,1,3]
[null,null,null,null,null,null,null,null,null,null,null,null,null,null,null,null,1,1,1,3]
[null,null,null,null,null,null,null,null,null,null,null,null,null,null,null,null,1,1,1,3]
[null,null,null,null,null,null,null,null,null,null,null,null,null,null,null,null,1,1,1,3]
[null,null,null,null,null,null,null,null,null,null,null,null,null,null,null,null,1,1,1,3]
[null,null,null,null,null,null,null,null,null,null,null,null,null,null,null,null,1,1,1,3]
[null,null,null,null,null,null,null,null,null,null,null,null,null,null,null,null,1,1,1,3]
[null,null,null,null,null,null,null,null,null,null,null,null,null,null,null,null,1,1,1,3]
[null,null,null,null,null,null,null,null,null,null,null,null,null,null,null,null,1,1,1,3]
[null,null,null,null,null,null,null,null,null,null,null,null,null,null,null,null,1,1,1,3]
[null,null,null,null,null,null,null,null,null,null,null,null,null,null,null,null,1,1,1,3]
[null,null,null,null,null,null,null,null,null,null,null,null,null,null,null,null,1,1,1,3]
[null,null,null,null,null,null,null,null,null,null,null,null,null,null,null,null,1,1,1,3]
[null,null,null,null,null,null,null,null,null,null,null,null,null,null,null,null,1,1,1,3]
[null,null,null,null,null,null,null,null,null,null,null,null,null,null,null,null,1,1,1,3]
[null,null,null,null,null,null,null,null,null,null,null,null,null,null,null,null,1,1,1,3]
[null,null,null,null,null,null,null,null,null,null,null,null,null,null,null,null,1,1,1,3]
[null,null,null,null,null,null,null,null,null,null,null,null,null,null,null,null,1,1,1,3]
[null,null,null,null,null,null,null,null,null,null,null,null,null,null,null,null,1,1,1,3]
[null,null,null,null,null,null,null,null,null,null,null,null,null,null,null,null,1,1,1,3]
[null,null,null,null,null,null,null,null,null,null,null,null,null,null,null,null,1,1,1,3]
[null,null,null,null,null,null,null,null,null,null,null,null,null,null,null,null,1,1,1,3]
[null,null,null,null,null,null,null,null,null,null,null,null,null,null,null,null,1,1,1,3]
[null,null,null,null,null,null,null,null,null,null,null,null,null,null,null,null,1,1,1,3]
[null,null,null,null,null,null,null,null,null,null,null,null,null,null,null,null,1,1,1,3]
[null,null,null,null,null,null,null,null,null,null,null,null,null,null,null,null,1,1,1,3]
[null,null,null,null,null,null,null,null,null,null,null,null,null,null,null,null,1,1,1,3]
[null,null,null,null,null,null,null,null,null,null,null,null,null,null,null,null,1,1,1,3]
[null,null,null,null,null,null,null,null,null,null,null,null,null,null,null,null,1,1,1,3]
[null,null,null,null,null,null,null,null,null,null,null,null,null,null,null,null,1,1,1,3]
[null,null,null,null,null,null,null,null,null,null,null,null,null,null,null,null,1,1,1,3]
["TOTAL CARRIED FORWARD TO SUMMARY PAGE",null,null,null,null,null,null,null,null,null,null,null,null,null,null,null,1,1,1,3]
["\n\n\n\n\n\n\n\n\nSECTION 7:\n\nPIPE JACKING\n\n",null,null,null,null,null,null,null,null,null,null,null,null,null,null,null,1,1,1,3]
["ITEM NO","PAYMENT CLAUSE","DESCRIPTION","UNIT","QUANTITY","RATE","AMOUNT",null,null,null,null,null,null,null,null,null,1,1,1,3]
[]
[null,null,"SECTION 7",null,null,null,null,null,null,null,null,null,null,null,null,null,{"$f":"IF(K1471=\"No comment\",0,1)","v":1},{"$f":"IF(L1471=\"No comment\",0,1)","v":1},{"$f":"IF(M1471=\"No comment\",0,1)","v":1},{"$f":"SUM(N1471:S1471)","v":3}]
[null,null,null,null,null,null,null,null,null,null,null,null,null,null,null,null,1,1,1,3]
[7,"SANS 1200 LG","PIPE JACKING",null,null,null,null,null,null,null,null,null,null,null,null,null,1,1,1,3]
[null,null,null,null,null,null,null,null,null,null,null,null,null,null,null,null,1,1,1,3]
[7.1,null,"Jacking Establishment",null,null,null,null,null,null,null,null,null,null,null,null,null,1,1,1,3]
[null,null,null,null,null,null,null,null,null,null,null,null,null,null,null,null,1,1,1,3]
["7.1.1","8.2.1","(a) Fixed charges","Sum",1,null,null,null,null,null,null,null,null,null,null,null,1,1,1,3]
[null,null,null,null,null,null,null,null,null,null,null,null,null,null,null,null,1,1,1,3]
["7.1.2","8.2.1","b) Time-related charges (period to be stated by the contractor): ","Sum",1,null,null,null,null,null,null,null,null,null,null,null,1,1,1,3]
[null,null,"Period…………………………………………………………..",null,null,null,{"$f":"IF(E1480<>\"\",E1480*F1480,\"\")","v":""},null,null,null,null,null,null,null,null,null,1,1,1,3]
[null,null,null,null,null,null,"",null,null,null,null,null,null,null,null,null,1,1,1,3]
[7.2,"PSLG 8.2.6","Supply and Install Pipes by Pipe Jacking Method, Complete with Excavations and grouting.",null,null,null,"",null,null,null,null,null,null,null,null,null,1,1,1,3]
[null,null,null,null,null,null,"",null,null,null,null,null,null,null,null,null,1,1,1,3]
[null,null,"Supply and install 2400 mm OD diameter concrete pipes (Class 100D with external metal sleeve and butt joint) by pipe jacking method, complete with excavations in soft and intermediate material and grouting of external voids with a 1:2 cement and plasticiser mix, for the following road and railway crossings: ",null,null,null,"",null,null,null,null,null,null,null,null,null,1,1,1,3]
[null,null,null,null,null,null,"",null,null,null,null,null,null,null,null,null,1,1,1,3]
["7.2.1",null,"i) Pipe Jacking No.2(Drawing No. JW14090R-AL-LAY11-W)","m",71,null,null,null,null,null,null,null,null,null,null,null,1,1,1,3]
[null,null,null,null,null,null,null,null,null,null,null,null,null,null,null,null,1,1,1,3]
["7.2.2",null,"ii) Pipe Jacking No.3(Drawing No. JW14090R-AL-LAY12-W)","m",18,null,null,null,null,null,null,null,null,null,null,null,1,1,1,3]
[null,null,null,null,null,null,null,null,null,null,null,null,null,null,null,null,{"$f":"IF(K1489=\"No comment\",0,1)","v":1},{"$f":"IF(L1489=\"No comment\",0,1)","v":1},{"$f":"IF(M1489=\"No comment\",0,1)","v":1},{"$f":"SUM(N1489:S1489)","v":3}]
["7.2.3",null,"iii) Pipe Jacking No.4(Drawing No. JW14090R-AL-LAY13-W)","m",40,null,null,null,null,null,null,null,null,null,null,null,1,1,1,3]
[null,null,null,null,null,null,null,null,null,null,null,null,null,null,null,null,1,1,1,3]
["7.2.4",null,"iv) Pipe Jacking No.5(Drawing No. JW14090R-AL-LAY14-W)","m",79,null,null,null,null,null,null,null,null,null,null,null,1,1,1,3]
[null,null,null,null,null,null,null,null,null,null,null,null,null,null,null,null,1,1,1,3]
["7.2.5",null,"v) Pipe Jacking No.6(Drawing No. JW14090R-AL-LAY15-W)","m",20,null,null,null,null,null,null,null,null,null,null,null,1,1,1,3]
[null,null,null,null,null,null,null,null,null,null,null,null,null,null,null,null,1,1,1,3]
["7.2.6",null,"vi) Pipe Jacking No.7(Drawing No. JW14090R-AL-LAY16-W)","m",13,null,null,null,null,null,null,null,null,null,null,null,1,1,1,3]
[null,null,null,null,null,null,null,null,null,null,null,null,null,null,null,null,1,1,1,3]
[7.3,"8.2.8","Extra-Over 7.2 for Excavation in Rock",null,null,null,null,null,null,null,null,null,null,null,null,null,1,1,1,3]
[null,null,null,null,null,null,null,null,null,null,null,null,null,null,null,null,1,1,1,3]
["7.3.1",null,"a) Using pneumatic tools (where blasting is not used)","m³",189,null,null,null,null,null,null,null,null,null,null,null,1,1,1,3]
[null,null,null,null,null,null,null,null,null,null,null,null,null,null,null,null,1,1,1,3]
["7.3.2",null,"b) Using explosives (where permitted) ","m³",100,null,null,null,null,null,null,null,null,null,null,null,1,1,1,3]
[null,null,null,null,null,null,null,null,null,null,null,null,null,null,null,null,1,1,1,3]
[7.4,"PSLG 8.2.13","Extra-Over 7.2 for Using Alternative Rectangular concrete section  of 2100mm Wide x 2100mm Height  internal dimensions AND 250mm  wall thickness or similar approved.","m",1,null,"Rate Only"]
[]
[7.5,"PSLG 8.2.9","Grouting Voids",null,null,null,null,null,null,null,null,null,null,null,null,null,1,1,1,3]
[null,null,null,null,null,null,null,null,null,null,null,null,null,null,null,null,1,1,1,3]
[null,null,"a) Grouting voids inside (annulus) pipe jacking sleeves with cement/sand grout (mix ratio 1:2 cement:sand with plasticiser)","m³",{"$f":"((PI()*0.25*0.9*0.9)-(PI()*0.25*0.6*0.6))*SUM(E1488:E1496)","v":60.082959499904803},null,null,null,null,null,null,null,null,null,null,null,1,1,1,3]
[null,null,null,null,null,null,null,null,null,null,null,null,null,null,null,null,1,1,1,3]
[7.6,"8.2.10","Standing Time for Pipe Jacking Gang and the Jacking Equipment Covered by 7.2.1","h",40,null,null,null,null,null,null,null,null,null,null,null,1,1,1,3]
[null,null,null,null,null,null,null,null,null,null,null,null,null,null,null,null,1,1,1,3]
[7.7,"PSLG 8.2.11","Brick Wall closures","No",14,null,null,null,null,null,null,null,null,null,null,null,1,1,1,3]
[null,null,null,null,null,null,null,null,null,null,null,null,null,null,null,null,1,1,1,3]
[7.8,"PSLG 8.2.12","Concrete pedestals complete with clamps as per detail (Drawing No. JW14090R-AL-LAY11-W to JW14090R-AL-LAY16-W, Section Through sleeve)","No",{"$f":"241/6","v":40.166666666666664}]
[null,null,null,null,null,null,null,null,null,null,null,null,null,null,null,null,1,1,1,3]
[null,null,null,null,null,null,null,null,null,null,null,null,null,null,null,null,1,1,1,3]
[null,null,null,null,null,null,null,null,null,null,null,null,null,null,null,null,1,1,1,3]
[null,null,null,null,null,null,null,null,null,null,null,null,null,null,null,null,1,1,1,3]
[null,null,null,null,null,null,null,null,null,null,null,null,null,null,null,null,1,1,1,3]
[null,null,null,null,null,null,null,null,null,null,null,null,null,null,null,null,1,1,1,3]
[null,null,null,null,null,null,null,null,null,null,null,null,null,null,null,null,1,1,1,3]
[null,null,null,null,null,null,null,null,null,null,null,null,null,null,null,null,1,1,1,3]
[null,null,null,null,null,null,null,null,null,null,null,null,null,null,null,null,1,1,1,3]
[null,null,null,null,null,null,null,null,null,null,null,null,null,null,null,null,1,1,1,3]
[null,null,null,null,null,null,null,null,null,null,null,null,null,null,null,null,1,1,1,3]
[null,null,null,null,null,null,null,null,null,null,null,null,null,null,null,null,1,1,1,3]
[null,null,null,null,null,null,null,null,null,null,null,null,null,null,null,null,1,1,1,3]
[null,null,null,null,null,null,null,null,null,null,null,null,null,null,null,null,1,1,1,3]
[null,null,null,null,null,null,null,null,null,null,null,null,null,null,null,null,1,1,1,3]
[null,null,null,null,null,null,null,null,null,null,null,null,null,null,null,null,1,1,1,3]
[null,null,null,null,null,null,null,null,null,null,null,null,null,null,null,null,1,1,1,3]
[null,null,null,null,null,null,null,null,null,null,null,null,null,null,null,null,1,1,1,3]
[null,null,null,null,null,null,null,null,null,null,null,null,null,null,null,null,1,1,1,3]
[null,null,null,null,null,null,null,null,null,null,null,null,null,null,null,null,1,1,1,3]
[null,null,null,null,null,null,null,null,null,null,null,null,null,null,null,null,1,1,1,3]
["TOTAL CARRIED TO SUMMARY PAGE",null,null,null,null,null,null,null,null,null,null,null,null,null,null,null,1,1,1,3]
["ITEM NO","PAYMENT CLAUSE","DESCRIPTION","UNIT","QUANTITY","RATE","AMOUNT",null,null,null,null,null,null,null,null,null,1,1,1,3]
[]
[null,"SECTION 8","VALVE CHAMBERS",null,null,null,null,null,null,null,null,null,null,null,null,null,{"$f":"IF(K1539=\"No comment\",0,1)","v":1},{"$f":"IF(L1539=\"No comment\",0,1)","v":1},{"$f":"IF(M1539=\"No comment\",0,1)","v":1},{"$f":"SUM(N1539:S1539)","v":3}]
[null,null,null,null,null,null,null,null,null,null,null,null,null,null,null,null,1,1,1,3]
[8,"SANS 1200DA","EARTHWORKS (SMALL WORKS)",null,null,null,null,null,null,null,null,null,null,null,null,null,1,1,1,3]
[null,null,null,null,null,null,null,null,null,null,null,null,null,null,null,null,1,1,1,3]
[8.1,"8.3.1","Excavation of top soil",null,null,null,null,null,null,null,null,null,null,null,null,null,1,1,1,3]
[null,null,null,null,null,null,null,null,null,null,null,null,null,null,null,null,1,1,1,3]
["8.1.1",null,"(a) Remove top soil to nominal depth 150 mm, stockpile and maintain","m²",{"$f":"4.7*4.2*2+2.3*2.3*7+3.8*2.5*2","v":95.509999999999991},null,null,null,null,null,null,null,null,null,null,null,{"$f":"IF(K1545=\"No comment\",0,1)","v":1},{"$f":"IF(L1545=\"No comment\",0,1)","v":1},{"$f":"IF(M1545=\"No comment\",0,1)","v":1},{"$f":"SUM(N1545:S1545)","v":3}]
[null,null,null,null,null,null,null,null,null,null,null,null,null,null,null,null,1,1,1,3]
[8.1999999999999993,"8.3.2","Restricted Excavation",null,null,null,null,null,null,null,null,null,null,null,null,null,1,1,1,3]
[null,null,null,null,null,null,null,null,null,null,null,null,null,null,null,null,1,1,1,3]
["8.2.1",null,"(a) Excavate for restricted foundations, footings and trenches in all materials and use for backfill or embankment or dispose","m³",312,null,null,null,null,null,null,null,null,null,null,null,1,1,1,3]
[null,null,null,null,null,null,null,null,null,null,null,null,null,null,null,null,1,1,1,3]
["8.2.2",null,"b) Extra-over for",null,null,null,null,null,null,null,null,null,null,null,null,null,1,1,1,3]
[null,null,null,null,null,null,null,null,null,null,null,null,null,null,null,null,1,1,1,3]
["8.2.2.1","8.3.2(b)","(2) Hard rock excavation","m³",12,null,null,null,null,null,null,null,null,null,null,null,1,1,1,3]
[null,null,null,null,null,null,null,null,null,null,null,null,null,null,null,null,1,1,1,3]
[8.3000000000000007,"8.3.4","Importing of Materials from Commercial Sources","m³",73,null,null,null,null,null,null,null,null,null,null,null,1,1,1,3]
[null,null,null,null,null,null,null,null,null,null,null,null,null,null,null,null,1,1,1,3]
[null,null,null,null,null,null,null,null,null,null,null,null,null,null,null,null,1,1,1,3]
[null,null,null,null,null,null,null,null,null,null,null,null,null,null,null,null,1,1,1,3]
[null,null,null,null,null,null,null,null,null,null,null,null,null,null,null,null,1,1,1,3]
[null,null,null,null,null,null,null,null,null,null,null,null,null,null,null,null,1,1,1,3]
[null,null,null,null,null,null,null,null,null,null,null,null,null,null,null,null,1,1,1,3]
[null,null,null,null,null,null,null,null,null,null,null,null,null,null,null,null,1,1,1,3]
[null,null,null,null,null,null,null,null,null,null,null,null,null,null,null,null,1,1,1,3]
[null,null,null,null,null,null,null,null,null,null,null,null,null,null,null,null,1,1,1,3]
[null,null,null,null,null,null,null,null,null,null,null,null,null,null,null,null,1,1,1,3]
[null,null,null,null,null,null,null,null,null,null,null,null,null,null,null,null,1,1,1,3]
[null,null,null,null,null,null,null,null,null,null,null,null,null,null,null,null,1,1,1,3]
[null,null,null,null,null,null,null,null,null,null,null,null,null,null,null,null,1,1,1,3]
[null,null,null,null,null,null,null,null,null,null,null,null,null,null,null,null,1,1,1,3]
[null,null,null,null,null,null,null,null,null,null,null,null,null,null,null,null,1,1,1,3]
[null,null,null,null,null,null,null,null,null,null,null,null,null,null,null,null,1,1,1,3]
[null,null,null,null,null,null,null,null,null,null,null,null,null,null,null,null,1,1,1,3]
[null,null,null,null,null,null,null,null,null,null,null,null,null,null,null,null,1,1,1,3]
[null,null,null,null,null,null,null,null,null,null,null,null,null,null,null,null,1,1,1,3]
[null,null,null,null,null,null,null,null,null,null,null,null,null,null,null,null,1,1,1,3]
[null,null,null,null,null,null,null,null,null,null,null,null,null,null,null,null,1,1,1,3]
[null,null,null,null,null,null,null,null,null,null,null,null,null,null,null,null,1,1,1,3]
[null,null,null,null,null,null,null,null,null,null,null,null,null,null,null,null,1,1,1,3]
[null,null,null,null,null,null,null,null,null,null,null,null,null,null,null,null,1,1,1,3]
[null,null,null,null,null,null,null,null,null,null,null,null,null,null,null,null,1,1,1,3]
[null,null,null,null,null,null,null,null,null,null,null,null,null,null,null,null,1,1,1,3]
[null,null,null,null,null,null,null,null,null,null,null,null,null,null,null,null,1,1,1,3]
[null,null,null,null,null,null,null,null,null,null,null,null,null,null,null,null,1,1,1,3]
[null,null,null,null,null,null,null,null,null,null,null,null,null,null,null,null,1,1,1,3]
[null,null,null,null,null,null,null,null,null,null,null,null,null,null,null,null,1,1,1,3]
[null,null,null,null,null,null,null,null,null,null,null,null,null,null,null,null,1,1,1,3]
[null,null,null,null,null,null,null,null,null,null,null,null,null,null,null,null,1,1,1,3]
[null,null,null,null,null,null,null,null,null,null,null,null,null,null,null,null,1,1,1,3]
[null,null,null,null,null,null,null,null,null,null,null,null,null,null,null,null,1,1,1,3]
[null,null,null,null,null,null,null,null,null,null,null,null,null,null,null,null,1,1,1,3]
[null,null,null,null,null,null,null,null,null,null,null,null,null,null,null,null,1,1,1,3]
[null,null,null,null,null,null,null,null,null,null,null,null,null,null,null,null,1,1,1,3]
[null,null,null,null,null,null,null,null,null,null,null,null,null,null,null,null,1,1,1,3]
[null,null,null,null,null,null,null,null,null,null,null,null,null,null,null,null,1,1,1,3]
[null,null,null,null,null,null,null,null,null,null,null,null,null,null,null,null,1,1,1,3]
[null,null,null,null,null,null,null,null,null,null,null,null,null,null,null,null,1,1,1,3]
[null,null,null,null,null,null,null,null,null,null,null,null,null,null,null,null,1,1,1,3]
[null,null,null,null,null,null,null,null,null,null,null,null,null,null,null,null,1,1,1,3]
[null,null,null,null,null,null,null,null,null,null,null,null,null,null,null,null,1,1,1,3]
[null,null,null,null,null,null,null,null,null,null,null,null,null,null,null,null,1,1,1,3]
[null,null,null,null,null,null,null,null,null,null,null,null,null,null,null,null,1,1,1,3]
[null,null,null,null,null,null,null,null,null,null,null,null,null,null,null,null,1,1,1,3]
[null,null,null,null,null,null,null,null,null,null,null,null,null,null,null,null,1,1,1,3]
[null,null,null,null,null,null,null,null,null,null,null,null,null,null,null,null,1,1,1,3]
[null,null,null,null,null,null,null,null,null,null,null,null,null,null,null,null,1,1,1,3]
[null,null,null,null,null,null,null,null,null,null,null,null,null,null,null,null,1,1,1,3]
[null,null,null,null,null,null,null,null,null,null,null,null,null,null,null,null,1,1,1,3]
[null,null,null,null,null,null,null,null,null,null,null,null,null,null,null,null,1,1,1,3]
[null,null,null,null,null,null,null,null,null,null,null,null,null,null,null,null,{"$f":"IF(K1609=\"No comment\",0,1)","v":1},{"$f":"IF(L1609=\"No comment\",0,1)","v":1},{"$f":"IF(M1609=\"No comment\",0,1)","v":1},{"$f":"SUM(N1609:S1609)","v":3}]
["TOTAL CARRIED FORWARD TO NEXT PAGE",null,null,null,null,null,null,null,null,null,null,null,null,null,null,null,1,1,1,3]
["ITEM NO","PAYMENT CLAUSE","DESCRIPTION","UNIT","QUANTITY","RATE","AMOUNT",null,null,null,null,null,null,null,null,null,1,1,1,3]
[null,null,"TOTAL CARRIED FROM PREVIOUS PAGE",null,null,null,null,null,null,null,null,null,null,null,null,null,1,1,1,3]
[null,null,"SECTION 8.3",null,null,null,null,null,null,null,null,null,null,null,null,null,1,1,1,3]
[null,null,null,null,null,null,null,null,null,null,null,null,null,null,null,null,1,1,1,3]
[8.3000000000000007,"SANS 1200DB","EARTHWORKS (PIPE TRENCHES)",null,null,null,null,null,null,null,null,null,null,null,null,null,1,1,1,3]
[null,null,null,null,null,null,null,null,null,null,null,null,null,null,null,null,1,1,1,3]
["8.3.1","PSDB\n8.3.2(b)","(2) Non Explosive Breaking as per instruction of the Engineer","m³",3,null,null,null,null,null,null,null,null,null,null,null,1,1,1,3]
[null,null,null,null,null,null,null,null,null,null,null,null,null,null,null,null,1,1,1,3]
["8.3.2",null,"Particular Items",null,null,null,null,null,null,null,null,null,null,null,null,null,1,1,1,3]
[null,null,null,null,null,null,null,null,null,null,null,null,null,null,null,null,1,1,1,3]
["8.3.2.1","SANS 1200DB 8.3.4 a)","Shore trench opposite structure or service","m",160,null,null,null,null,null,null,null,null,null,null,null,1,1,1,3]
[null,null,null,null,null,null,null,null,null,null,null,null,null,null,null,null,1,1,1,3]
[null,null,null,null,null,null,null,null,null,null,null,null,null,null,null,null,1,1,1,3]
[null,null,null,null,null,null,null,null,null,null,null,null,null,null,null,null,1,1,1,3]
[null,null,null,null,null,null,null,null,null,null,null,null,null,null,null,null,1,1,1,3]
[null,null,null,null,null,null,null,null,null,null,null,null,null,null,null,null,1,1,1,3]
[null,null,null,null,null,null,null,null,null,null,null,null,null,null,null,null,1,1,1,3]
[null,null,null,null,null,null,null,null,null,null,null,null,null,null,null,null,1,1,1,3]
[null,null,null,null,null,null,null,null,null,null,null,null,null,null,null,null,1,1,1,3]
[null,null,null,null,null,null,null,null,null,null,null,null,null,null,null,null,1,1,1,3]
[null,null,null,null,null,null,null,null,null,null,null,null,null,null,null,null,1,1,1,3]
[null,null,null,null,null,null,null,null,null,null,null,null,null,null,null,null,1,1,1,3]
[null,null,null,null,null,null,null,null,null,null,null,null,null,null,null,null,1,1,1,3]
[null,null,null,null,null,null,null,null,null,null,null,null,null,null,null,null,1,1,1,3]
[null,null,null,null,null,null,null,null,null,null,null,null,null,null,null,null,1,1,1,3]
[null,null,null,null,null,null,null,null,null,null,null,null,null,null,null,null,1,1,1,3]
[null,null,null,null,null,null,null,null,null,null,null,null,null,null,null,null,1,1,1,3]
[null,null,null,null,null,null,null,null,null,null,null,null,null,null,null,null,1,1,1,3]
[null,null,null,null,null,null,null,null,null,null,null,null,null,null,null,null,1,1,1,3]
["TOTAL CARRIED FORWARD TO NEXT PAGE",null,null,null,null,null,null,null,null,null,null,null,null,null,null,null,1,1,1,3]
["ITEM NO","PAYMENT CLAUSE","DESCRIPTION","UNIT","QUANTITY","RATE","AMOUNT",null,null,null,null,null,null,null,null,null,1,1,1,3]
[null,null,"TOTAL CARRIED FROM PREVIOUS PAGE",null,null,null,null,null,null,null,null,null,null,null,null,null,1,1,1,3]
[]
[null,null,"SECTION 8.4",null,null,null,null,null,null,null,null,null,null,null,null,null,1,1,1,3]
[null,null,null,null,null,null,null,null,null,null,null,null,null,null,null,null,1,1,1,3]
[8.4,"SANS 1200G","CONCRETE (STRUCTURAL)",null,null,null,null,null,null,null,null,null,null,null,null,null,1,1,1,3]
[null,null,null,null,null,null,null,null,null,null,null,null,null,null,null,null,1,1,1,3]
["8.4.1",8.1999999999999993,"Scheduled Formwork items",null,null,null,null,null,null,null,null,null,null,null,null,null,1,1,1,3]
[null,null,null,null,null,null,null,null,null,null,null,null,null,null,null,null,1,1,1,3]
["8.4.1.1","8.2.2","Smooth",null,null,null,null,null,null,null,null,null,null,null,null,null,1,1,1,3]
[null,null,null,null,null,null,null,null,null,null,null,null,null,null,null,null,1,1,1,3]
["8.4.1.1.1",null,"Horizontal, for chamber roof slab soffit",null,null,null,null,null,null,null,null,null,null,null,null,null,1,1,1,3]
[null,null,null,null,null,null,null,null,null,null,null,null,null,null,null,null,1,1,1,3]
["8.4.1.1.1.1",null," (i) Scour Valves"," m²",10,null,null,null,null,null,null,null,null,null,null,null,1,1,1,3]
[null,null,null,null,null,null,null,null,null,null,null,null,null,null,null,null,1,1,1,3]
["8.4.1.1.1.2",null," (ii) Air Valves"," m²",38,null,null,null,null,null,null,null,null,null,null,null,1,1,1,3]
[null,null,null,null,null,null,null,null,null,null,null,null,null,null,null,null,1,1,1,3]
["8.4.1.1.1.3",null," (iii) Gate Valves"," m²",39,null,null,null,null,null,null,null,null,null,null,null,1,1,1,3]
[null,null,null,null,null,null,null,null,null,null,null,null,null,null,null,null,1,1,1,3]
["8.4.1.2",null,"Vertical, for chamber walls including floor and roof slab;",null,null,null,null,null,null,null,null,null,null,null,null,null,1,1,1,3]
[null,null,null,null,null,null,null,null,null,null,null,null,null,null,null,null,1,1,1,3]
["8.4.1.2.1",null," (i) Scour Valves"," m²",110,null,null,null,null,null,null,null,null,null,null,null,1,1,1,3]
[null,null,null,null,null,null,null,null,null,null,null,null,null,null,null,null,1,1,1,3]
["8.4.1.2.2",null," (ii) Air Valves"," m²",110,null,null,null,null,null,null,null,null,null,null,null,1,1,1,3]
[null,null,null,null,null,null,null,null,null,null,null,null,null,null,null,null,1,1,1,3]
["8.4.1.2.3",null," (iii) Gate Valves"," m²",128,null,null,null,null,null,null,null,null,null,null,null,1,1,1,3]
[null,null,null,null,null,null,null,null,null,null,null,null,null,null,null,null,1,1,1,3]
["8.4.1.3","8.2.5","Narrow widths up to 300mm wide:",null,null,null,null,null,null,null,null,null,null,null,null,null,1,1,1,3]
[null,null,null,null,null,null,null,null,null,null,null,null,null,null,null,null,1,1,1,3]
["8.4.1.3.1",null," (i) Scour Valves"," m²",33,null,null,null,null,null,null,null,null,null,null,null,1,1,1,3]
[null,null,null,null,null,null,null,null,null,null,null,null,null,null,null,null,1,1,1,3]
["8.4.1.3.2",null," (ii) Air Valves"," m²",{"$f":"90","v":90},null,null,null,null,null,null,null,null,null,null,null,1,1,1,3]
[null,null,null,null,null,null,null,null,null,null,null,null,null,null,null,null,1,1,1,3]
["8.4.1.3.3",null," (iii) Gate Valves"," m²",21,null,null,null,null,null,null,null,null,null,null,null,{"$f":"IF(K1674=\"No comment\",0,1)","v":1},{"$f":"IF(L1674=\"No comment\",0,1)","v":1},{"$f":"IF(M1674=\"No comment\",0,1)","v":1},{"$f":"SUM(N1674:S1674)","v":3}]
[null,null,null,null,null,null,null,null,null,null,null,null,null,null,null,null,1,1,1,3]
["8.4.1.4","8.2.6","Box Out Holes/Form Voids.",null,null,null,null,null,null,null,null,null,null,null,null,null,1,1,1,3]
[null,null,null,null,null,null,null,null,null,null,null,null,null,null,null,null,1,1,1,3]
["8.4.1.4.1",null,"d) Large, other than circular, of area over 0, l m² and up and including 0.5 m²",null,null,null,null,null,null,null,null,null,null,null,null,null,1,1,1,3]
[null,null,null,null,null,null,null,null,null,null,null,null,null,null,null,null,1,1,1,3]
["8.4.1.4.1.1",null,"(3) 1.0m to 1.5m deep","No.",2,null,null,null,null,null,null,null,null,null,null,null,1,1,1,3]
[null,null,null,null,null,null,null,null,null,null,null,null,null,null,null,null,1,1,1,3]
["8.4.1.4.1.2",null,"(4) 1.5m to 2.0m deep","No.",6,null,null,null,null,null,null,null,null,null,null,null,1,1,1,3]
[null,null,null,null,null,null,null,null,null,null,null,null,null,null,null,null,1,1,1,3]
["8.4.1.4.1.3",null,"(5) 2.0m to 5.0m deep","No.",16,null,null,null,null,null,null,null,null,null,null,null,1,1,1,3]
[null,null,null,null,null,null,null,null,null,null,null,null,null,null,null,null,1,1,1,3]
["8.4.2",8.3000000000000007,"Scheduled Reinforcement Items",null,null,null,null,null,null,null,null,null,null,null,null,null,1,1,1,3]
[null,null,null,null,null,null,null,null,null,null,null,null,null,null,null,null,1,1,1,3]
["8.4.2.1","8.3.1","(a) Steel Bars (High-tensile):",null,null,null,null,null,null,null,null,null,null,null,null,null,1,1,1,3]
[null,null,null,null,null,null,null,null,null,null,null,null,null,null,null,null,1,1,1,3]
["8.4.2.1.1",null," (i) Scour valve chamber","kg",6679,null,null,null,null,null,null,null,null,null,null,null,1,1,1,3]
[null,null,null,null,null,null,null,null,null,null,null,null,null,null,null,null,1,1,1,3]
["8.4.2.1.2",null," (ii) Air valve chambers","kg",{"$f":"ROUNDUP(0.085*11*7850*6,-1)","v":44040},null,null,null,null,null,null,null,null,null,null,null,1,1,1,3]
[null,null,null,null,null,null,null,null,null,null,null,null,null,null,null,null,1,1,1,3]
["8.4.2.1.3",null," (iii) Gate valve chambers","kg",{"$f":"6556*2","v":13112},null,null,null,null,null,null,null,null,null,null,null,1,1,1,3]
[null,null,null,null,null,null,null,null,null,null,null,null,null,null,null,null,1,1,1,3]
["8.4.2.1.4",null," (iv) Pressure reducing valve chamber","kg",{"$f":"6556*1","v":6556},null,null,null,null,null,null,null,null,null,null,null,1,1,1,3]
[null,null,null,null,null,null,null,null,null,null,null,null,null,null,null,null,1,1,1,3]
["8.4.2.2","8.3.2","(b) Welded Mesh (High - tensile )",null,null,null,null,null,null,null,null,null,null,null,null,null,1,1,1,3]
[null,null,null,null,null,null,null,null,null,null,null,null,null,null,null,null,1,1,1,3]
["8.4.2.2.1",null," (i) Scour valve chamber"," m²",20,null,null,null,null,null,null,null,null,null,null,null,1,1,1,3]
[null,null,null,null,null,null,null,null,null,null,null,null,null,null,null,null,1,1,1,3]
["8.4.2.2.2",null," (ii) Air valve chambers"," m²",80,null,null,null,null,null,null,null,null,null,null,null,1,1,1,3]
[null,null,null,null,null,null,null,null,null,null,null,null,null,null,null,null,1,1,1,3]
["8.4.2.2.3",null," (iii) Gate valve chambers"," m²",80,null,null,null,null,null,null,null,null,null,null,null,1,1,1,3]
[null,null,null,null,null,null,null,null,null,null,null,null,null,null,null,null,1,1,1,3]
["8.4.2.2.4",null," (iv) Pressure reducing valve chamber"," m²",80,null,null,null,null,null,null,null,null,null,null,null,1,1,1,3]
[null,null,null,null,null,null,null,null,null,null,null,null,null,null,null,null,1,1,1,3]
["8.4.3",8.4,"Scheduled Concrete Items",null,null,null,null,null,null,null,null,null,null,null,null,null,1,1,1,3]
[null,null,null,null,null,null,null,null,null,null,null,null,null,null,null,null,1,1,1,3]
["8.4.3.1","8.4.2","75mm Blinding Layer concrete of grade 15/19 for:",null,null,null,null,null,null,null,null,null,null,null,null,null,1,1,1,3]
[null,null,null,null,null,null,null,null,null,null,null,null,null,null,null,null,1,1,1,3]
["8.4.3.1.1",null," (i) Scour valve chamber"," m³",{"$f":"SUM(E1738)*0.075","v":0.75},null,null,null,null,null,null,null,null,null,null,null,1,1,1,3]
[null,null,null,null,null,null,{"$f":"IF(E1713<>\"\",E1713*F1713,\"\")","v":""},null,null,null,null,null,null,null,null,null,1,1,1,3]
["TOTAL CARRIED FORWARD TO NEXT PAGE",null,null,null,null,null,null,null,null,null,null,null,null,null,null,null,1,1,1,3]
["ITEM NO","PAYMENT CLAUSE","DESCRIPTION","UNIT","QUANTITY","RATE","AMOUNT",null,null,null,null,null,null,null,null,null,1,1,1,3]
[null,null,"TOTAL CARRIED FROM PREVIOUS PAGE",null,null,null,null,null,null,null,null,null,null,null,null,null,1,1,1,3]
[]
["8.4.3.1.2",null," (ii) Air valve chambers"," m³",{"$f":"SUM(E1740)*0.075","v":2.85},null,null,null,null,null,null,null,null,null,null,null,1,1,1,3]
[null,null,null,null,null,null,null,null,null,null,null,null,null,null,null,null,1,1,1,3]
["8.4.3.1.3",null," (iii) Gate valve chambers"," m³",2.9249999999999998,null,null,null,null,null,null,null,null,null,null,null,1,1,1,3]
[null,null,null,null,null,null,null,null,null,null,null,null,null,null,null,null,1,1,1,3]
["8.4.3.1.4",null," (iv) Pressure reducing valve chamber"," m³",1,null,null,null,null,null,null,null,null,null,null,null,1,1,1,3]
[null,null,null,null,null,null,null,null,null,null,null,null,null,null,null,null,1,1,1,3]
["8.4.3.2","8.4.3","Structural concrete of grade 35/19 for:",null,null,null,null,null,null,null,null,null,null,null,null,null,1,1,1,3]
[null,null,null,null,null,null,null,null,null,null,null,null,null,null,null,null,1,1,1,3]
["8.4.3.2.1",null," (i) Scour valve chamber"," m³",30,null,null,null,null,null,null,null,null,null,null,null,1,1,1,3]
[null,null,null,null,null,null,null,null,null,null,null,null,null,null,null,null,1,1,1,3]
["8.4.3.2.2",null," (ii) Air valve chambers"," m³",90,null,null,null,null,null,null,null,null,null,null,null,1,1,1,3]
[null,null,null,null,null,null,null,null,null,null,null,null,null,null,null,null,1,1,1,3]
["8.4.3.2.3",null," (iii) Gate valve chambers"," m³",30,null,null,null,null,null,null,null,null,null,null,null,1,1,1,3]
[null,null,null,null,null,null,null,null,null,null,null,null,null,null,null,null,1,1,1,3]
["8.4.3.2.4",null," (iv) Pressure reducing valve chamber"," m³",30,null,null,null,null,null,null,null,null,null,null,null,1,1,1,3]
[null,null,null,null,null,null,null,null,null,null,null,null,null,null,null,null,1,1,1,3]
["8.4.3.3","8.4.4","Unformed  Surface Finishes",null,null,null,null,null,null,null,null,null,null,null,null,null,1,1,1,3]
[null,null,null,null,null,null,{"$f":"IF(E1735<>\"\",E1735*F1735,\"\")","v":""},null,null,null,null,null,null,null,null,null,1,1,1,3]
["8.4.3.3.1",null,"a) Wood-Float Finish for:",null,null,null,"",null,null,null,null,null,null,null,null,null,1,1,1,3]
[null,null,null,null,null,null,"",null,null,null,null,null,null,null,null,null,1,1,1,3]
["8.4.3.3.1.1",null," (i) Scour valve chamber"," m²",{"$f":"E1654","v":10},null,null,null,null,null,null,null,null,null,null,null,1,1,1,3]
[null,null,null,null,null,null,null,null,null,null,null,null,null,null,null,null,{"$f":"IF(K1739=\"No comment\",0,1)","v":1},{"$f":"IF(L1739=\"No comment\",0,1)","v":1},{"$f":"IF(M1739=\"No comment\",0,1)","v":1},{"$f":"SUM(N1739:S1739)","v":3}]
["8.4.3.3.1.2",null," (ii) Air valve chambers"," m²",{"$f":"E1656","v":38},null,null,null,null,null,null,null,null,null,null,null,1,1,1,3]
[null,null,null,null,null,null,null,null,null,null,null,null,null,null,null,null,1,1,1,3]
["8.4.3.3.1.3",null," (iii) Gate valve chambers"," m²",{"$f":"E1658","v":39},null,null,null,null,null,null,null,null,null,null,null,1,1,1,3]
[null,null,null,null,null,null,null,null,null,null,null,null,null,null,null,null,1,1,1,3]
["8.4.3.3.1.4",null," (iv) Pressure reducing valve chamber"," m²",50,null,null,null,null,null,null,null,null,null,null,null,1,1,1,3]
[null,null,null,null,null,null,"",null,null,null,null,null,null,null,null,null,1,1,1,3]
["TOTAL CARRIED FORWARD TO NEXT PAGE",null,null,null,null,null,null,null,null,null,null,null,null,null,null,null,1,1,1,3]
["ITEM NO","PAYMENT CLAUSE","DESCRIPTION","UNIT","QUANTITY","RATE","AMOUNT",null,null,null,null,null,null,null,null,null,1,1,1,3]
[null,null,"TOTAL CARRIED FROM PREVIOUS PAGE",null,null,null,null,null,null,null,null,null,null,null,null,null,1,1,1,3]
[null,null,"SECTION 8.5",null,null,null,null,null,null,null,null,null,null,null,null,null,1,1,1,3]
[null,null,null,null,null,null,null,null,null,null,null,null,null,null,null,null,1,1,1,3]
["8.5","PSHA ","STRUCTURAL STEELWORK (SUNDRY ITEMS) ",null,null,null,null,null,null,null,null,null,null,null,null,null,1,1,1,3]
[null,null,null,null,null,null,null,null,null,null,null,null,null,null,null,null,1,1,1,3]
["8.5.1","PSHA 8.3.7","Manhole cover",null,null,null,null,null,null,null,null,null,null,null,null,null,1,1,1,3]
[null,null,null,null,null,null,null,null,null,null,null,null,null,null,null,null,1,1,1,3]
["8.5.1.1",null,"(a) Air valve chambers","No",5,null,null,null,null,null,null,null,null,null,null,null,1,1,1,3]
[null,null,null,null,null,null,null,null,null,null,null,null,null,null,null,null,1,1,1,3]
["8.5.1.2",null,"(b) Scour valve chambers","No",1,null,null,null,null,null,null,null,null,null,null,null,1,1,1,3]
[null,null,null,null,null,null,null,null,null,null,null,null,null,null,null,null,1,1,1,3]
["8.5.1.3",null,"(c) Gate valve chambers","No",2,null,null,null,null,null,null,null,null,null,null,null,1,1,1,3]
[null,null,null,null,null,null,null,null,null,null,null,null,null,null,null,null,1,1,1,3]
["8.5.1.4",null,"(d) Pressure reducing valve chamber","No",3,null,null,null,null,null,null,null,null,null,null,null,1,1,1,3]
[null,null,null,null,null,null,null,null,null,null,null,null,null,null,null,null,1,1,1,3]
["8.5.2","PSHA 8.3.8","Roof ventilators",null,null,null,null,null,null,null,null,null,null,null,null,null,1,1,1,3]
[null,null,null,null,null,null,null,null,null,null,null,null,null,null,null,null,1,1,1,3]
["8.5.2.1",null,"(a) Air valve chambers","No",5,null,null,null,null,null,null,null,null,null,null,null,1,1,1,3]
[null,null,null,null,null,null,null,null,null,null,null,null,null,null,null,null,1,1,1,3]
["8.5.2.2",null,"(b) Scour valve chambers","No",1,null,null,null,null,null,null,null,null,null,null,null,1,1,1,3]
[null,null,null,null,null,null,null,null,null,null,null,null,null,null,null,null,1,1,1,3]
["8.5.2.3",null,"(c) Gate valve chambers","No",2,null,null,null,null,null,null,null,null,null,null,null,1,1,1,3]
[null,null,null,null,null,null,null,null,null,null,null,null,null,null,null,null,1,1,1,3]
["8.5.2.4",null,"(d) Pressure reducing valve chamber","No",3,null,null,null,null,null,null,null,null,null,null,null,1,1,1,3]
[null,null,null,null,null,null,null,null,null,null,null,null,null,null,null,null,1,1,1,3]
["8.5.3","PSHA 8.3.9","Internal Ladder",null,null,null,null,null,null,null,null,null,null,null,null,null,1,1,1,3]
[null,null,null,null,null,null,null,null,null,null,null,null,null,null,null,null,1,1,1,3]
["8.5.3.1",null,"(a) Air valve chambers","No",5,null,null,null,null,null,null,null,null,null,null,null,1,1,1,3]
[null,null,null,null,null,null,null,null,null,null,null,null,null,null,null,null,1,1,1,3]
["8.5.3.2",null,"(b) Scour valve chambers","No",1,null,null,null,null,null,null,null,null,null,null,null,1,1,1,3]
[null,null,null,null,null,null,{"$f":"IF(E1778<>\"\",E1778*F1778,\"\")","v":""},null,null,null,null,null,null,null,null,null,1,1,1,3]
["8.5.3.3",null,"(c) Gate valve chambers","No",2,null,null,null,null,null,null,null,null,null,null,null,1,1,1,3]
[null,null,null,null,null,null,null,null,null,null,null,null,null,null,null,null,1,1,1,3]
["8.5.3.4",null,"(d) Pressure reducing valve chamber","No",3,null,null,null,null,null,null,null,null,null,null,null,1,1,1,3]
[]
["TOTAL CARRIED FORWARD TO NEXT PAGE",null,null,null,null,null,null,null,null,null,null,null,null,null,null,null,1,1,1,3]
["ITEM NO","PAYMENT CLAUSE","DESCRIPTION","UNIT","QUANTITY","RATE","AMOUNT",null,null,null,null,null,null,null,null,null,1,1,1,3]
[null,null,"TOTAL CARRIED FROM PREVIOUS PAGE",null,null,null,null,null,null,null,null,null,null,null,null,null,1,1,1,3]
[]
[null,null,"SECTION 8.6",null,null,null,null,null,null,null,null,null,null,null,null,null,1,1,1,3]
[null,null,null,null,null,null,null,null,null,null,null,null,null,null,null,null,1,1,1,3]
["8.6","SANS 1200 DK","GABIONS AND PITCHING",null,null,null,null,null,null,null,null,null,null,null,null,null,1,1,1,3]
[null,null,null,null,null,null,null,null,null,null,null,null,null,null,null,null,1,1,1,3]
["8.6.1","8.2.1","Surface preparation for bedding of gabions",null,null,null,null,null,null,null,null,null,null,null,null,null,1,1,1,3]
[null,null,null,null,null,null,null,null,null,null,null,null,null,null,null,null,1,1,1,3]
["8.6.1.1",null,"(a) Cavities filled with excavated material","m²",40,null,null,null,null,null,null,null,null,null,null,null,1,1,1,3]
[null,null,null,null,null,null,null,null,null,null,null,null,null,null,null,null,1,1,1,3]
["8.6.1.2","8.2.2","Gabions"," m³",{"$f":"E1793*0.2","v":8},null,null,null,null,null,null,null,null,null,null,null,1,1,1,3]
[null,null,null,null,null,null,null,null,null,null,null,null,null,null,null,null,1,1,1,3]
["8.6.1.3","8.2.4","Geotextile","m²",40,null,null,null,null,null,null,null,null,null,null,null,1,1,1,3]
[null,null,null,null,null,null,null,null,null,null,null,null,null,null,null,null,1,1,1,3]
["TOTAL CARRIED FORWARD TO SUMMARY",null,null,null,null,null,null,null,null,null,null,null,null,null,null,null,1,1,1,3]
["\n\n\n\n\n\n\n\n\nSECTION 9:\n\n PAVING AND FENCING \n\n",null,null,null,null,null,null,null,null,null,null,null,null,null,null,null,1,1,1,3]
[null,null,null,null,null,null,null,null,null,null,null,null,null,null,null,null,1,1,1,3]
[null,null,null,null,null,null,null,null,null,null,null,null,null,null,null,null,1,1,1,3]
[null,null,null,null,null,null,null,null,null,null,null,null,null,null,null,null,1,1,1,3]
[null,null,null,null,null,null,null,null,null,null,null,null,null,null,null,null,1,1,1,3]
[null,null,null,null,null,null,null,null,null,null,null,null,null,null,null,null,{"$f":"IF(K1805=\"No comment\",0,1)","v":1},{"$f":"IF(L1805=\"No comment\",0,1)","v":1},{"$f":"IF(M1805=\"No comment\",0,1)","v":1},{"$f":"SUM(N1805:S1805)","v":3}]
[null,null,null,null,null,null,null,null,null,null,null,null,null,null,null,null,1,1,1,3]
[null,null,null,null,null,null,null,null,null,null,null,null,null,null,null,null,1,1,1,3]
[null,null,null,null,null,null,null,null,null,null,null,null,null,null,null,null,1,1,1,3]
[null,null,null,null,null,null,null,null,null,null,null,null,null,null,null,null,1,1,1,3]
[null,null,null,null,null,null,null,null,null,null,null,null,null,null,null,null,1,1,1,3]
[null,null,null,null,null,null,null,null,null,null,null,null,null,null,null,null,1,1,1,3]
[null,null,null,null,null,null,null,null,null,null,null,null,null,null,null,null,1,1,1,3]
[null,null,null,null,null,null,null,null,null,null,null,null,null,null,null,null,1,1,1,3]
[null,null,null,null,null,null,null,null,null,null,null,null,null,null,null,null,1,1,1,3]
[null,null,null,null,null,null,null,null,null,null,null,null,null,null,null,null,1,1,1,3]
[null,null,null,null,null,null,null,null,null,null,null,null,null,null,null,null,1,1,1,3]
[null,null,null,null,null,null,null,null,null,null,null,null,null,null,null,null,1,1,1,3]
[null,null,null,null,null,null,null,null,null,null,null,null,null,null,null,null,1,1,1,3]
[null,null,null,null,null,null,null,null,null,null,null,null,null,null,null,null,1,1,1,3]
[null,null,null,null,null,null,null,null,null,null,null,null,null,null,null,null,1,1,1,3]
[null,null,null,null,null,null,null,null,null,null,null,null,null,null,null,null,1,1,1,3]
[null,null,null,null,null,null,null,null,null,null,null,null,null,null,null,null,1,1,1,3]
[null,null,null,null,null,null,null,null,null,null,null,null,null,null,null,null,1,1,1,3]
[null,null,null,null,null,null,null,null,null,null,null,null,null,null,null,null,1,1,1,3]
[null,null,null,null,null,null,null,null,null,null,null,null,null,null,null,null,1,1,1,3]
[null,null,null,null,null,null,null,null,null,null,null,null,null,null,null,null,1,1,1,3]
[null,null,null,null,null,null,null,null,null,null,null,null,null,null,null,null,1,1,1,3]
[null,null,null,null,null,null,null,null,null,null,null,null,null,null,null,null,1,1,1,3]
[null,null,null,null,null,null,null,null,null,null,null,null,null,null,null,null,1,1,1,3]
[null,null,null,null,null,null,null,null,null,null,null,null,null,null,null,null,1,1,1,3]
[null,null,null,null,null,null,null,null,null,null,null,null,null,null,null,null,1,1,1,3]
[null,null,null,null,null,null,null,null,null,null,null,null,null,null,null,null,1,1,1,3]
[null,null,null,null,null,null,null,null,null,null,null,null,null,null,null,null,1,1,1,3]
[null,null,null,null,null,null,null,null,null,null,null,null,null,null,null,null,1,1,1,3]
[null,null,null,null,null,null,null,null,null,null,null,null,null,null,null,null,1,1,1,3]
[null,null,null,null,null,null,null,null,null,null,null,null,null,null,null,null,1,1,1,3]
[null,null,null,null,null,null,null,null,null,null,null,null,null,null,null,null,1,1,1,3]
[null,null,null,null,null,null,null,null,null,null,null,null,null,null,null,null,1,1,1,3]
[null,null,null,null,null,null,null,null,null,null,null,null,null,null,null,null,1,1,1,3]
[null,null,null,null,null,null,null,null,null,null,null,null,null,null,null,null,1,1,1,3]
[null,null,null,null,null,null,null,null,null,null,null,null,null,null,null,null,1,1,1,3]
[null,null,null,null,null,null,null,null,null,null,null,null,null,null,null,null,1,1,1,3]
[null,null,null,null,null,null,null,null,null,null,null,null,null,null,null,null,1,1,1,3]
[null,null,null,null,null,null,null,null,null,null,null,null,null,null,null,null,1,1,1,3]
[null,null,null,null,null,null,null,null,null,null,null,null,null,null,null,null,1,1,1,3]
[null,null,null,null,null,null,null,null,null,null,null,null,null,null,null,null,1,1,1,3]
[null,null,null,null,null,null,null,null,null,null,null,null,null,null,null,null,1,1,1,3]
[null,null,null,null,null,null,null,null,null,null,null,null,null,null,null,null,1,1,1,3]
[null,null,null,null,null,null,null,null,null,null,null,null,null,null,null,null,1,1,1,3]
[null,null,null,null,null,null,null,null,null,null,null,null,null,null,null,null,1,1,1,3]
[null,null,null,null,null,null,null,null,null,null,null,null,null,null,null,null,1,1,1,3]
[null,null,null,null,null,null,null,null,null,null,null,null,null,null,null,null,1,1,1,3]
[null,null,null,null,null,null,null,null,null,null,null,null,null,null,null,null,1,1,1,3]
[null,null,null,null,null,null,null,null,null,null,null,null,null,null,null,null,1,1,1,3]
[null,null,null,null,null,null,null,null,null,null,null,null,null,null,null,null,1,1,1,3]
[null,null,null,null,null,null,null,null,null,null,null,null,null,null,null,null,1,1,1,3]
[null,null,null,null,null,null,null,null,null,null,null,null,null,null,null,null,1,1,1,3]
[null,null,null,null,null,null,null,null,null,null,null,null,null,null,null,null,1,1,1,3]
[null,null,null,null,null,null,null,null,null,null,null,null,null,null,null,null,1,1,1,3]
[null,null,null,null,null,null,null,null,null,null,null,null,null,null,null,null,1,1,1,3]
[null,null,null,null,null,null,null,null,null,null,null,null,null,null,null,null,1,1,1,3]
[null,null,null,null,null,null,null,null,null,null,null,null,null,null,null,null,1,1,1,3]
[null,null,null,null,null,null,null,null,null,null,null,null,null,null,null,null,1,1,1,3]
[null,null,null,null,null,null,null,null,null,null,null,null,null,null,null,null,1,1,1,3]
[null,null,null,null,null,null,null,null,null,null,null,null,null,null,null,null,1,1,1,3]
[null,null,null,null,null,null,null,null,null,null,null,null,null,null,null,null,1,1,1,3]
[null,null,null,null,null,null,null,null,null,null,null,null,null,null,null,null,1,1,1,3]
[null,null,null,null,null,null,null,null,null,null,null,null,null,null,null,null,1,1,1,3]
[null,null,null,null,null,null,null,null,null,null,null,null,null,null,null,null,{"$f":"IF(K1869=\"No comment\",0,1)","v":1},{"$f":"IF(L1869=\"No comment\",0,1)","v":1},{"$f":"IF(M1869=\"No comment\",0,1)","v":1},{"$f":"SUM(N1869:S1869)","v":3}]
[null,null,null,null,null,null,null,null,null,null,null,null,null,null,null,null,1,1,1,3]
[null,null,null,null,null,null,null,null,null,null,null,null,null,null,null,null,1,1,1,3]
[null,null,null,null,null,null,null,null,null,null,null,null,null,null,null,null,1,1,1,3]
[null,null,null,null,null,null,null,null,null,null,null,null,null,null,null,null,1,1,1,3]
["ITEM NO","PAYMENT CLAUSE","DESCRIPTION","UNIT","QUANTITY","RATE","AMOUNT",null,null,null,null,null,null,null,null,null,1,1,1,3]
[null,null,null,null,null,null,null,null,null,null,null,null,null,null,null,null,1,1,1,3]
[null,null,"SECTION 9",null,null,null,null,null,null,null,null,null,null,null,null,null,1,1,1,3]
[null,null,null,null,null,null,null,null,null,null,null,null,null,null,null,null,1,1,1,3]
[9.1,"SANS 1200C","SITE CLEARANCE",null,null,null,null,null,null,null,null,null,null,null,null,null,1,1,1,3]
[null,null,null,null,null,null,null,null,null,null,null,null,null,null,null,null,1,1,1,3]
["9.1.1","PSC 8.2.4","Reclear surfaces (only on instructtons from the Engineer)","m2",200,null,null,null,null,null,null,null,null,null,null,null,1,1,1,3]
[null,null,null,null,null,null,null,null,null,null,null,null,null,null,null,null,1,1,1,3]
[9.1999999999999993,"PSC 8.2.14","Installing and reinstating palisade fencing                                          ",null,null,null,null,null,null,null,null,null,null,null,null,null,1,1,1,3]
[null,null,null,null,null,null,null,null,null,null,null,null,null,null,null,null,1,1,1,3]
["9.2.1",null,"i) Supply and installation of concrete palisade fence 2400mm high of stacked pales, slid in between 3000mm high posts of 225mm x 140mm H-section post at 2000mm centres with 600mm bottom ends casts into and including 20MPa concrete footing in ground including excavation, ramming, removal of spoil and leaving clean and neat. Refer to Dwg JW14090R-AL-DET16-W","m",120,null,null,null,null,null,null,null,null,null,null,null,1,1,1,3]
[null,null,null,null,null,null,null,null,null,null,null,null,null,null,null,null,1,1,1,3]
["9.2.2",null,"ii) Supply and installation of concrete palisade fence 2400mm high of stacked existing pales, slid in between 3000mm high posts of 225mm x 140mm H-section post at 2000mm centres with 600mm bottom ends casts into and including 20MPa concrete footing in ground including excavation, ramming, removal of spoil and leaving clean and neat (NB use existing pales on site). Refer to Dwg No. JW14090R-AL-DET16-W","m",20,null,null,null,null,null,null,null,null,null,null,null,1,1,1,3]
[null,null,null,null,null,null,null,null,null,null,null,null,null,null,null,null,1,1,1,3]
["9.2.3",null,"iii) Supply and installation of a double swing gate. Refer to Dwg No. JW14090R-AL-DET16-W for gate details.","No.",2,null,null,null,null,null,null,null,null,null,null,null,1,1,1,3]
[null,null,null,null,null,null,null,null,null,null,null,null,null,null,null,null,1,1,1,3]
[9.3000000000000007,"SANS 1200 ME","SUBBASE",null,null,null,null,null,null,null,null,null,null,null,null,null,1,1,1,3]
[null,null,null,null,null,null,null,null,null,null,null,null,null,null,null,null,1,1,1,3]
["9.3.1","PSME 8.3.11","Rip and compact in-situ material on the drive way to 93% MOD AASHTO density 300 mm thick layer","m3",{"$f":"256*0.3","v":76.8},null,null,null,null,null,null,null,null,null,null,null,1,1,1,3]
[null,null,null,null,null,null,null,null,null,null,null,null,null,null,null,null,1,1,1,3]
["9.3.2","8.3.5","Construct the subbase course with material from commercial sources or designated horrow areas",null,null,null,null,null,null,null,null,null,null,null,null,null,1,1,1,3]
[null,null,null,null,null,null,null,null,null,null,null,null,null,null,null,null,1,1,1,3]
["9.3.2.1",null,"150mm thick layer subbase G6 selected gravel compacted to 95% MOD AASHTO","m3",38.4,null,null,null,null,null,null,null,null,null,null,null,1,1,1,3]
[null,null,null,null,null,null,null,null,null,null,null,null,null,null,null,null,1,1,1,3]
["9.3.2.2",null,"150mm thick layer selected G6 selected gravel compacted to 93% MOD AASHTO","m3",38.4,null,null,null,null,null,null,null,null,null,null,null,1,1,1,3]
[null,null,null,null,null,null,null,null,null,null,null,null,null,null,null,null,1,1,1,3]
[9.4,"SANS 1200 MJ","SEGMENTED PAVING ",null,null,null,null,null,null,null,null,null,null,null,null,null,1,1,1,3]
[null,null,null,null,null,null,null,null,null,null,null,null,null,null,null,null,1,1,1,3]
["9.4.1","8.2.1","Provision of Edge Restraints",null,null,null,null,null,null,null,null,null,null,null,null,null,1,1,1,3]
[null,null,null,null,null,null,null,null,null,null,null,null,null,null,null,null,1,1,1,3]
["9.4.1.1",null,"300mm x 300mm concrete (Class 25/19) edge beam","m",1,null,null,null,null,null,null,null,null,null,null,null,1,1,1,3]
[null,null,null,null,null,null,null,null,null,null,null,null,null,null,null,null,1,1,1,3]
["9.4.2","8.2.2","Construction of paving complete",null,null,null,null,null,null,null,null,null,null,null,null,null,1,1,1,3]
[null,null,null,null,null,null,null,null,null,null,null,null,null,null,null,null,1,1,1,3]
["9.4.2.1",null,"Herringbone interlocking paving blocks type S-A (80 mm thick)","m²",256,null,null,null,null,null,null,null,null,null,null,null,1,1,1,3]
[null,null,null,null,null,null,null,null,null,null,null,null,null,null,null,null,1,1,1,3]
["9.4.2.2","8.2.3","Cutting units to fit edge restaints","m",{"$f":"ROUND(0.1*E1916,0)","v":16},null,null,null,null,null,null,null,null,null,null,null,1,1,1,3]
[null,null,null,null,null,null,null,null,null,null,null,null,null,null,null,null,1,1,1,3]
[9.5,"SANS 1200 MK ","KERBING AND CHANNELING ",null,null,null,null,null,null,null,null,null,null,null,null,null,1,1,1,3]
[null,null,null,null,null,null,null,null,null,null,null,null,null,null,null,null,1,1,1,3]
["9.5.1","8.2.1","Concrete kerbing",null,null,null,null,null,null,null,null,null,null,null,null,null,1,1,1,3]
[null,null,null,null,null,null,null,null,null,null,null,null,null,null,null,null,1,1,1,3]
["9.5.1.1",null,"(a) Fig 8a mountable kerbs","m",160,null,null,null,null,null,null,null,null,null,null,null,1,1,1,3]
[null,null,null,null,null,null,null,null,null,null,null,null,null,null,null,null,1,1,1,3]
["TOTAL CARRIED FORWARD TO SUMMARY",null,null,null,null,null,null,null,null,null,null,null,null,null,null,null,1,1,1,3]
["\n\n\n\n\n\n\n\n\nSECTION 10:\n\n LEACHATE DRAIN",null,null,null,null,null,null,null,null,null,null,null,null,null,null,null,1,1,1,3]
[null,null,null,null,null,null,null,null,null,null,null,null,null,null,null,null,1,1,1,3]
[null,null,null,null,null,null,null,null,null,null,null,null,null,null,null,null,1,1,1,3]
[null,null,null,null,null,null,null,null,null,null,null,null,null,null,null,null,1,1,1,3]
[null,null,null,null,null,null,null,null,null,null,null,null,null,null,null,null,1,1,1,3]
[null,null,null,null,null,null,null,null,null,null,null,null,null,null,null,null,1,1,1,3]
[null,null,null,null,null,null,null,null,null,null,null,null,null,null,null,null,1,1,1,3]
[null,null,null,null,null,null,null,null,null,null,null,null,null,null,null,null,1,1,1,3]
[null,null,null,null,null,null,null,null,null,null,null,null,null,null,null,null,1,1,1,3]
[null,null,null,null,null,null,null,null,null,null,null,null,null,null,null,null,1,1,1,3]
[null,null,null,null,null,null,null,null,null,null,null,null,null,null,null,null,1,1,1,3]
[null,null,null,null,null,null,null,null,null,null,null,null,null,null,null,null,1,1,1,3]
[null,null,null,null,null,null,null,null,null,null,null,null,null,null,null,null,1,1,1,3]
[null,null,null,null,null,null,null,null,null,null,null,null,null,null,null,null,1,1,1,3]
[null,null,null,null,null,null,null,null,null,null,null,null,null,null,null,null,{"$f":"IF(K1933=\"No comment\",0,1)","v":1},{"$f":"IF(L1933=\"No comment\",0,1)","v":1},{"$f":"IF(M1933=\"No comment\",0,1)","v":1},{"$f":"SUM(N1933:S1933)","v":3}]
[null,null,null,null,null,null,null,null,null,null,null,null,null,null,null,null,1,1,1,3]
[null,null,null,null,null,null,null,null,null,null,null,null,null,null,null,null,1,1,1,3]
[null,null,null,null,null,null,null,null,null,null,null,null,null,null,null,null,1,1,1,3]
[null,null,null,null,null,null,null,null,null,null,null,null,null,null,null,null,1,1,1,3]
[null,null,null,null,null,null,null,null,null,null,null,null,null,null,null,null,1,1,1,3]
[null,null,null,null,null,null,null,null,null,null,null,null,null,null,null,null,1,1,1,3]
[null,null,null,null,null,null,null,null,null,null,null,null,null,null,null,null,1,1,1,3]
[null,null,null,null,null,null,null,null,null,null,null,null,null,null,null,null,1,1,1,3]
[null,null,null,null,null,null,null,null,null,null,null,null,null,null,null,null,1,1,1,3]
[null,null,null,null,null,null,null,null,null,null,null,null,null,null,null,null,1,1,1,3]
[null,null,null,null,null,null,null,null,null,null,null,null,null,null,null,null,1,1,1,3]
[null,null,null,null,null,null,null,null,null,null,null,null,null,null,null,null,1,1,1,3]
[null,null,null,null,null,null,null,null,null,null,null,null,null,null,null,null,1,1,1,3]
[null,null,null,null,null,null,null,null,null,null,null,null,null,null,null,null,1,1,1,3]
[null,null,null,null,null,null,null,null,null,null,null,null,null,null,null,null,1,1,1,3]
[null,null,null,null,null,null,null,null,null,null,null,null,null,null,null,null,1,1,1,3]
[null,null,null,null,null,null,null,null,null,null,null,null,null,null,null,null,1,1,1,3]
[null,null,null,null,null,null,null,null,null,null,null,null,null,null,null,null,1,1,1,3]
[null,null,null,null,null,null,null,null,null,null,null,null,null,null,null,null,1,1,1,3]
[null,null,null,null,null,null,null,null,null,null,null,null,null,null,null,null,1,1,1,3]
[null,null,null,null,null,null,null,null,null,null,null,null,null,null,null,null,1,1,1,3]
[null,null,null,null,null,null,null,null,null,null,null,null,null,null,null,null,1,1,1,3]
[null,null,null,null,null,null,null,null,null,null,null,null,null,null,null,null,1,1,1,3]
[null,null,null,null,null,null,null,null,null,null,null,null,null,null,null,null,1,1,1,3]
[null,null,null,null,null,null,null,null,null,null,null,null,null,null,null,null,1,1,1,3]
[null,null,null,null,null,null,null,null,null,null,null,null,null,null,null,null,1,1,1,3]
[null,null,null,null,null,null,null,null,null,null,null,null,null,null,null,null,1,1,1,3]
[null,null,null,null,null,null,null,null,null,null,null,null,null,null,null,null,1,1,1,3]
[null,null,null,null,null,null,null,null,null,null,null,null,null,null,null,null,1,1,1,3]
[null,null,null,null,null,null,null,null,null,null,null,null,null,null,null,null,1,1,1,3]
[null,null,null,null,null,null,null,null,null,null,null,null,null,null,null,null,1,1,1,3]
[null,null,null,null,null,null,null,null,null,null,null,null,null,null,null,null,1,1,1,3]
[null,null,null,null,null,null,null,null,null,null,null,null,null,null,null,null,1,1,1,3]
[null,null,null,null,null,null,null,null,null,null,null,null,null,null,null,null,1,1,1,3]
[null,null,null,null,null,null,null,null,null,null,null,null,null,null,null,null,1,1,1,3]
[null,null,null,null,null,null,null,null,null,null,null,null,null,null,null,null,1,1,1,3]
[null,null,null,null,null,null,null,null,null,null,null,null,null,null,null,null,1,1,1,3]
[null,null,null,null,null,null,null,null,null,null,null,null,null,null,null,null,1,1,1,3]
[null,null,null,null,null,null,null,null,null,null,null,null,null,null,null,null,1,1,1,3]
[null,null,null,null,null,null,null,null,null,null,null,null,null,null,null,null,1,1,1,3]
[null,null,null,null,null,null,null,null,null,null,null,null,null,null,null,null,1,1,1,3]
[null,null,null,null,null,null,null,null,null,null,null,null,null,null,null,null,1,1,1,3]
[null,null,null,null,null,null,null,null,null,null,null,null,null,null,null,null,1,1,1,3]
[null,null,null,null,null,null,null,null,null,null,null,null,null,null,null,null,1,1,1,3]
[null,null,null,null,null,null,null,null,null,null,null,null,null,null,null,null,1,1,1,3]
[null,null,null,null,null,null,null,null,null,null,null,null,null,null,null,null,1,1,1,3]
[null,null,null,null,null,null,null,null,null,null,null,null,null,null,null,null,1,1,1,3]
[null,null,null,null,null,null,null,null,null,null,null,null,null,null,null,null,1,1,1,3]
[null,null,null,null,null,null,null,null,null,null,null,null,null,null,null,null,1,1,1,3]
[null,null,null,null,null,null,null,null,null,null,null,null,null,null,null,null,1,1,1,3]
[null,null,null,null,null,null,null,null,null,null,null,null,null,null,null,null,1,1,1,3]
[null,null,null,null,null,null,null,null,null,null,null,null,null,null,null,null,1,1,1,3]
[null,null,null,null,null,null,null,null,null,null,null,null,null,null,null,null,1,1,1,3]
[null,null,null,null,null,null,null,null,null,null,null,null,null,null,null,null,1,1,1,3]
[null,null,null,null,null,null,null,null,null,null,null,null,null,null,null,null,1,1,1,3]
[null,null,null,null,null,null,null,null,null,null,null,null,null,null,null,null,1,1,1,3]
[null,null,null,null,null,null,null,null,null,null,null,null,null,null,null,null,1,1,1,3]
[null,null,null,null,null,null,null,null,null,null,null,null,null,null,null,null,1,1,1,3]
[null,null,null,null,null,null,null,null,null,null,null,null,null,null,null,null,1,1,1,3]
[null,null,null,null,null,null,null,null,null,null,null,null,null,null,null,null,1,1,1,3]
[null,null,null,null,null,null,null,null,null,null,null,null,null,null,null,null,1,1,1,3]
["Item\nNo.","Payment\nRefers","DESCRIPTION","UNIT","QTY","RATE","AMOUNT",null,null,null,null,null,null,null,null,null,1,1,1,3]
[null,null,null,null,null,null,null,null,null,null,null,null,null,null,null,null,1,1,1,3]
[null,null,null,null,null,null,null,null,null,null,null,null,null,null,null,null,{"$f":"IF(K1997=\"No comment\",0,1)","v":1},{"$f":"IF(L1997=\"No comment\",0,1)","v":1},{"$f":"IF(M1997=\"No comment\",0,1)","v":1},{"$f":"SUM(N1997:S1997)","v":3}]
[10,null,"SECTION 10: EARTHWORKS",null,null,null,null,null,null,null,null,null,null,null,null,null,1,1,1,3]
[null,null,null,null,null,null,null,null,null,null,null,null,null,null,null,null,1,1,1,3]
[10.1,"SANS 1200DA","EARTHWORKS (SMALL WORKS)",null,null,null,null,null,null,null,null,null,null,null,null,null,1,1,1,3]
[null,null,null,null,null,null,null,null,null,null,null,null,null,null,null,null,1,1,1,3]
["10.1.1","10.3.6","Topsoiling","m3",{"$f":"0.15*(450)*1.2","v":81},null,null,null,null,null,null,null,null,null,null,null,1,1,1,3]
[null,null,null,null,null,null,null,null,null,null,null,null,null,null,null,null,1,1,1,3]
["10.1.2","10.3.7","Grassing or other Vegetation Cover","m²",{"$f":"2*(450)","v":900},null,null,null,null,null,null,null,null,null,null,null,1,1,1,3]
[null,null,null,null,null,null,null,null,null,null,null,null,null,null,null,null,1,1,1,3]
[10.199999999999999,"SANS\n1200 DB","EARTHWORKS (PIPE TRENCHES)",null,null,null,null,null,null,null,null,null,null,null,null,null,1,1,1,3]
[null,null,null,null,null,null,null,null,null,null,null,null,null,null,null,null,1,1,1,3]
["10.2.1","PSDB 10.3.1","Site Clearance and (if specified) Removal of topsoil",null,null,null,null,null,null,null,null,null,null,null,null,null,1,1,1,3]
[null,null,null,null,null,null,null,null,null,null,null,null,null,null,null,null,1,1,1,3]
["10.2.1.1",null,"c) Removal, stockpiling and replacing of Topsoil (depth stated) ","m3",{"$f":"(11100+130)*1.1*3*0.15","v":5558.8500000000013},null,null,null,null,null,null,null,null,null,null,null,1,1,1,3]
[null,null,null,null,null,null,null,null,null,null,null,null,null,null,null,null,1,1,1,3]
["10.2.1.2","10.3.2","(a) Excavate in all materials for trenches, backfill, compact and dispose of surplus material for",null,null,null,null,null,null,null,null,null,null,null,null,null,1,1,1,3]
[null,null,null,null,null,null,null,null,null,null,null,null,null,null,null,null,1,1,1,3]
[null,null,"Subsurface drain width 700mm for depths:",null,null,null,null,null,null,null,null,null,null,null,null,null,1,1,1,3]
[null,null,"Over       and       Up to",null,null,null,null,null,null,null,null,null,null,null,null,null,1,1,1,3]
[null,null,"(Measured from bottom of excavation)",null,null,null,null,null,null,null,null,null,null,null,null,null,1,1,1,3]
["10.2.1.2.1",null,"1.0m               2.0m","m³",350,null,null,null,null,null,null,null,null,null,null,null,1,1,1,3]
[null,null,null,null,null,null,null,null,null,null,null,null,null,null,null,null,1,1,1,3]
["10.2.1.2.2",null,"2.0m               3.0m","m³",100,null,null,null,null,null,null,null,null,null,null,null,1,1,1,3]
[null,null,null,null,null,null,null,null,null,null,null,null,null,null,null,null,1,1,1,3]
["10.2.1.2.3",null,"3.0m               4.0m","m³",10,null,null,null,null,null,null,null,null,null,null,null,1,1,1,3]
[null,null,null,null,null,null,null,null,null,null,null,null,null,null,null,null,1,1,1,3]
["10.2.1.3",null,"(b) Extra over Item (a) for:",null,null,null,null,null,null,null,null,null,null,null,null,null,1,1,1,3]
[null,null,null,null,null,null,null,null,null,null,null,null,null,null,null,null,1,1,1,3]
["10.2.1.3.1",null,"1) Intermediate excavation","m³",40,null,null,null,null,null,null,null,null,null,null,null,1,1,1,3]
[null,null,null,null,null,null,null,null,null,null,null,null,null,null,null,null,1,1,1,3]
["10.2.1.3.2",null,"2) Hard rock excavation","m³",40,null,null,null,null,null,null,null,null,null,null,null,1,1,1,3]
[null,null,null,null,null,null,null,null,null,null,null,null,null,null,null,null,1,1,1,3]
["10.2.1.4","10.3.5","Existing Services-that Intersect or Adjoin a Pipe Trench",null,null,null,null,null,null,null,null,null,null,null,null,null,1,1,1,3]
[null,null,null,null,null,null,null,null,null,null,null,null,null,null,null,null,1,1,1,3]
["10.2.1.4.1",null,"b) Services that adjoin a trench","m",450,null,null,null,null,null,null,null,null,null,null,null,1,1,1,3]
[null,null,null,null,null,null,null,null,null,null,null,null,null,null,null,null,1,1,1,3]
["10.2.1.5",null,"Particular Items.",null,null,null,null,null,null,null,null,null,null,null,null,null,1,1,1,3]
[null,null,null,null,null,null,null,null,null,null,null,null,null,null,null,null,1,1,1,3]
["10.2.1.5.1","PSDB 10.3.4(a)","Shore trench opposite structure or service for depths","m",450,null,null,null,null,null,null,null,null,null,null,null,1,1,1,3]
[null,null,null,null,null,null,null,null,null,null,null,null,null,null,null,null,1,1,1,3]
["10.2.1.5.1.1",null,"over 1.0m to 2.0m","m",50,null,null,null,null,null,null,null,null,null,null,null,1,1,1,3]
[null,null,null,null,null,null,null,null,null,null,null,null,null,null,null,null,1,1,1,3]
["10.2.1.5.1.2",null,"over 2.0m to 3.0m","m",240,null,null,null,null,null,null,null,null,null,null,null,1,1,1,3]
[null,null,null,null,null,null,null,null,null,null,null,null,null,null,null,null,1,1,1,3]
["10.2.1.5.1.3",null,"over 3.0m to 4.0m","m",150,null,null,null,null,null,null,null,null,null,null,null,1,1,1,3]
[null,null,null,null,null,null,null,null,null,null,null,null,null,null,null,null,1,1,1,3]
["10.2.1.5.1.4",null,"Over 4 m","m",10,null,null,null,null,null,null,null,null,null,null,null,1,1,1,3]
[null,null,null,null,null,null,null,null,null,null,null,null,null,null,null,null,1,1,1,3]
[null,null,null,null,null,null,null,null,null,null,null,null,null,null,null,null,1,1,1,3]
[null,null,null,null,null,null,null,null,null,null,null,null,null,null,null,null,1,1,1,3]
[null,null,null,null,null,null,null,null,null,null,null,null,null,null,null,null,1,1,1,3]
[null,null,null,null,null,null,null,null,null,null,null,null,null,null,null,null,1,1,1,3]
[null,null,null,null,null,null,null,null,null,null,null,null,null,null,null,null,1,1,1,3]
[null,null,null,null,null,null,null,null,null,null,null,null,null,null,null,null,1,1,1,3]
[null,null,null,null,null,null,null,null,null,null,null,null,null,null,null,null,1,1,1,3]
[null,null,null,null,null,null,null,null,null,null,null,null,null,null,null,null,1,1,1,3]
[null,null,null,null,null,null,null,null,null,null,null,null,null,null,null,null,1,1,1,3]
[null,null,null,null,null,null,null,null,null,null,null,null,null,null,null,null,1,1,1,3]
[null,null,null,null,null,null,null,null,null,null,null,null,null,null,null,null,1,1,1,3]
[null,null,null,null,null,null,null,null,null,null,null,null,null,null,null,null,1,1,1,3]
[null,null,null,null,null,null,null,null,null,null,null,null,null,null,null,null,1,1,1,3]
[null,null,null,null,null,null,null,null,null,null,null,null,null,null,null,null,1,1,1,3]
[" TOTAL CARRIED FORWARD TO SUMMARY",null,null,null,null,null,null,null,null,null,null,null,null,null,null,null,1,1,1,3]
["Item\nNo.","Payment\nRefers","DESCRIPTION","UNIT","QTY","RATE","AMOUNT",null,null,null,null,null,null,null,null,null,1,1,1,3]
[null,null,null,null,null,null,null,null,null,null,null,null,null,null,null,null,{"$f":"IF(K2061=\"No comment\",0,1)","v":1},{"$f":"IF(L2061=\"No comment\",0,1)","v":1},{"$f":"IF(M2061=\"No comment\",0,1)","v":1},{"$f":"SUM(N2061:S2061)","v":3}]
[null,null,null,null,null,null,null,null,null,null,null,null,null,null,null,null,1,1,1,3]
[10.3,null,"SECTION 11: PIPEWORK ",null,null,null,null,null,null,null,null,null,null,null,null,null,1,1,1,3]
[null,null,null,null,null,null,null,null,null,null,null,null,null,null,null,null,1,1,1,3]
["10.3.1","SANS 1200L","MEDIUM-PRESSURE PIPELINES ",null,null,null,null,null,null,null,null,null,null,null,null,null,1,1,1,3]
[null,null,null,null,null,null,null,null,null,null,null,null,null,null,null,null,1,1,1,3]
["10.3.1.1","PSL 10.2.25","Supply and installation of Kaypipe geopipe or similar approved for the seepage drain complete with all necessary fittings for the various pipe diameters ",null,null,null,null,null,null,null,null,null,null,null,null,null,1,1,1,3]
[null,null,null,null,null,null,null,null,null,null,null,null,null,null,null,null,1,1,1,3]
["10.3.1.1.1",null,"ii) 160mm ID ","m",350,null,null,null,null,null,null,null,null,null,null,null,1,1,1,3]
[null,null,null,null,null,null,null,null,null,null,null,null,null,null,null,null,1,1,1,3]
["10.3.2","SANS 1200LB","BEDDING (PIPE)",null,null,null,null,null,null,null,null,null,null,null,null,null,1,1,1,3]
[null,null,null,null,null,null,null,null,null,null,null,null,null,null,null,null,1,1,1,3]
["10.3.2.1","10.2.1","Provision of bedding from trench excavation",null,null,null,null,null,null,null,null,null,null,null,null,null,1,1,1,3]
[null,null,null,null,null,null,null,null,null,null,null,null,null,null,null,null,1,1,1,3]
["10.3.2.1.1",null,"b) Selected fill material","m³",700,null,null,null,null,null,null,null,null,null,null,null,1,1,1,3]
[null,null,null,null,null,null,null,null,null,null,null,null,null,null,null,null,1,1,1,3]
["10.3.2.2","10.2.2","Supply only of Bedding by Importation",null,null,null,null,null,null,null,null,null,null,null,null,null,1,1,1,3]
[null,null,null,null,null,null,null,null,null,null,null,null,null,null,null,null,1,1,1,3]
["10.3.2.2.1","10.2.2.3","From commercial sources",null,null,null,null,null,null,null,null,null,null,null,null,null,1,1,1,3]
[null,null,null,null,null,null,null,null,null,null,null,null,null,null,null,null,1,1,1,3]
["10.3.2.2.1.1",null,"a) Selected granular material","m³",240,null,null,null,null,null,null,null,null,null,null,null,1,1,1,3]
[null,null,null,null,null,null,null,null,null,null,null,null,null,null,null,null,1,1,1,3]
["10.3.2.3",null,"SUBSOIL DRAINS",null,null,null,null,null,null,null,null,null,null,null,null,null,1,1,1,3]
[null,null,null,null,null,null,null,null,null,null,null,null,null,null,null,null,1,1,1,3]
["10.3.2.3.1","PSLB 10.2.1.4 ","Supply and installation of up to 2m deep flownet drainage core with bidum filter jacket and all necessary fittings ","m",1000,null,null,null,null,null,null,null,null,null,null,null,1,1,1,3]
[null,null,null,null,null,null,null,null,null,null,null,null,null,null,null,null,1,1,1,3]
["10.3.3","SANS 1200LD","SEWERS",null,null,null,null,null,null,null,null,null,null,null,null,null,1,1,1,3]
[null,null,null,null,null,null,null,null,null,null,null,null,null,null,null,null,1,1,1,3]
["10.3.1","PS4.2.26.1","Supply and Installation of pipe through Horizontal Direction Drilling (HDD)",null,null,null,null,null,null,null,null,null,null,null,null,null,1,1,1,3]
[null,null,null,null,null,null,null,null,null,null,null,null,null,null,null,null,1,1,1,3]
["10.3.1.1",null,"160mm dia class 16 HDPE pipe","m",100,null,null,null,null,null,null,null,null,null,null,null,1,1,1,3]
[null,null,null,null,null,null,null,null,null,null,null,null,null,null,null,null,1,1,1,3]
["10.3.3.2","PSLD 10.2.3","Manholes",null,null,null,null,null,null,null,null,null,null,null,null,null,1,1,1,3]
[null,null,null,null,null,null,null,null,null,null,null,null,null,null,null,null,1,1,1,3]
["10.3.3.2.1",null,"Construct leachate manhole complete as shown on drawings","No.",1,null,null,null,null,null,null,null,null,null,null,null,1,1,1,3]
[null,null,null,null,null,null,null,null,null,null,null,null,null,null,null,null,1,1,1,3]
["10.3.3.3","PSLD 10.2.11","Connection to existing sewer","No.",1,null,null,null,null,null,null,null,null,null,null,null,1,1,1,3]
[null,null,null,null,null,null,null,null,null,null,null,null,null,null,null,null,1,1,1,3]
[null,null,null,null,null,null,null,null,null,null,null,null,null,null,null,null,1,1,1,3]
[null,null,null,null,null,null,null,null,null,null,null,null,null,null,null,null,1,1,1,3]
[null,null,null,null,null,null,null,null,null,null,null,null,null,null,null,null,1,1,1,3]
[null,null,null,null,null,null,null,null,null,null,null,null,null,null,null,null,1,1,1,3]
[null,null,null,null,null,null,null,null,null,null,null,null,null,null,null,null,1,1,1,3]
[null,null,null,null,null,null,null,null,null,null,null,null,null,null,null,null,1,1,1,3]
[null,null,null,null,null,null,null,null,null,null,null,null,null,null,null,null,1,1,1,3]
[null,null,null,null,null,null,null,null,null,null,null,null,null,null,null,null,1,1,1,3]
[null,null,null,null,null,null,null,null,null,null,null,null,null,null,null,null,1,1,1,3]
[null,null,null,null,null,null,null,null,null,null,null,null,null,null,null,null,1,1,1,3]
[null,null,null,null,null,null,null,null,null,null,null,null,null,null,null,null,1,1,1,3]
[null,null,null,null,null,null,null,null,null,null,null,null,null,null,null,null,1,1,1,3]
[null,null,null,null,null,null,null,null,null,null,null,null,null,null,null,null,1,1,1,3]
[null,null,null,null,null,null,null,null,null,null,null,null,null,null,null,null,1,1,1,3]
[null,null,null,null,null,null,null,null,null,null,null,null,null,null,null,null,1,1,1,3]
[null,null,null,null,null,null,null,null,null,null,null,null,null,null,null,null,1,1,1,3]
[null,null,null,null,null,null,null,null,null,null,null,null,null,null,null,null,1,1,1,3]
[null,null,null,null,null,null,null,null,null,null,null,null,null,null,null,null,1,1,1,3]
[null,null,null,null,null,null,null,null,null,null,null,null,null,null,null,null,1,1,1,3]
[null,null,null,null,null,null,null,null,null,null,null,null,null,null,null,null,1,1,1,3]
[" TOTAL CARRIED FORWARD TO SUMMARY",null,null,null,null,null,null,null,null,null,null,null,null,null,null,null,1,1,1,3]
[null,null,null,null,null,null,null,null,null,null,null,null,null,null,null,null,1,1,1,3]
[null,null,null,null,null,null,null,null,null,null,null,null,null,null,null,null,1,1,1,3]
[null,"SUMMARY OF SCHEDULE OF QUANTITIES",null,null,null,null,null,null,null,null,null,null,null,null,null,null,1,1,1,3]
[null,null,null,null,null,null,null,null,null,null,null,null,null,null,null,null,1,1,1,3]
[null,null,null,null,null,null,null,null,null,null,null,null,null,null,null,null,1,1,1,3]
[null,"PART","DESCRIPTION","AMOUNT (RAND)",null,null,null,null,null,null,null,null,null,null,null,null,{"$f":"IF(K2125=\"No comment\",0,1)","v":1},{"$f":"IF(L2125=\"No comment\",0,1)","v":1},{"$f":"IF(M2125=\"No comment\",0,1)","v":1},{"$f":"SUM(N2125:S2125)","v":3}]
[null,"SECTION 1","GENERAL ",null,null,null,null,null,null,null,null,null,null,null,null,null,1,1,1,3]
[null,"SECTION 2","SITE CLEARANCE",null,null,null,null,null,null,null,null,null,null,null,null,null,1,1,1,3]
[null,"SECTION 3","EARTHWORKS (PIPE TRENCHES)",null,null,null,null,null,null,null,null,null,null,null,null,null,1,1,1,3]
[null,"SECTION 4","MEDIUM-PRESSURE PIPELINES",null,null,null,null,null,null,null,null,null,null,null,null,null,1,1,1,3]
[null,"SECTION 5","BEDDING (PIPES)",null,null,null,null,null,null,null,null,null,null,null,null,null,1,1,1,3]
[null,"SECTION 6","CONCRETE (STRUCTURAL)",null,null,null,null,null,null,null,null,null,null,null,null,null,1,1,1,3]
[null,"SECTION 7","PIPE JACKING",null,null,null,null,null,null,null,null,null,null,null,null,null,1,1,1,3]
[null,"SECTION 8","VALVE CHAMBERS",null,null,null,null,null,null,null,null,null,null,null,null,null,1,1,1,3]
[null,"SECTION 9","PAVING & FENCING",null,null,null,null,null,null,null,null,null,null,null,null,null,1,1,1,3]
[null,"SECTION 10","LEACHATE DRAIN",null,null,null,null,null,null,null,null,null,null,null,null,null,1,1,1,3]
[null,null,null,null,null,null,null,null,null,null,null,null,null,null,null,null,1,1,1,3]
[null,"COST SUMMARY",null,null,null,null,null,null,null,null,null,null,null,null,null,null,1,1,1,3]
[null,null,"TOTAL PROJECT COST",null,null,null,null,null,null,null,null,null,null,null,null,null,1,1,1,3]
[null,null,"CONTRACT PRICE ADJUSTMENT",null,null,null,null,null,null,null,null,null,null,null,null,null,1,1,1,3]
[null,null,"SUBTOTAL",null,null,null,null,null,null,null,null,null,null,null,null,null,1,1,1,3]
[null,null,"CONTINGENCIES (10%)",null,null,null,null,null,null,null,null,null,null,null,null,null,1,1,1,3]
[null,null,"SUBTOTAL",null,null,null,null,null,null,null,null,null,null,null,null,null,1,1,1,3]
[null,null,"ADD 15% VAT",null,null,null,null,null,null,null,null,null,null,null,null,null,1,1,1,3]
[null,null,"GRAND TOTAL INCLUSIVE OF 15 % VAT",null,null,null,null,null,null,null,null,null,null,null,null,null,1,1,1,3]
[null,null,null,null,null,null,null,null,null,null,null,null,null,null,null,null,1,1,1,3]
[null,null,null,null,null,null,null,null,null,null,null,null,null,null,null,null,1,1,1,3]
[null,null,null,null,null,null,null,null,null,null,null,null,null,null,null,null,1,1,1,3]
[null,null,null,null,null,null,null,null,null,null,null,null,null,null,null,null,1,1,1,3]
[null,null,null,null,null,null,null,null,null,null,null,null,null,null,null,null,1,1,1,3]
[null,null,null,null,null,null,null,null,null,null,null,null,null,null,null,null,1,1,1,3]
[null,null,null,null,null,null,null,null,null,null,null,null,null,null,null,null,1,1,1,3]
[null,null,null,null,null,null,null,null,null,null,null,null,null,null,null,null,1,1,1,3]
[null,null,null,null,null,null,null,null,null,null,null,null,null,null,null,null,1,1,1,3]
[null,null,null,null,null,null,null,null,null,null,null,null,null,null,null,null,1,1,1,3]
[null,null,null,null,null,null,null,null,null,null,null,null,null,null,null,null,1,1,1,3]
[null,null,null,null,null,null,null,null,null,null,null,null,null,null,null,null,1,1,1,3]
[null,null,null,null,null,null,null,null,null,null,null,null,null,null,null,null,1,1,1,3]
[null,null,null,null,null,null,null,null,null,null,null,null,null,null,null,null,1,1,1,3]
[null,null,null,null,null,null,null,null,null,null,null,null,null,null,null,null,1,1,1,3]
[null,null,null,null,null,null,null,null,null,null,null,null,null,null,null,null,1,1,1,3]
[null,null,null,null,null,null,null,null,null,null,null,null,null,null,null,null,1,1,1,3]
[null,null,null,null,null,null,null,null,null,null,null,null,null,null,null,null,1,1,1,3]
[null,null,null,null,null,null,null,null,null,null,null,null,null,null,null,null,1,1,1,3]
[null,null,null,null,null,null,null,null,null,null,null,null,null,null,null,null,1,1,1,3]
[null,null,null,null,null,null,null,null,null,null,null,null,null,null,null,null,1,1,1,3]
[null,null,null,null,null,null,null,null,null,null,null,null,null,null,null,null,1,1,1,3]
[null,null,null,null,null,null,null,null,null,null,null,null,null,null,null,null,1,1,1,3]
[null,null,null,null,null,null,null,null,null,null,null,null,null,null,null,null,1,1,1,3]
[null,null,null,null,null,null,null,null,null,null,null,null,null,null,null,null,1,1,1,3]
[null,null,null,null,null,null,null,null,null,null,null,null,null,null,null,null,1,1,1,3]
[null,null,null,null,null,null,null,null,null,null,null,null,null,null,null,null,1,1,1,3]
[null,null,null,null,null,null,null,null,null,null,null,null,null,null,null,null,1,1,1,3]
[null,null,null,null,null,null,null,null,null,null,null,null,null,null,null,null,1,1,1,3]
[null,null,null,null,null,null,null,null,null,null,null,null,null,null,null,null,1,1,1,3]
[null,null,null,null,null,null,null,null,null,null,null,null,null,null,null,null,1,1,1,3]
[null,null,null,null,null,null,null,null,null,null,null,null,null,null,null,null,1,1,1,3]
[null,null,null,null,null,null,null,null,null,null,null,null,null,null,null,null,1,1,1,3]
[null,null,null,null,null,null,null,null,null,null,null,null,null,null,null,null,1,1,1,3]
[null,null,null,null,null,null,null,null,null,null,null,null,null,null,null,null,1,1,1,3]
[null,null,null,null,null,null,null,null,null,null,null,null,null,null,null,null,1,1,1,3]
[null,null,null,null,null,null,null,null,null,null,null,null,null,null,null,null,1,1,1,3]
[null,null,null,null,null,null,null,null,null,null,null,null,null,null,null,null,1,1,1,3]
[null,null,null,null,null,null,null,null,null,null,null,null,null,null,null,null,1,1,1,3]
[null,null,null,null,null,null,null,null,null,null,null,null,null,null,null,null,1,1,1,3]
[null,null,null,null,null,null,null,null,null,null,null,null,null,null,null,null,1,1,1,3]
[null,null,null,null,null,null,null,null,null,null,null,null,null,null,null,null,1,1,1,3]
[null,null,null,null,null,null,null,null,null,null,null,null,null,null,null,null,1,1,1,3]
[null,null,null,null,null,null,null,null,null,null,null,null,null,null,null,null,1,1,1,3]
[null,null,null,null,null,null,null,null,null,null,null,null,null,null,null,null,{"$f":"IF(K2189=\"No comment\",0,1)","v":1},{"$f":"IF(L2189=\"No comment\",0,1)","v":1},{"$f":"IF(M2189=\"No comment\",0,1)","v":1},{"$f":"SUM(N2189:S2189)","v":3}]
[null,null,null,null,null,null,null,null,null,null,null,null,null,null,null,null,1,1,1,3]
[null,null,null,null,null,null,null,null,null,null,null,null,null,null,null,null,1,1,1,3]
[null,null,null,null,null,null,null,null,null,null,null,null,null,null,null,null,1,1,1,3]
[null,null,null,null,null,null,null,null,null,null,null,null,null,null,null,null,1,1,1,3]
[null,null,null,null,null,null,null,null,null,null,null,null,null,null,null,null,1,1,1,3]
[null,null,null,null,null,null,null,null,null,null,null,null,null,null,null,null,1,1,1,3]
[null,null,null,null,null,null,null,null,null,null,null,null,null,null,null,null,1,1,1,3]
[null,null,null,null,null,null,null,null,null,null,null,null,null,null,null,null,1,1,1,3]
[null,null,null,null,null,null,null,null,null,null,null,null,null,null,null,null,1,1,1,3]
[null,null,null,null,null,null,null,null,null,null,null,null,null,null,null,null,1,1,1,3]
[null,null,null,null,null,null,null,null,null,null,null,null,null,null,null,null,1,1,1,3]
[null,null,null,null,null,null,null,null,null,null,null,null,null,null,null,null,1,1,1,3]
[null,null,null,null,null,null,null,null,null,null,null,null,null,null,null,null,1,1,1,3]
[null,null,null,null,null,null,null,null,null,null,null,null,null,null,null,null,1,1,1,3]
[null,null,null,null,null,null,null,null,null,null,null,null,null,null,null,null,1,1,1,3]
[null,null,null,null,null,null,null,null,null,null,null,null,null,null,null,null,1,1,1,3]
[null,null,null,null,null,null,null,null,null,null,null,null,null,null,null,null,1,1,1,3]
[null,null,null,null,null,null,null,null,null,null,null,null,null,null,null,null,1,1,1,3]
[null,null,null,null,null,null,null,null,null,null,null,null,null,null,null,null,1,1,1,3]
[null,null,null,null,null,null,null,null,null,null,null,null,null,null,null,null,1,1,1,3]
[null,null,null,null,null,null,null,null,null,null,null,null,null,null,null,null,1,1,1,3]
[null,null,null,null,null,null,null,null,null,null,null,null,null,null,null,null,1,1,1,3]
[null,null,null,null,null,null,null,null,null,null,null,null,null,null,null,null,1,1,1,3]
[null,null,null,null,null,null,null,null,null,null,null,null,null,null,null,null,1,1,1,3]
[null,null,null,null,null,null,null,null,null,null,null,null,null,null,null,null,1,1,1,3]
[null,null,null,null,null,null,null,null,null,null,null,null,null,null,null,null,1,1,1,3]
[null,null,null,null,null,null,null,null,null,null,null,null,null,null,null,null,1,1,1,3]
[null,null,null,null,null,null,null,null,null,null,null,null,null,null,null,null,1,1,1,3]
[null,null,null,null,null,null,null,null,null,null,null,null,null,null,null,null,1,1,1,3]
[null,null,null,null,null,null,null,null,null,null,null,null,null,null,null,null,1,1,1,3]
[null,null,null,null,null,null,null,null,null,null,null,null,null,null,null,null,1,1,1,3]
[null,null,null,null,null,null,null,null,null,null,null,null,null,null,null,null,1,1,1,3]
[null,null,null,null,null,null,null,null,null,null,null,null,null,null,null,null,1,1,1,3]
[null,null,null,null,null,null,null,null,null,null,null,null,null,null,null,null,1,1,1,3]
[null,null,null,null,null,null,null,null,null,null,null,null,null,null,null,null,1,1,1,3]
[null,null,null,null,null,null,null,null,null,null,null,null,null,null,null,null,1,1,1,3]
[null,null,null,null,null,null,null,null,null,null,null,null,null,null,null,null,1,1,1,3]
[null,null,null,null,null,null,null,null,null,null,null,null,null,null,null,null,1,1,1,3]
[null,null,null,null,null,null,null,null,null,null,null,null,null,null,null,null,1,1,1,3]
[null,null,null,null,null,null,null,null,null,null,null,null,null,null,null,null,1,1,1,3]
[null,null,null,null,null,null,null,null,null,null,null,null,null,null,null,null,1,1,1,3]
[null,null,null,null,null,null,null,null,null,null,null,null,null,null,null,null,1,1,1,3]
[null,null,null,null,null,null,null,null,null,null,null,null,null,null,null,null,1,1,1,3]
[null,null,null,null,null,null,null,null,null,null,null,null,null,null,null,null,1,1,1,3]
[null,null,null,null,null,null,null,null,null,null,null,null,null,null,null,null,1,1,1,3]
[null,null,null,null,null,null,null,null,null,null,null,null,null,null,null,null,1,1,1,3]
[null,null,null,null,null,null,null,null,null,null,null,null,null,null,null,null,1,1,1,3]
[null,null,null,null,null,null,null,null,null,null,null,null,null,null,null,null,1,1,1,3]
[null,null,null,null,null,null,null,null,null,null,null,null,null,null,null,null,1,1,1,3]
[null,null,null,null,null,null,null,null,null,null,null,null,null,null,null,null,1,1,1,3]
[null,null,null,null,null,null,null,null,null,null,null,null,null,null,null,null,1,1,1,3]
[null,null,null,null,null,null,null,null,null,null,null,null,null,null,null,null,1,1,1,3]
[null,null,null,null,null,null,null,null,null,null,null,null,null,null,null,null,1,1,1,3]
[null,null,null,null,null,null,null,null,null,null,null,null,null,null,null,null,1,1,1,3]
[null,null,null,null,null,null,null,null,null,null,null,null,null,null,null,null,1,1,1,3]
[null,null,null,null,null,null,null,null,null,null,null,null,null,null,null,null,1,1,1,3]
[null,null,null,null,null,null,null,null,null,null,null,null,null,null,null,null,1,1,1,3]
[null,null,null,null,null,null,null,null,null,null,null,null,null,null,null,null,1,1,1,3]
[null,null,null,null,null,null,null,null,null,null,null,null,null,null,null,null,1,1,1,3]
[null,null,null,null,null,null,null,null,null,null,null,null,null,null,null,null,1,1,1,3]
[null,null,null,null,null,null,null,null,null,null,null,null,null,null,null,null,1,1,1,3]
[null,null,null,null,null,null,null,null,null,null,null,null,null,null,null,null,1,1,1,3]
[null,null,null,null,null,null,null,null,null,null,null,null,null,null,null,null,1,1,1,3]
[null,null,null,null,null,null,null,null,null,null,null,null,null,null,null,null,{"$f":"IF(K2253=\"No comment\",0,1)","v":1},{"$f":"IF(L2253=\"No comment\",0,1)","v":1},{"$f":"IF(M2253=\"No comment\",0,1)","v":1},{"$f":"SUM(N2253:S2253)","v":3}]
[null,null,null,null,null,null,null,null,null,null,null,null,null,null,null,null,1,1,1,3]
[null,null,null,null,null,null,null,null,null,null,null,null,null,null,null,null,1,1,1,3]
[null,null,null,null,null,null,null,null,null,null,null,null,null,null,null,null,1,1,1,3]
[null,null,null,null,null,null,null,null,null,null,null,null,null,null,null,null,1,1,1,3]
[null,null,null,null,null,null,null,null,null,null,null,null,null,null,null,null,1,1,1,3]
[null,null,null,null,null,null,null,null,null,null,null,null,null,null,null,null,1,1,1,3]
[null,null,null,null,null,null,null,null,null,null,null,null,null,null,null,null,1,1,1,3]
[null,null,null,null,null,null,null,null,null,null,null,null,null,null,null,null,1,1,1,3]
[null,null,null,null,null,null,null,null,null,null,null,null,null,null,null,null,1,1,1,3]
[null,null,null,null,null,null,null,null,null,null,null,null,null,null,null,null,1,1,1,3]
[null,null,null,null,null,null,null,null,null,null,null,null,null,null,null,null,1,1,1,3]
[null,null,null,null,null,null,null,null,null,null,null,null,null,null,null,null,1,1,1,3]
[null,null,null,null,null,null,null,null,null,null,null,null,null,null,null,null,1,1,1,3]
[null,null,null,null,null,null,null,null,null,null,null,null,null,null,null,null,1,1,1,3]
[null,null,null,null,null,null,null,null,null,null,null,null,null,null,null,null,1,1,1,3]
[null,null,null,null,null,null,null,null,null,null,null,null,null,null,null,null,1,1,1,3]
[null,null,null,null,null,null,null,null,null,null,null,null,null,null,null,null,1,1,1,3]
[null,null,null,null,null,null,null,null,null,null,null,null,null,null,null,null,1,1,1,3]
[null,null,null,null,null,null,null,null,null,null,null,null,null,null,null,null,1,1,1,3]
[null,null,null,null,null,null,null,null,null,null,null,null,null,null,null,null,1,1,1,3]
[null,null,null,null,null,null,null,null,null,null,null,null,null,null,null,null,1,1,1,3]
[null,null,null,null,null,null,null,null,null,null,null,null,null,null,null,null,1,1,1,3]
[null,null,null,null,null,null,null,null,null,null,null,null,null,null,null,null,1,1,1,3]
[null,null,null,null,null,null,null,null,null,null,null,null,null,null,null,null,1,1,1,3]
[null,null,null,null,null,null,null,null,null,null,null,null,null,null,null,null,1,1,1,3]
[null,null,null,null,null,null,null,null,null,null,null,null,null,null,null,null,1,1,1,3]
[null,null,null,null,null,null,null,null,null,null,null,null,null,null,null,null,1,1,1,3]
[null,null,null,null,null,null,null,null,null,null,null,null,null,null,null,null,1,1,1,3]
[null,null,null,null,null,null,null,null,null,null,null,null,null,null,null,null,1,1,1,3]
[null,null,null,null,null,null,null,null,null,null,null,null,null,null,null,null,1,1,1,3]
[null,null,null,null,null,null,null,null,null,null,null,null,null,null,null,null,1,1,1,3]
[null,null,null,null,null,null,null,null,null,null,null,null,null,null,null,null,1,1,1,3]
[null,null,null,null,null,null,null,null,null,null,null,null,null,null,null,null,1,1,1,3]
[null,null,null,null,null,null,null,null,null,null,null,null,null,null,null,null,1,1,1,3]
[null,null,null,null,null,null,null,null,null,null,null,null,null,null,null,null,1,1,1,3]
[null,null,null,null,null,null,null,null,null,null,null,null,null,null,null,null,1,1,1,3]
[null,null,null,null,null,null,null,null,null,null,null,null,null,null,null,null,1,1,1,3]
[null,null,null,null,null,null,null,null,null,null,null,null,null,null,null,null,1,1,1,3]
[null,null,null,null,null,null,null,null,null,null,null,null,null,null,null,null,1,1,1,3]
[null,null,null,null,null,null,null,null,null,null,null,null,null,null,null,null,1,1,1,3]
[null,null,null,null,null,null,null,null,null,null,null,null,null,null,null,null,1,1,1,3]
[null,null,null,null,null,null,null,null,null,null,null,null,null,null,null,null,1,1,1,3]
[null,null,null,null,null,null,null,null,null,null,null,null,null,null,null,null,1,1,1,3]
[null,null,null,null,null,null,null,null,null,null,null,null,null,null,null,null,1,1,1,3]
[null,null,null,null,null,null,null,null,null,null,null,null,null,null,null,null,1,1,1,3]
[null,null,null,null,null,null,null,null,null,null,null,null,null,null,null,null,1,1,1,3]
[null,null,null,null,null,null,null,null,null,null,null,null,null,null,null,null,1,1,1,3]
[null,null,null,null,null,null,null,null,null,null,null,null,null,null,null,null,1,1,1,3]
[null,null,null,null,null,null,null,null,null,null,null,null,null,null,null,null,1,1,1,3]
[null,null,null,null,null,null,null,null,null,null,null,null,null,null,null,null,1,1,1,3]
[null,null,null,null,null,null,null,null,null,null,null,null,null,null,null,null,1,1,1,3]
[null,null,null,null,null,null,null,null,null,null,null,null,null,null,null,null,1,1,1,3]
[null,null,null,null,null,null,null,null,null,null,null,null,null,null,null,null,1,1,1,3]
[null,null,null,null,null,null,null,null,null,null,null,null,null,null,null,null,1,1,1,3]
[null,null,null,null,null,null,null,null,null,null,null,null,null,null,null,null,1,1,1,3]
[null,null,null,null,null,null,null,null,null,null,null,null,null,null,null,null,1,1,1,3]
[null,null,null,null,null,null,null,null,null,null,null,null,null,null,null,null,1,1,1,3]
[null,null,null,null,null,null,null,null,null,null,null,null,null,null,null,null,1,1,1,3]
[null,null,null,null,null,null,null,null,null,null,null,null,null,null,null,null,1,1,1,3]
[null,null,null,null,null,null,null,null,null,null,null,null,null,null,null,null,1,1,1,3]
[null,null,null,null,null,null,null,null,null,null,null,null,null,null,null,null,1,1,1,3]
[null,null,null,null,null,null,null,null,null,null,null,null,null,null,null,null,1,1,1,3]
[null,null,null,null,null,null,null,null,null,null,null,null,null,null,null,null,1,1,1,3]
[null,null,null,null,null,null,null,null,null,null,null,null,null,null,null,null,{"$f":"IF(K2317=\"No comment\",0,1)","v":1},{"$f":"IF(L2317=\"No comment\",0,1)","v":1},{"$f":"IF(M2317=\"No comment\",0,1)","v":1},{"$f":"SUM(N2317:S2317)","v":3}]
[null,null,null,null,null,null,null,null,null,null,null,null,null,null,null,null,1,1,1,3]
[null,null,null,null,null,null,null,null,null,null,null,null,null,null,null,null,1,1,1,3]
[null,null,null,null,null,null,null,null,null,null,null,null,null,null,null,null,1,1,1,3]
[null,null,null,null,null,null,null,null,null,null,null,null,null,null,null,null,1,1,1,3]
[null,null,null,null,null,null,null,null,null,null,null,null,null,null,null,null,1,1,1,3]
[null,null,null,null,null,null,null,null,null,null,null,null,null,null,null,null,1,1,1,3]
[null,null,null,null,null,null,null,null,null,null,null,null,null,null,null,null,1,1,1,3]
[null,null,null,null,null,null,null,null,null,null,null,null,null,null,null,null,1,1,1,3]
[null,null,null,null,null,null,null,null,null,null,null,null,null,null,null,null,1,1,1,3]
[null,null,null,null,null,null,null,null,null,null,null,null,null,null,null,null,1,1,1,3]
[null,null,null,null,null,null,null,null,null,null,null,null,null,null,null,null,1,1,1,3]
[null,null,null,null,null,null,null,null,null,null,null,null,null,null,null,null,1,1,1,3]
[null,null,null,null,null,null,null,null,null,null,null,null,null,null,null,null,1,1,1,3]
[null,null,null,null,null,null,null,null,null,null,null,null,null,null,null,null,1,1,1,3]
[null,null,null,null,null,null,null,null,null,null,null,null,null,null,null,null,1,1,1,3]
[null,null,null,null,null,null,null,null,null,null,null,null,null,null,null,null,1,1,1,3]
[null,null,null,null,null,null,null,null,null,null,null,null,null,null,null,null,1,1,1,3]
[null,null,null,null,null,null,null,null,null,null,null,null,null,null,null,null,1,1,1,3]
[null,null,null,null,null,null,null,null,null,null,null,null,null,null,null,null,1,1,1,3]
[null,null,null,null,null,null,null,null,null,null,null,null,null,null,null,null,1,1,1,3]
[null,null,null,null,null,null,null,null,null,null,null,null,null,null,null,null,1,1,1,3]
[null,null,null,null,null,null,null,null,null,null,null,null,null,null,null,null,1,1,1,3]
[null,null,null,null,null,null,null,null,null,null,null,null,null,null,null,null,1,1,1,3]
[null,null,null,null,null,null,null,null,null,null,null,null,null,null,null,null,1,1,1,3]
[null,null,null,null,null,null,null,null,null,null,null,null,null,null,null,null,1,1,1,3]
[null,null,null,null,null,null,null,null,null,null,null,null,null,null,null,null,1,1,1,3]
[null,null,null,null,null,null,null,null,null,null,null,null,null,null,null,null,1,1,1,3]
[null,null,null,null,null,null,null,null,null,null,null,null,null,null,null,null,1,1,1,3]
[null,null,null,null,null,null,null,null,null,null,null,null,null,null,null,null,1,1,1,3]
[null,null,null,null,null,null,null,null,null,null,null,null,null,null,null,null,1,1,1,3]
[null,null,null,null,null,null,null,null,null,null,null,null,null,null,null,null,1,1,1,3]
[null,null,null,null,null,null,null,null,null,null,null,null,null,null,null,null,1,1,1,3]
[null,null,null,null,null,null,null,null,null,null,null,null,null,null,null,null,1,1,1,3]
[null,null,null,null,null,null,null,null,null,null,null,null,null,null,null,null,1,1,1,3]
[null,null,null,null,null,null,null,null,null,null,null,null,null,null,null,null,1,1,1,3]
[null,null,null,null,null,null,null,null,null,null,null,null,null,null,null,null,1,1,1,3]
[null,null,null,null,null,null,null,null,null,null,null,null,null,null,null,null,1,1,1,3]
[null,null,null,null,null,null,null,null,null,null,null,null,null,null,null,null,1,1,1,3]
[null,null,null,null,null,null,null,null,null,null,null,null,null,null,null,null,1,1,1,3]
[null,null,null,null,null,null,null,null,null,null,null,null,null,null,null,null,1,1,1,3]
[null,null,null,null,null,null,null,null,null,null,null,null,null,null,null,null,1,1,1,3]
[null,null,null,null,null,null,null,null,null,null,null,null,null,null,null,null,1,1,1,3]
[null,null,null,null,null,null,null,null,null,null,null,null,null,null,null,null,1,1,1,3]
[null,null,null,null,null,null,null,null,null,null,null,null,null,null,null,null,1,1,1,3]
[null,null,null,null,null,null,null,null,null,null,null,null,null,null,null,null,1,1,1,3]
[null,null,null,null,null,null,null,null,null,null,null,null,null,null,null,null,1,1,1,3]
[null,null,null,null,null,null,null,null,null,null,null,null,null,null,null,null,1,1,1,3]
[null,null,null,null,null,null,null,null,null,null,null,null,null,null,null,null,1,1,1,3]
[null,null,null,null,null,null,null,null,null,null,null,null,null,null,null,null,1,1,1,3]
[null,null,null,null,null,null,null,null,null,null,null,null,null,null,null,null,1,1,1,3]
[null,null,null,null,null,null,null,null,null,null,null,null,null,null,null,null,1,1,1,3]
[null,null,null,null,null,null,null,null,null,null,null,null,null,null,null,null,1,1,1,3]
[null,null,null,null,null,null,null,null,null,null,null,null,null,null,null,null,1,1,1,3]
[null,null,null,null,null,null,null,null,null,null,null,null,null,null,null,null,1,1,1,3]
[null,null,null,null,null,null,null,null,null,null,null,null,null,null,null,null,1,1,1,3]
[null,null,null,null,null,null,null,null,null,null,null,null,null,null,null,null,1,1,1,3]
[null,null,null,null,null,null,null,null,null,null,null,null,null,null,null,null,1,1,1,3]
[null,null,null,null,null,null,null,null,null,null,null,null,null,null,null,null,1,1,1,3]
[null,null,null,null,null,null,null,null,null,null,null,null,null,null,null,null,1,1,1,3]
[null,null,null,null,null,null,null,null,null,null,null,null,null,null,null,null,1,1,1,3]
[null,null,null,null,null,null,null,null,null,null,null,null,null,null,null,null,1,1,1,3]
[null,null,null,null,null,null,null,null,null,null,null,null,null,null,null,null,1,1,1,3]
[null,null,null,null,null,null,null,null,null,null,null,null,null,null,null,null,1,1,1,3]
[null,null,null,null,null,null,null,null,null,null,null,null,null,null,null,null,{"$f":"IF(K2381=\"No comment\",0,1)","v":1},{"$f":"IF(L2381=\"No comment\",0,1)","v":1},{"$f":"IF(M2381=\"No comment\",0,1)","v":1},{"$f":"SUM(N2381:S2381)","v":3}]
[null,null,null,null,null,null,null,null,null,null,null,null,null,null,null,null,1,1,1,3]
[null,null,null,null,null,null,null,null,null,null,null,null,null,null,null,null,1,1,1,3]
[null,null,null,null,null,null,null,null,null,null,null,null,null,null,null,null,1,1,1,3]
[null,null,null,null,null,null,null,null,null,null,null,null,null,null,null,null,1,1,1,3]
[null,null,null,null,null,null,null,null,null,null,null,null,null,null,null,null,1,1,1,3]
[null,null,null,null,null,null,null,null,null,null,null,null,null,null,null,null,1,1,1,3]
[null,null,null,null,null,null,null,null,null,null,null,null,null,null,null,null,1,1,1,3]
[null,null,null,null,null,null,null,null,null,null,null,null,null,null,null,null,1,1,1,3]
[null,null,null,null,null,null,null,null,null,null,null,null,null,null,null,null,1,1,1,3]
[null,null,null,null,null,null,null,null,null,null,null,null,null,null,null,null,1,1,1,3]
[null,null,null,null,null,null,null,null,null,null,null,null,null,null,null,null,1,1,1,3]
[null,null,null,null,null,null,null,null,null,null,null,null,null,null,null,null,1,1,1,3]
[null,null,null,null,null,null,null,null,null,null,null,null,null,null,null,null,1,1,1,3]
[null,null,null,null,null,null,null,null,null,null,null,null,null,null,null,null,1,1,1,3]
[null,null,null,null,null,null,null,null,null,null,null,null,null,null,null,null,1,1,1,3]
[null,null,null,null,null,null,null,null,null,null,null,null,null,null,null,null,1,1,1,3]
[null,null,null,null,null,null,null,null,null,null,null,null,null,null,null,null,1,1,1,3]
[null,null,null,null,null,null,null,null,null,null,null,null,null,null,null,null,1,1,1,3]
[null,null,null,null,null,null,null,null,null,null,null,null,null,null,null,null,1,1,1,3]
[null,null,null,null,null,null,null,null,null,null,null,null,null,null,null,null,1,1,1,3]
[null,null,null,null,null,null,null,null,null,null,null,null,null,null,null,null,1,1,1,3]
[null,null,null,null,null,null,null,null,null,null,null,null,null,null,null,null,1,1,1,3]
[null,null,null,null,null,null,null,null,null,null,null,null,null,null,null,null,1,1,1,3]
[null,null,null,null,null,null,null,null,null,null,null,null,null,null,null,null,1,1,1,3]
[null,null,null,null,null,null,null,null,null,null,null,null,null,null,null,null,1,1,1,3]
[null,null,null,null,null,null,null,null,null,null,null,null,null,null,null,null,1,1,1,3]
[null,null,null,null,null,null,null,null,null,null,null,null,null,null,null,null,1,1,1,3]
[null,null,null,null,null,null,null,null,null,null,null,null,null,null,null,null,1,1,1,3]
[null,null,null,null,null,null,null,null,null,null,null,null,null,null,null,null,1,1,1,3]
[null,null,null,null,null,null,null,null,null,null,null,null,null,null,null,null,1,1,1,3]
[null,null,null,null,null,null,null,null,null,null,null,null,null,null,null,null,1,1,1,3]
[null,null,null,null,null,null,null,null,null,null,null,null,null,null,null,null,1,1,1,3]
[null,null,null,null,null,null,null,null,null,null,null,null,null,null,null,null,1,1,1,3]
[null,null,null,null,null,null,null,null,null,null,null,null,null,null,null,null,1,1,1,3]
[null,null,null,null,null,null,null,null,null,null,null,null,null,null,null,null,1,1,1,3]
[null,null,null,null,null,null,null,null,null,null,null,null,null,null,null,null,1,1,1,3]
[null,null,null,null,null,null,null,null,null,null,null,null,null,null,null,null,1,1,1,3]
[null,null,null,null,null,null,null,null,null,null,null,null,null,null,null,null,1,1,1,3]
[null,null,null,null,null,null,null,null,null,null,null,null,null,null,null,null,1,1,1,3]
[null,null,null,null,null,null,null,null,null,null,null,null,null,null,null,null,1,1,1,3]
[null,null,null,null,null,null,null,null,null,null,null,null,null,null,null,null,1,1,1,3]
[null,null,null,null,null,null,null,null,null,null,null,null,null,null,null,null,1,1,1,3]
[null,null,null,null,null,null,null,null,null,null,null,null,null,null,null,null,1,1,1,3]
[null,null,null,null,null,null,null,null,null,null,null,null,null,null,null,null,1,1,1,3]
[null,null,null,null,null,null,null,null,null,null,null,null,null,null,null,null,1,1,1,3]
[null,null,null,null,null,null,null,null,null,null,null,null,null,null,null,null,1,1,1,3]
[null,null,null,null,null,null,null,null,null,null,null,null,null,null,null,null,1,1,1,3]
[null,null,null,null,null,null,null,null,null,null,null,null,null,null,null,null,1,1,1,3]
[null,null,null,null,null,null,null,null,null,null,null,null,null,null,null,null,1,1,1,3]
[null,null,null,null,null,null,null,null,null,null,null,null,null,null,null,null,1,1,1,3]
[null,null,null,null,null,null,null,null,null,null,null,null,null,null,null,null,1,1,1,3]
[null,null,null,null,null,null,null,null,null,null,null,null,null,null,null,null,1,1,1,3]
[null,null,null,null,null,null,null,null,null,null,null,null,null,null,null,null,1,1,1,3]
[null,null,null,null,null,null,null,null,null,null,null,null,null,null,null,null,1,1,1,3]
[null,null,null,null,null,null,null,null,null,null,null,null,null,null,null,null,1,1,1,3]
[null,null,null,null,null,null,null,null,null,null,null,null,null,null,null,null,1,1,1,3]
[null,null,null,null,null,null,null,null,null,null,null,null,null,null,null,null,1,1,1,3]
[null,null,null,null,null,null,null,null,null,null,null,null,null,null,null,null,1,1,1,3]
[null,null,null,null,null,null,null,null,null,null,null,null,null,null,null,null,1,1,1,3]
[null,null,null,null,null,null,null,null,null,null,null,null,null,null,null,null,1,1,1,3]
[null,null,null,null,null,null,null,null,null,null,null,null,null,null,null,null,1,1,1,3]
[null,null,null,null,null,null,null,null,null,null,null,null,null,null,null,null,1,1,1,3]
[null,null,null,null,null,null,null,null,null,null,null,null,null,null,null,null,1,1,1,3]
[null,null,null,null,null,null,null,null,null,null,null,null,null,null,null,null,{"$f":"IF(K2445=\"No comment\",0,1)","v":1},{"$f":"IF(L2445=\"No comment\",0,1)","v":1},{"$f":"IF(M2445=\"No comment\",0,1)","v":1},{"$f":"SUM(N2445:S2445)","v":3}]
[null,null,null,null,null,null,null,null,null,null,null,null,null,null,null,null,1,1,1,3]
[null,null,null,null,null,null,null,null,null,null,null,null,null,null,null,null,1,1,1,3]
[null,null,null,null,null,null,null,null,null,null,null,null,null,null,null,null,1,1,1,3]
[null,null,null,null,null,null,null,null,null,null,null,null,null,null,null,null,1,1,1,3]
[null,null,null,null,null,null,null,null,null,null,null,null,null,null,null,null,1,1,1,3]
[null,null,null,null,null,null,null,null,null,null,null,null,null,null,null,null,1,1,1,3]
[null,null,null,null,null,null,null,null,null,null,null,null,null,null,null,null,1,1,1,3]
[null,null,null,null,null,null,null,null,null,null,null,null,null,null,null,null,1,1,1,3]
[null,null,null,null,null,null,null,null,null,null,null,null,null,null,null,null,1,1,1,3]
[null,null,null,null,null,null,null,null,null,null,null,null,null,null,null,null,1,1,1,3]
[null,null,null,null,null,null,null,null,null,null,null,null,null,null,null,null,1,1,1,3]
[null,null,null,null,null,null,null,null,null,null,null,null,null,null,null,null,1,1,1,3]
[null,null,null,null,null,null,null,null,null,null,null,null,null,null,null,null,1,1,1,3]
[null,null,null,null,null,null,null,null,null,null,null,null,null,null,null,null,1,1,1,3]
[null,null,null,null,null,null,null,null,null,null,null,null,null,null,null,null,1,1,1,3]
[null,null,null,null,null,null,null,null,null,null,null,null,null,null,null,null,1,1,1,3]
[null,null,null,null,null,null,null,null,null,null,null,null,null,null,null,null,1,1,1,3]
[null,null,null,null,null,null,null,null,null,null,null,null,null,null,null,null,1,1,1,3]
[null,null,null,null,null,null,null,null,null,null,null,null,null,null,null,null,1,1,1,3]
[null,null,null,null,null,null,null,null,null,null,null,null,null,null,null,null,1,1,1,3]
[null,null,null,null,null,null,null,null,null,null,null,null,null,null,null,null,1,1,1,3]
[null,null,null,null,null,null,null,null,null,null,null,null,null,null,null,null,1,1,1,3]
[null,null,null,null,null,null,null,null,null,null,null,null,null,null,null,null,1,1,1,3]
[null,null,null,null,null,null,null,null,null,null,null,null,null,null,null,null,1,1,1,3]
[null,null,null,null,null,null,null,null,null,null,null,null,null,null,null,null,1,1,1,3]
[null,null,null,null,null,null,null,null,null,null,null,null,null,null,null,null,1,1,1,3]
[null,null,null,null,null,null,null,null,null,null,null,null,null,null,null,null,1,1,1,3]
[null,null,null,null,null,null,null,null,null,null,null,null,null,null,null,null,1,1,1,3]
[null,null,null,null,null,null,null,null,null,null,null,null,null,null,null,null,1,1,1,3]
[null,null,null,null,null,null,null,null,null,null,null,null,null,null,null,null,1,1,1,3]
[null,null,null,null,null,null,null,null,null,null,null,null,null,null,null,null,1,1,1,3]
[null,null,null,null,null,null,null,null,null,null,null,null,null,null,null,null,1,1,1,3]
[null,null,null,null,null,null,null,null,null,null,null,null,null,null,null,null,1,1,1,3]
[null,null,null,null,null,null,null,null,null,null,null,null,null,null,null,null,1,1,1,3]
[null,null,null,null,null,null,null,null,null,null,null,null,null,null,null,null,1,1,1,3]
[null,null,null,null,null,null,null,null,null,null,null,null,null,null,null,null,1,1,1,3]
[null,null,null,null,null,null,null,null,null,null,null,null,null,null,null,null,1,1,1,3]
[null,null,null,null,null,null,null,null,null,null,null,null,null,null,null,null,1,1,1,3]
[null,null,null,null,null,null,null,null,null,null,null,null,null,null,null,null,1,1,1,3]
[null,null,null,null,null,null,null,null,null,null,null,null,null,null,null,null,1,1,1,3]
[null,null,null,null,null,null,null,null,null,null,null,null,null,null,null,null,1,1,1,3]
[null,null,null,null,null,null,null,null,null,null,null,null,null,null,null,null,1,1,1,3]
[null,null,null,null,null,null,null,null,null,null,null,null,null,null,null,null,1,1,1,3]
[null,null,null,null,null,null,null,null,null,null,null,null,null,null,null,null,1,1,1,3]
[null,null,null,null,null,null,null,null,null,null,null,null,null,null,null,null,1,1,1,3]
[null,null,null,null,null,null,null,null,null,null,null,null,null,null,null,null,1,1,1,3]
[null,null,null,null,null,null,null,null,null,null,null,null,null,null,null,null,1,1,1,3]
[null,null,null,null,null,null,null,null,null,null,null,null,null,null,null,null,1,1,1,3]
[null,null,null,null,null,null,null,null,null,null,null,null,null,null,null,null,1,1,1,3]
[null,null,null,null,null,null,null,null,null,null,null,null,null,null,null,null,1,1,1,3]
[null,null,null,null,null,null,null,null,null,null,null,null,null,null,null,null,1,1,1,3]
[null,null,null,null,null,null,null,null,null,null,null,null,null,null,null,null,1,1,1,3]
[null,null,null,null,null,null,null,null,null,null,null,null,null,null,null,null,1,1,1,3]
[null,null,null,null,null,null,null,null,null,null,null,null,null,null,null,null,1,1,1,3]
[null,null,null,null,null,null,null,null,null,null,null,null,null,null,null,null,1,1,1,3]
[null,null,null,null,null,null,null,null,null,null,null,null,null,null,null,null,1,1,1,3]
[null,null,null,null,null,null,null,null,null,null,null,null,null,null,null,null,1,1,1,3]
[null,null,null,null,null,null,null,null,null,null,null,null,null,null,null,null,1,1,1,3]
[null,null,null,null,null,null,null,null,null,null,null,null,null,null,null,null,1,1,1,3]
[null,null,null,null,null,null,null,null,null,null,null,null,null,null,null,null,1,1,1,3]
[null,null,null,null,null,null,null,null,null,null,null,null,null,null,null,null,1,1,1,3]
[null,null,null,null,null,null,null,null,null,null,null,null,null,null,null,null,1,1,1,3]
[null,null,null,null,null,null,null,null,null,null,null,null,null,null,null,null,1,1,1,3]
[null,null,null,null,null,null,null,null,null,null,null,null,null,null,null,null,{"$f":"IF(K2509=\"No comment\",0,1)","v":1},{"$f":"IF(L2509=\"No comment\",0,1)","v":1},{"$f":"IF(M2509=\"No comment\",0,1)","v":1},{"$f":"SUM(N2509:S2509)","v":3}]
[null,null,null,null,null,null,null,null,null,null,null,null,null,null,null,null,1,1,1,3]
[null,null,null,null,null,null,null,null,null,null,null,null,null,null,null,null,1,1,1,3]
[null,null,null,null,null,null,null,null,null,null,null,null,null,null,null,null,1,1,1,3]
[null,null,null,null,null,null,null,null,null,null,null,null,null,null,null,null,1,1,1,3]
[null,null,null,null,null,null,null,null,null,null,null,null,null,null,null,null,1,1,1,3]
[null,null,null,null,null,null,null,null,null,null,null,null,null,null,null,null,1,1,1,3]
[null,null,null,null,null,null,null,null,null,null,null,null,null,null,null,null,1,1,1,3]
[null,null,null,null,null,null,null,null,null,null,null,null,null,null,null,null,1,1,1,3]
[null,null,null,null,null,null,null,null,null,null,null,null,null,null,null,null,1,1,1,3]
[null,null,null,null,null,null,null,null,null,null,null,null,null,null,null,null,1,1,1,3]
[null,null,null,null,null,null,null,null,null,null,null,null,null,null,null,null,1,1,1,3]
[null,null,null,null,null,null,null,null,null,null,null,null,null,null,null,null,1,1,1,3]
[null,null,null,null,null,null,null,null,null,null,null,null,null,null,null,null,1,1,1,3]
[null,null,null,null,null,null,null,null,null,null,null,null,null,null,null,null,1,1,1,3]
[null,null,null,null,null,null,null,null,null,null,null,null,null,null,null,null,1,1,1,3]
[null,null,null,null,null,null,null,null,null,null,null,null,null,null,null,null,1,1,1,3]
[null,null,null,null,null,null,null,null,null,null,null,null,null,null,null,null,1,1,1,3]
[null,null,null,null,null,null,null,null,null,null,null,null,null,null,null,null,1,1,1,3]
[null,null,null,null,null,null,null,null,null,null,null,null,null,null,null,null,1,1,1,3]
[null,null,null,null,null,null,null,null,null,null,null,null,null,null,null,null,1,1,1,3]
[null,null,null,null,null,null,null,null,null,null,null,null,null,null,null,null,1,1,1,3]
[null,null,null,null,null,null,null,null,null,null,null,null,null,null,null,null,1,1,1,3]
[null,null,null,null,null,null,null,null,null,null,null,null,null,null,null,null,1,1,1,3]
[null,null,null,null,null,null,null,null,null,null,null,null,null,null,null,null,1,1,1,3]
[null,null,null,null,null,null,null,null,null,null,null,null,null,null,null,null,1,1,1,3]
[null,null,null,null,null,null,null,null,null,null,null,null,null,null,null,null,1,1,1,3]
[null,null,null,null,null,null,null,null,null,null,null,null,null,null,null,null,1,1,1,3]
[null,null,null,null,null,null,null,null,null,null,null,null,null,null,null,null,1,1,1,3]
[null,null,null,null,null,null,null,null,null,null,null,null,null,null,null,null,1,1,1,3]
[null,null,null,null,null,null,null,null,null,null,null,null,null,null,null,null,1,1,1,3]
[null,null,null,null,null,null,null,null,null,null,null,null,null,null,null,null,1,1,1,3]
[null,null,null,null,null,null,null,null,null,null,null,null,null,null,null,null,1,1,1,3]
[null,null,null,null,null,null,null,null,null,null,null,null,null,null,null,null,1,1,1,3]
[null,null,null,null,null,null,null,null,null,null,null,null,null,null,null,null,1,1,1,3]
[null,null,null,null,null,null,null,null,null,null,null,null,null,null,null,null,1,1,1,3]
[null,null,null,null,null,null,null,null,null,null,null,null,null,null,null,null,1,1,1,3]
[null,null,null,null,null,null,null,null,null,null,null,null,null,null,null,null,1,1,1,3]
[null,null,null,null,null,null,null,null,null,null,null,null,null,null,null,null,1,1,1,3]
[null,null,null,null,null,null,null,null,null,null,null,null,null,null,null,null,1,1,1,3]
[null,null,null,null,null,null,null,null,null,null,null,null,null,null,null,null,1,1,1,3]
[null,null,null,null,null,null,null,null,null,null,null,null,null,null,null,null,1,1,1,3]
[null,null,null,null,null,null,null,null,null,null,null,null,null,null,null,null,1,1,1,3]
[null,null,null,null,null,null,null,null,null,null,null,null,null,null,null,null,1,1,1,3]
[null,null,null,null,null,null,null,null,null,null,null,null,null,null,null,null,1,1,1,3]
[null,null,null,null,null,null,null,null,null,null,null,null,null,null,null,null,1,1,1,3]
[null,null,null,null,null,null,null,null,null,null,null,null,null,null,null,null,1,1,1,3]
[null,null,null,null,null,null,null,null,null,null,null,null,null,null,null,null,1,1,1,3]
[null,null,null,null,null,null,null,null,null,null,null,null,null,null,null,null,1,1,1,3]
[null,null,null,null,null,null,null,null,null,null,null,null,null,null,null,null,1,1,1,3]
[null,null,null,null,null,null,null,null,null,null,null,null,null,null,null,null,1,1,1,3]
[null,null,null,null,null,null,null,null,null,null,null,null,null,null,null,null,1,1,1,3]
[null,null,null,null,null,null,null,null,null,null,null,null,null,null,null,null,1,1,1,3]
[null,null,null,null,null,null,null,null,null,null,null,null,null,null,null,null,1,1,1,3]
[null,null,null,null,null,null,null,null,null,null,null,null,null,null,null,null,1,1,1,3]
[null,null,null,null,null,null,null,null,null,null,null,null,null,null,null,null,1,1,1,3]
[null,null,null,null,null,null,null,null,null,null,null,null,null,null,null,null,1,1,1,3]
[null,null,null,null,null,null,null,null,null,null,null,null,null,null,null,null,1,1,1,3]
[null,null,null,null,null,null,null,null,null,null,null,null,null,null,null,null,1,1,1,3]
[null,null,null,null,null,null,null,null,null,null,null,null,null,null,null,null,1,1,1,3]
[null,null,null,null,null,null,null,null,null,null,null,null,null,null,null,null,1,1,1,3]
[null,null,null,null,null,null,null,null,null,null,null,null,null,null,null,null,1,1,1,3]
[null,null,null,null,null,null,null,null,null,null,null,null,null,null,null,null,1,1,1,3]
[null,null,null,null,null,null,null,null,null,null,null,null,null,null,null,null,1,1,1,3]
[null,null,null,null,null,null,null,null,null,null,null,null,null,null,null,null,{"$f":"IF(K2573=\"No comment\",0,1)","v":1},{"$f":"IF(L2573=\"No comment\",0,1)","v":1},{"$f":"IF(M2573=\"No comment\",0,1)","v":1},{"$f":"SUM(N2573:S2573)","v":3}]
[null,null,null,null,null,null,null,null,null,null,null,null,null,null,null,null,1,1,1,3]
[null,null,null,null,null,null,null,null,null,null,null,null,null,null,null,null,1,1,1,3]
[null,null,null,null,null,null,null,null,null,null,null,null,null,null,null,null,1,1,1,3]
[null,null,null,null,null,null,null,null,null,null,null,null,null,null,null,null,1,1,1,3]
[null,null,null,null,null,null,null,null,null,null,null,null,null,null,null,null,1,1,1,3]
[null,null,null,null,null,null,null,null,null,null,null,null,null,null,null,null,1,1,1,3]
[null,null,null,null,null,null,null,null,null,null,null,null,null,null,null,null,1,1,1,3]
[null,null,null,null,null,null,null,null,null,null,null,null,null,null,null,null,1,1,1,3]
[null,null,null,null,null,null,null,null,null,null,null,null,null,null,null,null,1,1,1,3]
[null,null,null,null,null,null,null,null,null,null,null,null,null,null,null,null,1,1,1,3]
[null,null,null,null,null,null,null,null,null,null,null,null,null,null,null,null,1,1,1,3]
[null,null,null,null,null,null,null,null,null,null,null,null,null,null,null,null,1,1,1,3]
[null,null,null,null,null,null,null,null,null,null,null,null,null,null,null,null,1,1,1,3]
[null,null,null,null,null,null,null,null,null,null,null,null,null,null,null,null,1,1,1,3]
[null,null,null,null,null,null,null,null,null,null,null,null,null,null,null,null,1,1,1,3]
[null,null,null,null,null,null,null,null,null,null,null,null,null,null,null,null,1,1,1,3]
[null,null,null,null,null,null,null,null,null,null,null,null,null,null,null,null,1,1,1,3]
[null,null,null,null,null,null,null,null,null,null,null,null,null,null,null,null,1,1,1,3]
[null,null,null,null,null,null,null,null,null,null,null,null,null,null,null,null,1,1,1,3]
[null,null,null,null,null,null,null,null,null,null,null,null,null,null,null,null,1,1,1,3]
[null,null,null,null,null,null,null,null,null,null,null,null,null,null,null,null,1,1,1,3]
[null,null,null,null,null,null,null,null,null,null,null,null,null,null,null,null,1,1,1,3]
[null,null,null,null,null,null,null,null,null,null,null,null,null,null,null,null,1,1,1,3]
[null,null,null,null,null,null,null,null,null,null,null,null,null,null,null,null,1,1,1,3]
[null,null,null,null,null,null,null,null,null,null,null,null,null,null,null,null,1,1,1,3]
[null,null,null,null,null,null,null,null,null,null,null,null,null,null,null,null,1,1,1,3]
[null,null,null,null,null,null,null,null,null,null,null,null,null,null,null,null,1,1,1,3]
[null,null,null,null,null,null,null,null,null,null,null,null,null,null,null,null,1,1,1,3]
[null,null,null,null,null,null,null,null,null,null,null,null,null,null,null,null,1,1,1,3]
[null,null,null,null,null,null,null,null,null,null,null,null,null,null,null,null,1,1,1,3]
[null,null,null,null,null,null,null,null,null,null,null,null,null,null,null,null,1,1,1,3]
[null,null,null,null,null,null,null,null,null,null,null,null,null,null,null,null,1,1,1,3]
[null,null,null,null,null,null,null,null,null,null,null,null,null,null,null,null,1,1,1,3]
[null,null,null,null,null,null,null,null,null,null,null,null,null,null,null,null,1,1,1,3]
[null,null,null,null,null,null,null,null,null,null,null,null,null,null,null,null,1,1,1,3]
[null,null,null,null,null,null,null,null,null,null,null,null,null,null,null,null,1,1,1,3]
[null,null,null,null,null,null,null,null,null,null,null,null,null,null,null,null,1,1,1,3]
[null,null,null,null,null,null,null,null,null,null,null,null,null,null,null,null,1,1,1,3]
[null,null,null,null,null,null,null,null,null,null,null,null,null,null,null,null,1,1,1,3]
[null,null,null,null,null,null,null,null,null,null,null,null,null,null,null,null,1,1,1,3]
[null,null,null,null,null,null,null,null,null,null,null,null,null,null,null,null,1,1,1,3]
[null,null,null,null,null,null,null,null,null,null,null,null,null,null,null,null,1,1,1,3]
[null,null,null,null,null,null,null,null,null,null,null,null,null,null,null,null,1,1,1,3]
[null,null,null,null,null,null,null,null,null,null,null,null,null,null,null,null,1,1,1,3]
[null,null,null,null,null,null,null,null,null,null,null,null,null,null,null,null,1,1,1,3]
[null,null,null,null,null,null,null,null,null,null,null,null,null,null,null,null,1,1,1,3]
[null,null,null,null,null,null,null,null,null,null,null,null,null,null,null,null,1,1,1,3]
[null,null,null,null,null,null,null,null,null,null,null,null,null,null,null,null,1,1,1,3]
[null,null,null,null,null,null,null,null,null,null,null,null,null,null,null,null,1,1,1,3]
[null,null,null,null,null,null,null,null,null,null,null,null,null,null,null,null,1,1,1,3]
[null,null,null,null,null,null,null,null,null,null,null,null,null,null,null,null,1,1,1,3]
[null,null,null,null,null,null,null,null,null,null,null,null,null,null,null,null,1,1,1,3]
[null,null,null,null,null,null,null,null,null,null,null,null,null,null,null,null,1,1,1,3]
[null,null,null,null,null,null,null,null,null,null,null,null,null,null,null,null,1,1,1,3]
[null,null,null,null,null,null,null,null,null,null,null,null,null,null,null,null,1,1,1,3]
[null,null,null,null,null,null,null,null,null,null,null,null,null,null,null,null,1,1,1,3]
[null,null,null,null,null,null,null,null,null,null,null,null,null,null,null,null,1,1,1,3]
[null,null,null,null,null,null,null,null,null,null,null,null,null,null,null,null,1,1,1,3]
[null,null,null,null,null,null,null,null,null,null,null,null,null,null,null,null,1,1,1,3]
[null,null,null,null,null,null,null,null,null,null,null,null,null,null,null,null,1,1,1,3]
[null,null,null,null,null,null,null,null,null,null,null,null,null,null,null,null,1,1,1,3]
[null,null,null,null,null,null,null,null,null,null,null,null,null,null,null,null,1,1,1,3]
[null,null,null,null,null,null,null,null,null,null,null,null,null,null,null,null,1,1,1,3]
[null,null,null,null,null,null,null,null,null,null,null,null,null,null,null,null,{"$f":"IF(K2637=\"No comment\",0,1)","v":1},{"$f":"IF(L2637=\"No comment\",0,1)","v":1},{"$f":"IF(M2637=\"No comment\",0,1)","v":1},{"$f":"SUM(N2637:S2637)","v":3}]
[null,null,null,null,null,null,null,null,null,null,null,null,null,null,null,null,1,1,1,3]
[null,null,null,null,null,null,null,null,null,null,null,null,null,null,null,null,1,1,1,3]
[null,null,null,null,null,null,null,null,null,null,null,null,null,null,null,null,1,1,1,3]
[null,null,null,null,null,null,null,null,null,null,null,null,null,null,null,null,1,1,1,3]
[null,null,null,null,null,null,null,null,null,null,null,null,null,null,null,null,1,1,1,3]
[null,null,null,null,null,null,null,null,null,null,null,null,null,null,null,null,1,1,1,3]
[null,null,null,null,null,null,null,null,null,null,null,null,null,null,null,null,1,1,1,3]
[null,null,null,null,null,null,null,null,null,null,null,null,null,null,null,null,1,1,1,3]
[null,null,null,null,null,null,null,null,null,null,null,null,null,null,null,null,1,1,1,3]